{"text_format":"1","workbook":"xlsx","n_sheets":7,"sheets":["00 Portada","01 Introducción","02 Instr. ingreso de datos","03 Ingreso de datos","04 Instr. Informe de respuestas","05 Informe de respuestas","06 Listas"],"not_rendered":{"charts":0,"images":3,"macros":1,"external_links":1,"defined_names":9,"comments":1,"pivot_tables":0},"unopened":[],"bounds":{"document_bytes":16777216,"sheet_cells":100000,"rows_first":2000,"rows_last":500,"rows_between":2000,"halvings":0,"cell_chars":16384,"cell_head_chars":4096},"cells_cut":0,"cells_raw":0,"read":"whole","date_system":"1900"}

{"sheet":"00 Portada","index":0,"n_rows":14,"n_cols":5,"rows_kept":14,"cut":false,"hidden":false,"merged":[]}
[]
[]
[]
[null,null,null,null,"Evaluación para la prevención "]
[null,null,null,null,"de las infecciones sanguíneas neonatales"]
[null,null,null,null,"(Neo BSI Prevention)"]
[null,null,null,null,"Una evaluación para dirigirse a la prevención de las"]
[null,null,null,null,"infecciones sanguíneas en las unidades de cuidados neonatales"]
[]
[]
[null,null,null,null,"Destinada al uso en entornos de salud global"]
[]
[]
[null,null,null,null,"Versión 1.0 - Julio del 2025"]

{"sheet":"01 Introducción","index":1,"n_rows":0,"n_cols":0,"rows_kept":0,"cut":false,"hidden":false,"merged":[]}

{"sheet":"02 Instr. ingreso de datos","index":2,"n_rows":26,"n_cols":2,"rows_kept":26,"cut":false,"hidden":false,"merged":[[2,0,3,0],[5,0,10,0],[12,0,13,0],[0,0,0,1],[15,0,17,0]]}
["Instrucciones para el ingreso de datos"]
[]
["Información general sobre el ingreso de datos","• Se ingresa la evaluación de un solo encuestado en una fila. En cada fila hay 106 columnas para ingresar datos. "]
[null,"• La hoja de cálculo está programada para tener 1000 filas de respuestas ingresadas."]
[]
["Importación de datos","• Para importar datos de otro libro de Excel a la hoja [03 Ingreso de datos]:"]
[null,"1. Asegúrese de que el orden de las columnas sea idéntico en ambos archivos."]
[null,"2. En el otro archivo de Excel, seleccione (haga clic y deslice el mouse para resaltar) las celdas que quiera copiar. No resalte filas enteras de una sola vez.\nLas opciones de respuesta en ambos archivos de Excel deben coincidir en cuanto a su ortografía y formateo para que las funciones de resumen del informe funcionen."]
[null,"3. Haga clic con el botón derecho del mouse y seleccione Copiar."]
[null,"4. En la hoja [03 Ingreso de datos] de este libro, haga clic en la celda superior izquierda donde quiera pegar lo que copió.  Haga clic con el botón derecho del mouse y seleccione Pegar Valores (ícono con '123'). Esto garantizará que las listas desplegables sigan estando disponibles después de pegar los datos."]
[null,"• Estas instrucciones también están disponibles en la nota incluida en la celda A4 de la hoja [03 Ingreso de datos]."]
[]
["Listas desplegables","• Las listas desplegables se encuentran en la hoja [06 Listas]. Esta hoja está oculta para prevenir los cambios accidentales, pero se pueden mostrar si se necesita editar las opciones de respuesta (por ejemplo, si usa otro idioma)."]
[null,"• Para mostrar la hoja [06 Listas], haga clic con el botón derecho del mouse en una de las pestañas y seleccione \"Mostrar\". "]
[]
["Filtros","• Los datos en el Informe de respuestas se pueden filtrar para poder ver los resultados de la evaluación por cargo, turno primario de trabajo u otras variables de interés. Los filtros se aplican en la hoja Ingreso de datos."]
[null,"• Por ejemplo, es posible que desee ver solo los resultados de las evaluaciones en las que se marcó \"Personal de enfermería\" como cargo, en la columna E. Cuando se aplique este filtro, en el Informe de respuestas solo aparecerá el subconjunto de respuestas en la columna E que sean \"Personal de enfermería\"."]
[null,"• Para aplicar un filtro, haga clic en el menú desplegable en el encabezado de una columna (en la fila 3) y use el menú de Excel para incluir o excluir respuestas."]
[]
["Columna A (número de encuesta)","• Cada evaluación completada debe tener asignado un número único de encuesta para que sea incluida en el Informe de respuestas. El número de encuesta puede ser cualquier valor (letras o números).\n• Se asigna el número de encuesta durante el ingreso de datos.\n• No se asigna un número de encuesta o este queda en blanco si en la fila faltan respuestas."]
[]
["Columna B (Fecha)","• El formato de fecha es (dd/mm/aaaa)."]
[]
["Columna F (Cargo, otro)","• Si se ingresa \"otro\" como cargo en la columna E, ingrese la respuesta aquí."]
[]
["Columnas G y H (Cantidad de años)","• Solo se pueden ingresar números enteros en estas columnas.\n• Si la cantidad de años es menos de 1 (por ejemplo, 8 meses), ingrese 0; esto aparecerá como \"Menos de 1 año\" en el Informe de respuestas. "]

{"sheet":"03 Ingreso de datos","index":3,"n_rows":1002,"n_cols":102,"rows_kept":1002,"cut":false,"hidden":false,"merged":[[0,67,0,82],[0,83,0,98],[0,0,0,12],[1,34,1,38],[0,13,0,15],[0,28,0,56],[0,58,0,61],[0,62,0,66]]}
["Información del encuestado",null,null,null,null,null,null,null,null,null,null,null,null,"1. Liderazgo y coordinación",null,null,"2A. Vías centrales (vías venosas centrales, vías centrales de inserción periférica)",null,null,null,null,null,null,null,null,null,null,null,"2B. Prácticas relacionadas con las vías centrales",null,null,null,null,null,null,null,null,null,null,null,null,null,null,null,null,null,null,null,null,null,null,null,null,null,null,null,null,null,"3. Catéteres umbilicales ",null,null,null,"4A. Vías intravenosas periféricas",null,null,null,null,"4B. Prácticas relacionadas con las vías intravenosas periféricas",null,null,null,null,null,null,null,null,null,null,null,null,null,null,null,"5. Prácticas en la preparación de medicamentos"]
[null,null,null,null,null,null,null,null,null,null,null,null,null,null,null,null,null,null,null,null,null,null,null,null,null,null,null,null,null,null,null,null,null,null,"7. ¿Practican los miembros del personal de atención médica las siguientes precauciones máximas de barrera estéril al insertar una vía central?"]
["Número de encuesta\n(obligatorio para cada fila de datos)","Fecha\n(dd/mm/aaaa)","Nombre del hospital\n(texto)","Nombre de la unidad\n(texto)","¿Cuál es su cargo?\n(escoja una opción de la lista desplegable)","Cargo, otro:\n(texto)","Cantidad de años desempeñando el cargo \n(solo números)","Cantidad de años en esta unidad\n(solo números)","¿Se ocupa usted de insertar o asistir en la inserción de vías centrales? ","¿Se ocupa usted de mantener o asistir en el mantenimiento de las vías centrales?","¿Se ocupa usted de insertar o asistir en la inserción de vías intravenosas periféricas?","¿Se ocupa usted de mantener o asistir en el mantenimiento de las vías intravenosas periféricas?","\nTurno primario trabajado ","1. ¿Está involucrado el liderazgo de la unidad (médico o de enfermería) en las actividades para la prevención de infecciones sanguíneas?","2. ¿Hay alguna persona en la unidad dedicada a realizar actividades de prevención de infecciones sanguíneas?","3. ¿Revisa la unidad cada caso cuando se produce una infección sanguínea a fin de identificar las potenciales brechas en las prácticas? ","1. ¿Cuenta la unidad con un protocolo para el uso de vías centrales?","2. ¿Cuenta la unidad con kits de inserción de vías centrales listos para usar?","3. ¿Cuenta la unidad con kits de cambio de vendajes listos para usar?","4. ¿Se usan conectores desinfectantes en la unidad?","5. ¿Documenta la unidad las inserciones de vías centrales?","6. ¿Recibió usted capacitación por parte de su hospital en la inserción de vías centrales?\n(Seleccione todas las opciones que correspondan).","7. ¿Recibió usted capacitación por parte de su hospital en el mantenimiento de las vías centrales?\n(Seleccione todas las opciones que correspondan).","8. ¿Incluyó su capacitación en vías centrales el uso de técnicas de inserción asépticas? ","9. ¿Incluyó su capacitación en la inserción de vías centrales precauciones máximas de barrera estéril? ","10. ¿Incluyó su capacitación el uso de técnicas estériles al accesar o manipular el catéter?","11. ¿Incluyó su capacitación la evaluación del sitio de inserción en busca de signos de infección?","12. ¿Incluyó su capacitación el manejo de catéteres de vías intravenosas? \n","1. ¿Proporcionan los médicos una orden escrita para las vías centrales?","2. ¿Se prefieren las vías centrales a las vías periféricas en caso de necesitarse acceso venoso a largo plazo?  ","3. ¿Son insertadas las vías centrales por miembros del personal capacitados en su inserción? ","4. ¿Practican los miembros del personal de atención médica higiene de las manos antes de ponerse los guantes estériles para la inserción? ","5. ¿Se prepara la piel con un antiséptico antes de la inserción?","6. ¿Se deja que el antiséptico se seque al aire antes de la punción de la piel? ","7A. Gorro quirúrgico","7B. Mascarilla","7C. Bata estéril","7D. Guantes estériles","7E. Paño estéril para cubrir al neonato","8. ¿Participan al menos dos miembros del personal de atención médica en la inserción de las vías centrales? ","9. ¿Detienen los miembros del personal de atención médica la inserción de una vía central (no urgente) si no se siguieron los procedimientos adecuados?","10. ¿Se usan vías centrales con la cantidad mínima de lúmenes?     ","11. ¿Se fijan las vías centrales a la piel sin puntos de sutura?","12. ¿Se cubren los sitios de inserción de las vías centrales con un vendaje estéril? \n","13. ¿Se evalúan a diario las vías centrales para asegurarse de que sigan siendo necesarias?","14. ¿Son accesadas y mantenidas las vías centrales solo por miembros del personal de atención médica capacitados? ","15. ¿Se practica higiene de las manos antes de manipular las vías centrales? ","16. ¿Se accesan las vías centrales con dispositivos estériles solamente?      ","17. ¿Se limpian los puertos o conectores de acceso con un antiséptico inmediatamente antes de su uso? ","18. ¿Se prepara la piel con un antiséptico durante los cambios de vendajes? \n","19. ¿Se cambian los vendajes usando una técnica aséptica? \n","20. ¿Se cambian los vendajes inmediatamente cuando se mojan, ensucian o desprenden?","21. ¿Se cambian cada 4 días los catéteres intravenosos usados para las infusiones continuas?\n","22. ¿Se cambian cada 24 horas los catéteres intravenosos que se usan para sangre, productos de sangre o emulsiones de grasa?","23. ¿Se monitorean los sitios de inserción de manera rutinaria en busca de signos de infección?","24. ¿Se retiran con prontitud las vías centrales que ya no se necesitan? ","25. ¿Se retiran inmediatamente las vías centrales si hay algún signo de infección sanguínea relacionada con el catéter o trombosis?","26. ¿Se usa una técnica aséptica para retirar las vías centrales?","1. ¿Tiene la unidad una política sobre la cantidad de tiempo que puede permanecer insertado un catéter venoso umbilical?\n          ","2. ¿Tiene la unidad una política sobre la cantidad de tiempo que puede permanecer insertado un catéter arterial umbilical?\n","3. ¿Evita la unidad usar ungüentos o cremas antibióticas en los sitios de inserción de catéteres umbilicales?                   ","4. ¿Se fijan las vías umbilicales a la piel sin puntos de sutura?   \n","1. ¿Recibió usted capacitación por parte de su hospital en la inserción de vías intravenosas periféricas? \n(Seleccione todas las opciones que correspondan).","2. ¿Recibió usted capacitación por parte de su hospital en el mantenimiento de vías intravenosas periféricas?\n(Seleccione todas las opciones que correspondan).                    ","3. ¿Incluyó su capacitación en vías intravenosas periféricas precauciones para la inserción? ","4. ¿Incluyó su capacitación en vías intravenosas periféricas precauciones para el acceso de las vías intravenosas periféricas?\n","5. ¿Incluyó su capacitación en vías intravenosas periféricas la evaluación del sitio en busca de signos de infección?         ","1. ¿Se practica higiene de las manos antes de ponerse guantes para la inserción de una vía intravenosa periférica?  ","2. ¿Se usan guantes limpios de un solo uso para insertar las vías intravenosas periféricas?","3. ¿Se realiza antisepsia de la piel antes de la inserción de una vía intravenosa periférica? ","4. ¿Se fijan las vías intravenosas periféricas en los neonatos? \n","5.  ¿Documenta la unidad las inserciones de vías intravenosas periféricas?","6. ¿Se practica higiene de las manos antes de accesar una vía intravenosa periférica?\n","7. ¿Se realiza antisepsia de la piel antes de accesar una vía intravenosa periférica?                        ","8. ¿Se desinfectan los puertos o las tapas cada vez que se accesa una vía intravenosa periférica?   ","9. ¿Se irrigan las vías intravenosas periféricas con solución salina estéril después de una infusión? ","10. ¿Se usan jeringas prellenadas para la irrigación con solución salina?   \n","11. ¿Se cambian cada 4 días los catéteres intravenosos usados para las infusiones continuas?","12. ¿Se cambian cada 24 horas los catéteres intravenosos que se usan para sangre, productos de sangre o emulsiones de grasa?                        ","13. ¿Se evalúan a diario las vías intravenosas periféricas para asegurarse de que sigan siendo necesarias?","14. ¿Se retiran inmediatamente las vías intravenosas periféricas cuando ya no son necesarias?                                 ","15. ¿Se revisan regularmente las vías intravenosas periféricas en busca de signos de infección? \n","16. ¿Se retiran con prontitud las vías intravenosas periféricas cuando hay signos de infección?","1. ¿Revisa un farmacéutico los medicamentos que se recetan para neonatos?","2. ¿Se preparan los medicamentos en un área designada?\n","3. ¿Se limpian y desinfectan con regularidad las áreas de preparación de medicamentos?","4. ¿Están a mano los suministros en las áreas donde se preparan los medicamentos? ","5. ¿Se practica higiene de las manos antes de preparar medicamentos?","6. ¿Se desinfectan los tapones de goma (viales) o los cuellos (ampollas) antes de accesar el vial o la ampolla?                                    ","7. ¿Se deja secar al aire el desinfectante antes de accesar el vial o la ampolla?                                                        ","8. ¿Se usa un vial de dosis única para un solo neonato? ","9. ¿Se desechan los viales de dosis única después de un solo uso  (incluso si todavía queda medicamento)?","10. ¿Se usa una nueva aguja y jeringa estéril para accesar los viales de dosis única? ","11. ¿Se usa una nueva aguja y jeringa estéril para accesar los viales de dosis múltiples?                              ","12. ¿Se guardan los viales de dosis múltiples alejados de las cunas de los neonatos? ","13. ¿Se desechan los viales de dosis múltiples dentro de su fecha de vencimiento? ","14. ¿Se mantienen las soluciones para las vías intravenosas libres de punzones o perforaciones de aguja?","15. ¿Se usa un diluyente estéril, como agua o solución salina en viales de 10 ml, para reconstituir los medicamentos? ","16. ¿Se usan las soluciones para vías intravenosas solomente para las infusiones  (es decir que NO se usan para diluir o reconstituir medicamentos)?"]
[]
[]
[]
[]
[]
[]
[]
[]
[]
[]
[]
[]
[]
[]
[]
[]
[]
[]
[]
[]
[]
[]
[]
[]
[]
[]
[]
[]
[]
[]
[]
[]
[]
[]
[]
[]
[]
[]
[]
[]
[]
[]
[]
[]
[]
[]
[]
[]
[]
[]
[]
[]
[]
[]
[]
[]
[]
[]
[]
[]
[]
[]
[]
[]
[]
[]
[]
[]
[]
[]
[]
[]
[]
[]
[]
[]
[]
[]
[]
[]
[]
[]
[]
[]
[]
[]
[]
[]
[]
[]
[]
[]
[]
[]
[]
[]
[]
[]
[]
[]
[]
[]
[]
[]
[]
[]
[]
[]
[]
[]
[]
[]
[]
[]
[]
[]
[]
[]
[]
[]
[]
[]
[]
[]
[]
[]
[]
[]
[]
[]
[]
[]
[]
[]
[]
[]
[]
[]
[]
[]
[]
[]
[]
[]
[]
[]
[]
[]
[]
[]
[]
[]
[]
[]
[]
[]
[]
[]
[]
[]
[]
[]
[]
[]
[]
[]
[]
[]
[]
[]
[]
[]
[]
[]
[]
[]
[]
[]
[]
[]
[]
[]
[]
[]
[]
[]
[]
[]
[]
[]
[]
[]
[]
[]
[]
[]
[]
[]
[]
[]
[]
[]
[]
[]
[]
[]
[]
[]
[]
[]
[]
[]
[]
[]
[]
[]
[]
[]
[]
[]
[]
[]
[]
[]
[]
[]
[]
[]
[]
[]
[]
[]
[]
[]
[]
[]
[]
[]
[]
[]
[]
[]
[]
[]
[]
[]
[]
[]
[]
[]
[]
[]
[]
[]
[]
[]
[]
[]
[]
[]
[]
[]
[]
[]
[]
[]
[]
[]
[]
[]
[]
[]
[]
[]
[]
[]
[]
[]
[]
[]
[]
[]
[]
[]
[]
[]
[]
[]
[]
[]
[]
[]
[]
[]
[]
[]
[]
[]
[]
[]
[]
[]
[]
[]
[]
[]
[]
[]
[]
[]
[]
[]
[]
[]
[]
[]
[]
[]
[]
[]
[]
[]
[]
[]
[]
[]
[]
[]
[]
[]
[]
[]
[]
[]
[]
[]
[]
[]
[]
[]
[]
[]
[]
[]
[]
[]
[]
[]
[]
[]
[]
[]
[]
[]
[]
[]
[]
[]
[]
[]
[]
[]
[]
[]
[]
[]
[]
[]
[]
[]
[]
[]
[]
[]
[]
[]
[]
[]
[]
[]
[]
[]
[]
[]
[]
[]
[]
[]
[]
[]
[]
[]
[]
[]
[]
[]
[]
[]
[]
[]
[]
[]
[]
[]
[]
[]
[]
[]
[]
[]
[]
[]
[]
[]
[]
[]
[]
[]
[]
[]
[]
[]
[]
[]
[]
[]
[]
[]
[]
[]
[]
[]
[]
[]
[]
[]
[]
[]
[]
[]
[]
[]
[]
[]
[]
[]
[]
[]
[]
[]
[]
[]
[]
[]
[]
[]
[]
[]
[]
[]
[]
[]
[]
[]
[]
[]
[]
[]
[]
[]
[]
[]
[]
[]
[]
[]
[]
[]
[]
[]
[]
[]
[]
[]
[]
[]
[]
[]
[]
[]
[]
[]
[]
[]
[]
[]
[]
[]
[]
[]
[]
[]
[]
[]
[]
[]
[]
[]
[]
[]
[]
[]
[]
[]
[]
[]
[]
[]
[]
[]
[]
[]
[]
[]
[]
[]
[]
[]
[]
[]
[]
[]
[]
[]
[]
[]
[]
[]
[]
[]
[]
[]
[]
[]
[]
[]
[]
[]
[]
[]
[]
[]
[]
[]
[]
[]
[]
[]
[]
[]
[]
[]
[]
[]
[]
[]
[]
[]
[]
[]
[]
[]
[]
[]
[]
[]
[]
[]
[]
[]
[]
[]
[]
[]
[]
[]
[]
[]
[]
[]
[]
[]
[]
[]
[]
[]
[]
[]
[]
[]
[]
[]
[]
[]
[]
[]
[]
[]
[]
[]
[]
[]
[]
[]
[]
[]
[]
[]
[]
[]
[]
[]
[]
[]
[]
[]
[]
[]
[]
[]
[]
[]
[]
[]
[]
[]
[]
[]
[]
[]
[]
[]
[]
[]
[]
[]
[]
[]
[]
[]
[]
[]
[]
[]
[]
[]
[]
[]
[]
[]
[]
[]
[]
[]
[]
[]
[]
[]
[]
[]
[]
[]
[]
[]
[]
[]
[]
[]
[]
[]
[]
[]
[]
[]
[]
[]
[]
[]
[]
[]
[]
[]
[]
[]
[]
[]
[]
[]
[]
[]
[]
[]
[]
[]
[]
[]
[]
[]
[]
[]
[]
[]
[]
[]
[]
[]
[]
[]
[]
[]
[]
[]
[]
[]
[]
[]
[]
[]
[]
[]
[]
[]
[]
[]
[]
[]
[]
[]
[]
[]
[]
[]
[]
[]
[]
[]
[]
[]
[]
[]
[]
[]
[]
[]
[]
[]
[]
[]
[]
[]
[]
[]
[]
[]
[]
[]
[]
[]
[]
[]
[]
[]
[]
[]
[]
[]
[]
[]
[]
[]
[]
[]
[]
[]
[]
[]
[]
[]
[]
[]
[]
[]
[]
[]
[]
[]
[]
[]
[]
[]
[]
[]
[]
[]
[]
[]
[]
[]
[]
[]
[]
[]
[]
[]
[]
[]
[]
[]
[]
[]
[]
[]
[]
[]
[]
[]
[]
[]
[]
[]
[]
[]
[]
[]
[]
[]
[]
[]
[]
[]
[]
[]
[]
[]
[]
[]
[]
[]
[]
[]
[]
[]
[]
[]
[]
[]
[]
[]
[]
[]
[]
[]
[]
[]
[]
[]
[]
[]
[]
[]
[]
[]
[]
[]
[]
[]
[]
[]
[]
[]
[]
[]
[]
[]
[]
[]
[]
[]
[]
[]
[]
[]
[]
[]
[]
[]
[]
[]
[]
[]
[]
[]
[]
[]
[]
[]
[]
[]
[]
[]
[]
[]
[]
[]
[]
[]
[]
[]
[]
[]
[]
[]
[]
[]
[]
[]
[]
[]
[]
[]
[]
[]
[]
[]
[]
[]
[]
[]
[]
[]
[]
[]
[]
[]
[]
[]
[]
[]
[]
[]
[]
[]
[]
[]
[]
[]
[]
[]
[]
[]
[]
[]
[]
[]
[]
[]
[]
[]
[]
[]
[]
[]
[]
[]
[]
[]
[]
[]
[]
[]
[]
[]
[]
[]
[]
[]
[]
[]
[]
[]
[]
[]
[]
[]
[]
[]
[]
[]
[null,null,null,null,null,null,null,null,null,null,null,null,null,null,null,null,null,null,null,null,null,null,null,null,null,null,null,null,null,null,null,null,null,null,null,null,null,null,null,null,null,null,null,null,null,null,null,null,null,null,null,null,null,null,null,null,null,null,null,null,null,null,null,null,null,null,null,null,null,null,null,null,null,null,null,null,null,null,null,null,null,null,null,null,null,null,null,null,null,null,null,null,null,null,null,null,null,null,null,null,{"$f":"IF(A1002<>\"\",IF(CH1002=\"always\", 1, IF(CH1002=\"often\", 0.75, IF(CH1002=\"sometimes\", 0.5, IF(CH1002=\"rarely\", 0.25, 0))))+IF(CI1002=\"always\", 1, IF(CI1002=\"often\", 0.75, IF(CI1002=\"sometimes\", 0.5, IF(CI1002=\"rarely\", 0.25, 0))))+IF(CJ1002=\"always\", 1, IF(CJ1002=\"often\", 0.75, IF(CJ1002=\"sometimes\", 0.5, IF(CJ1002=\"rarely\", 0.25, 0))))+IF(CK1002=\"always\", 1, IF(CK1002=\"often\", 0.75, IF(CK1002=\"sometimes\", 0.5, IF(CK1002=\"rarely\", 0.25, 0))))+IF(#REF!=\"always\", 1, IF(#REF!=\"often\", 0.75, IF(#REF!=\"sometimes\", 0.5, IF(#REF!=\"rarely\", 0.25, 0))))+IF(CL1002=\"always\", 1, IF(CL1002=\"often\", 0.75, IF(CL1002=\"sometimes\", 0.5, IF(CL1002=\"rarely\", 0.25, 0))))+IF(CN1002=\"always\", 1, IF(CN1002=\"often\", 0.75, IF(CN1002=\"sometimes\", 0.5, IF(CN1002=\"rarely\", 0.25, 0))))+IF(CO1002=\"always\", 1, IF(CO1002=\"often\", 0.75, IF(CO1002=\"sometimes\", 0.5, IF(CO1002=\"rarely\", 0.25, 0))))+IF(#REF!=\"always\", 1, IF(#REF!=\"often\", 0.75, IF(#REF!=\"sometimes\", 0.5, IF(#REF!=\"rarely\", 0.25, 0))))+IF(CP1002=\"always\", 1, IF(CP1002=\"often\", 0.75, IF(CP1002=\"sometimes\", 0.5, IF(CP1002=\"rarely\", 0.25, 0))))+IF(CS1002=\"always\", 1, IF(CS1002=\"often\", 0.75, IF(CS1002=\"sometimes\", 0.5, IF(CS1002=\"rarely\", 0.25, 0))))+IF(CT1002=\"always\", 1, IF(CT1002=\"often\", 0.75, IF(CT1002=\"sometimes\", 0.5, IF(CT1002=\"rarely\", 0.25, 0))))+IF(#REF!=\"always\", 1, IF(#REF!=\"often\", 0.75, IF(#REF!=\"sometimes\", 0.5, IF(#REF!=\"rarely\", 0.25, 0))))+IF(CU1002=\"always\", 1, IF(CU1002=\"often\", 0.75, IF(CU1002=\"sometimes\", 0.5, IF(CU1002=\"rarely\", 0.25, 0))))+IF(#REF!=\"always\", 1, IF(#REF!=\"often\", 0.75, IF(#REF!=\"sometimes\", 0.5, IF(#REF!=\"rarely\", 0.25, 0))))+IF(#REF!=\"always\", 1, IF(#REF!=\"often\", 0.75, IF(#REF!=\"sometimes\", 0.5, IF(#REF!=\"rarely\", 0.25, 0))))+IF(#REF!=\"always\", 1, IF(#REF!=\"often\", 0.75, IF(#REF!=\"sometimes\", 0.5, IF(#REF!=\"rarely\", 0.25, 0))))+IF(#REF!=\"always\", 1, IF(#REF!=\"often\", 0.75, IF(#REF!=\"sometimes\", 0.5, IF(#REF!=\"rarely\", 0.25, 0))))+IF(#REF!=\"always\", 1, IF(#REF!=\"often\", 0.75, IF(#REF!=\"sometimes\", 0.5, IF(#REF!=\"rarely\", 0.25, 0))))+IF(#REF!=\"always\", 1, IF(#REF!=\"often\", 0.75, IF(#REF!=\"sometimes\", 0.5, IF(#REF!=\"rarely\", 0.25, 0))))+IF(#REF!=\"always\", 1, IF(#REF!=\"often\", 0.75, IF(#REF!=\"sometimes\", 0.5, IF(#REF!=\"rarely\", 0.25, 0)))), \" \")","v":" "},{"$f":"IF(A1002<>\"\",(IF(#REF!=\"yes\", 1, IF(#REF!=\"Clinical staff not responsible for cleaning/disinfection of supplies\",1, 0)) + IF(#REF!=\"yes\", 1, 0)+ IF(#REF!=\"yes\", 1, 0)+  IF(#REF!=\"yes\", 1, IF(#REF!=\"No parenteral nutrition on unit\", 1, 0))), \" \")","v":" "}]

{"sheet":"04 Instr. Informe de respuestas","index":4,"n_rows":25,"n_cols":2,"rows_kept":25,"cut":false,"hidden":false,"merged":[[23,0,24,0],[1,0,1,1],[3,0,4,0],[20,0,21,0],[10,0,13,0],[15,0,16,0]]}
[]
["Instrucciones del Informe de respuestas"]
[]
["Información general sobre el Informe de respuestas","• Las respuestas ingresadas en la hoja de ingreso de datos se agregan en el Informe de respuestas. "]
[null,"• Puede adaptar el Informe de respuestas según sea necesario usando las instrucciones a continuación y los recuadros con instrucciones ubicados a la derecha del Informe de respuestas."]
[]
["Sección de resumen","• La primera sección del Informe de respuestas es el resumen de la evaluación. Después de revisar los resultados de la evaluación en el informe completo, usted escribirá las declaraciones de resumen (“Fortalezas generales” y “Oportunidades generales para la mejora”). La sección de resumen se imprimirá como la página 1 cuando guarde el documento en formato PDF."]
[]
["Cantidad de evaluaciones","• El recuadro Vista actual muestra la cantidad de evaluaciones que se están analizando actualmente en el Informe de las respuestas. Si hay un filtro de datos aplicado en la hoja Ingreso de datos, este número será menor al número total de evaluaciones. "]
[]
["Fortalezas generales y oportunidades generales para la mejora","• Aunque esta sección aparezca primero en la hoja Informe de las respuestas, la completará al final. "]
[null,"• Usando \"Oportunidades para la mejora por sección de la evaluación\" y los recuadros resaltados en rojo y verde en los totales de las respuestas (filas 63-176), identifique las preguntas o temas que destacará como fortalezas generales y oportunidades generales para la mejora. Escríbalas manualmente, o cópielas y péguelas, en los recuadros \"Fortalezas generales\" y \"Oportunidades generales para la mejora. "]
[null,"• Revise la sección de información del encuestado para obtener el contexto al momento de interpretar los datos.  "]
[null,"• Cuando presente los hallazgos al liderazgo o al personal, estos recuadros proporcionan un resumen general de la evaluación y pueden ayudar a enfocar los próximos pasos. "]
[]
["Oportunidades para la mejora por sección de la evaluación","• Complete esta sección después de que haya revisado los totales de las respuestas (filas 63-176)."]
[null,"• Cuando revise los totales de las respuestas, identifique las preguntas donde las respuestas estén resaltadas en rojo.  Puede copiar y pegar la pregunta al recuadro pertinente debajo de \"Oportunidades para la mejora por sección de la evaluación\" o quizás quiera reformular la pregunta como una declaración."]
[]
["Información del encuestado","• Las preguntas de la sección \"Información del encuestado\" de la evaluación se agregan en forma de tablas en esta sección. Si se aplica un filtro de datos, solo la cantidad actual de evaluaciones que se están analizando se verá reflejada en las tablas de Información del encuestado."]
[]
["Valores límite de los porcentajes","• Esta sección establece los porcentajes que categorizan las preguntas como una \"Fortaleza\" o una \"Oportunidad para la mejora\"."]
[null,"• Puede ajustar estos porcentajes para aumentar o reducir el umbral para la categorización de las preguntas como \"Fortalezas\" u \"Oportunidades para la mejora\". "]
[]
["Guardar en formato PDF","• Puede guardar el Informe de respuestas en formato PDF para que se pueda imprimir o compartir electrónicamente. "]
[null,"• La primera página del PDF es el resumen y es lo que más útil podría ser para compartir los resultados con el liderazgo y el personal. Para aquellos que deseen ver los resultados de la evaluación pregunta por pregunta, se puede compartir el informe completo."]

{"sheet":"05 Informe de respuestas","index":5,"n_rows":174,"n_cols":12,"rows_kept":174,"cut":false,"hidden":false,"merged":[[51,2,51,3],[50,7,51,8],[49,7,49,11],[50,9,51,9],[81,1,81,6],[73,1,73,5],[74,1,74,5],[67,1,67,7],[68,1,68,7],[69,1,69,7],[70,1,70,7],[71,1,71,7],[50,11,51,11],[60,1,60,11],[56,1,56,3],[57,1,57,3],[55,6,55,11],[56,6,56,10],[57,6,57,10],[55,1,55,4],[50,10,51,10],[62,1,62,7],[53,1,53,11],[66,1,66,5],[47,2,47,3],[49,2,49,3],[50,2,50,3],[25,1,25,11],[45,7,45,9],[46,10,47,10],[47,7,47,9],[39,2,39,3],[41,2,41,3],[42,2,42,3],[46,7,46,9],[35,2,35,3],[37,2,37,3],[30,2,30,3],[31,2,31,3],[32,2,32,3],[33,2,33,3],[38,2,38,3],[46,2,46,3],[43,2,43,3],[45,2,45,3],[29,2,29,3],[34,2,34,3],[23,6,23,11],[13,1,13,5],[13,6,13,11],[14,6,14,11],[15,6,15,11],[23,1,23,5],[22,1,22,5],[20,6,20,11],[21,6,21,11],[17,1,17,5],[16,1,16,5],[15,1,15,5],[22,6,22,11],[5,5,5,11],[6,5,6,11],[8,5,8,11],[9,5,9,11],[11,1,11,5],[14,1,14,5],[7,1,9,4],[21,1,21,5],[11,6,11,11],[18,6,18,11],[10,1,10,11],[17,6,17,11],[19,6,19,11],[12,6,12,11],[20,1,20,5],[19,1,19,5],[18,1,18,5],[16,6,16,11],[6,1,6,2],[88,1,88,4],[105,1,105,4],[162,1,162,4],[96,2,96,4],[133,1,133,6],[134,1,134,6],[135,1,135,6],[130,1,130,5],[129,1,129,5],[122,1,122,7],[103,1,103,4],[107,1,107,4],[98,1,98,4],[153,1,153,4],[100,1,100,4],[104,1,104,4],[143,1,143,4],[106,1,106,4],[112,1,112,4],[108,1,108,4],[114,1,114,4],[92,2,92,3],[93,2,93,3],[94,2,94,3],[95,2,95,3],[111,1,111,4],[113,1,113,4],[149,1,149,4],[144,1,144,4],[160,1,160,4],[118,1,118,4],[121,1,121,5],[109,1,109,4],[157,1,157,4],[159,1,159,4],[131,1,131,11],[117,1,117,4],[116,1,116,4],[147,1,147,4],[148,1,148,4],[145,1,145,4],[150,1,150,4],[151,1,151,4],[152,1,152,4],[154,1,154,4],[146,1,146,4],[137,1,137,11],[156,1,156,11],[0,1,0,11],[1,1,1,11],[4,1,4,4],[61,1,61,5],[59,1,59,10],[99,1,99,4],[86,1,86,4],[158,1,158,4],[97,1,97,4],[132,1,132,4],[141,1,141,4],[138,1,138,2],[4,5,4,11],[7,5,7,11],[12,1,12,5],[139,1,139,4],[140,1,140,4],[87,1,87,4],[85,1,85,4],[110,1,110,4],[89,1,89,4],[90,1,90,4],[115,1,115,4],[2,1,2,11],[167,1,167,4],[168,1,168,4],[166,1,166,4],[165,1,165,4],[163,1,163,4],[164,1,164,4],[186,1,186,11],[175,9,175,10],[175,5,175,6],[172,1,172,4],[170,1,170,4],[173,1,173,4],[181,5,181,6],[177,9,177,10],[171,1,171,4],[184,9,184,10],[176,1,176,4],[185,5,185,6],[185,1,185,4],[183,1,183,4],[180,5,180,6],[177,1,177,4],[177,5,177,6],[178,1,178,4],[202,2,202,11],[203,2,203,11],[204,2,204,11],[205,2,205,11],[206,2,206,11],[201,2,201,11],[194,2,194,11],[188,2,188,11],[189,2,189,11],[190,2,190,11],[193,2,193,11],[195,2,195,11],[196,2,196,11],[197,2,197,11],[200,2,200,11],[198,2,198,11],[199,2,199,11],[191,2,191,11],[192,2,192,11],[58,6,58,10],[84,1,84,4],[76,1,76,4],[63,1,63,7],[64,1,64,7],[77,1,77,6],[78,1,78,6],[79,1,79,6],[80,1,80,6],[75,1,75,11],[82,1,82,11],[65,1,65,11],[83,1,83,11],[91,1,91,11],[142,1,142,4],[169,1,169,4],[187,1,187,11],[175,1,175,4],[176,5,176,6],[181,9,181,10],[161,1,161,4],[123,1,123,7],[124,1,124,7],[125,1,125,7],[102,1,102,11],[120,1,120,11],[127,1,127,11],[183,5,183,6],[182,5,182,6],[182,1,182,4],[180,1,180,4],[178,5,178,6],[179,9,179,10],[184,5,184,6],[184,1,184,4],[179,1,179,4],[179,5,179,6]]}
[null,"Evaluación para la prevención de las infecciones sanguíneas neonatales: Informe de respuestas"]
[null,"Nombre de la unidad"]
[null,"Resumen"]
[]
[null,"Cantidad de evaluaciones",null,null,null,"Fortalezas generales1"]
[null,"Vista actual",{"$f":"SUBTOTAL(3,'03 Ingreso de datos'!$A4:$A1001)","v":0},"Total",{"$f":"COUNTA('03 Ingreso de datos'!$A4:$A1001)","v":0}]
[]
[null,"Nota: Los resultados son para mejorar la calidad y no deben usarse como un método de comparación con otras unidades. Las respuestas son autorreportadas y podrían no representar los conocimientos y las percepciones entre todos los miembros del personal.  ",null,null,null,"Oportunidades generales para la mejora2"]
[]
[]
[null,"Oportunidades para la mejora por sección de la evaluación2"]
[null,"1. Liderazgo y coordinación",null,null,null,null,"4. Vías intravenosas periféricas"]
[]
[]
[null,"2A y 2B. Vías centrales"]
[]
[]
[" "]
[null,null,null,null,null,null,"5. Preparación de medicamentos"]
[]
[]
[null,"3. Catéteres umbilicales"]
[]
[]
[]
[null,"Información del encuestado"]
[]
[null,null,null,null,"# de encuestados","% de encuestados",null,null,null,"# de encuestados","% de\nencuestados"]
[null,null,"Cargo",null,null,null,null,null,"Turno primario "]
[null,null,"Personal de enfermería",null,{"$f":"SUMPRODUCT(SUBTOTAL(3,OFFSET('03 Ingreso de datos'!E3, ROW('03 Ingreso de datos'!E4:E1001)-ROW('03 Ingreso de datos'!$E$3),,1)),--(ISNUMBER(MATCH('03 Ingreso de datos'!E4:E1001,{\"Personal de enfermería\"},0))))","v":0},{"$f":"IFERROR(E30/$C$6, \" \")","v":" "},null,null,"Día",{"$f":"SUMPRODUCT(SUBTOTAL(3,OFFSET('03 Ingreso de datos'!M3, ROW('03 Ingreso de datos'!M4:M1001)-ROW('03 Ingreso de datos'!$M$3),,1)),--(ISNUMBER(MATCH('03 Ingreso de datos'!M4:M1001,{\"Día\"},0))))","v":0},{"$f":"IFERROR(J30/$C$6, \" \")","v":" "}]
[null,null,"Técnico de enfermería",null,{"$f":"SUMPRODUCT(SUBTOTAL(3,OFFSET('03 Ingreso de datos'!E3, ROW('03 Ingreso de datos'!E4:E1001)-ROW('03 Ingreso de datos'!$E$3),,1)),--(ISNUMBER(MATCH('03 Ingreso de datos'!E4:E1001,{\"Técnico de enfermería\"},0))))","v":0}," ",null,null,"Noche",{"$f":"SUMPRODUCT(SUBTOTAL(3,OFFSET('03 Ingreso de datos'!M3, ROW('03 Ingreso de datos'!M4:M1001)-ROW('03 Ingreso de datos'!$M$3),,1)),--(ISNUMBER(MATCH('03 Ingreso de datos'!M4:M1001,{\"Noche\"},0))))","v":0},{"$f":"IFERROR(J31/$C$6, \" \")","v":" "}]
[null,null,"Médico",null,{"$f":"SUMPRODUCT(SUBTOTAL(3,OFFSET('03 Ingreso de datos'!E3, ROW('03 Ingreso de datos'!E4:E1001)-ROW('03 Ingreso de datos'!$E$3),,1)),--(ISNUMBER(MATCH('03 Ingreso de datos'!E4:E1001,{\"Médico\"},0))))","v":0}," ",null,null,"Ambos",{"$f":"SUMPRODUCT(SUBTOTAL(3,OFFSET('03 Ingreso de datos'!M3, ROW('03 Ingreso de datos'!M4:M1001)-ROW('03 Ingreso de datos'!$M$3),,1)),--(ISNUMBER(MATCH('03 Ingreso de datos'!M4:M1001,{\"Ambos\"},0))))","v":0},{"$f":"IFERROR(J32/$C$6, \" \")","v":" "}]
[null,null,"Profesional de IPC",null,{"$f":"SUMPRODUCT(SUBTOTAL(3,OFFSET('03 Ingreso de datos'!E3,ROW('03 Ingreso de datos'!E4:E1001)-ROW('03 Ingreso de datos'!$E$3),,1)),--(ISNUMBER(MATCH('03 Ingreso de datos'!E4:E1001,{\"Profesional de IPC\"},0))))","v":0}," ",null,null,"Años de experiencia"]
[null,null,"Farmacéutico",null,{"$f":"SUMPRODUCT(SUBTOTAL(3,OFFSET('03 Ingreso de datos'!E3,ROW('03 Ingreso de datos'!E4:E1001)-ROW('03 Ingreso de datos'!$E$3),,1)),--(ISNUMBER(MATCH('03 Ingreso de datos'!E4:E1001,{\"Farmacéutico\"},0))))","v":0}," ",null,null,"Menos de 1",{"$f":"SUMPRODUCT(SUBTOTAL(2,OFFSET('03 Ingreso de datos'!G3,ROW('03 Ingreso de datos'!G4:G1001)-ROW('03 Ingreso de datos'!$G$3),0)),('03 Ingreso de datos'!G4:G1001<1)+0)","v":0},{"$f":"IFERROR(J34/$C$6, \" \")","v":" "}]
[null,null,"Otro",null,{"$f":"SUMPRODUCT(SUBTOTAL(3,OFFSET('03 Ingreso de datos'!E3,ROW('03 Ingreso de datos'!E4:E1001)-ROW('03 Ingreso de datos'!$E$3),,1)),--(ISNUMBER(MATCH('03 Ingreso de datos'!E4:E1001,{\"Otro\"},0))))","v":0}," ",null,null,"De 1 a 5 años",{"$f":"SUMPRODUCT(SUBTOTAL(2,OFFSET('03 Ingreso de datos'!G3,ROW('03 Ingreso de datos'!G4:G1001)-ROW('03 Ingreso de datos'!$G$3),0)),('03 Ingreso de datos'!G4:G1001>=1)*('03 Ingreso de datos'!G4:G1001<=5.5)+0)","v":0},{"$f":"IFERROR(J35/$C$6, \" \")","v":" "}]
[null,null,"Faltante",null,{"$f":"$C$6-SUM(E30:E35)","v":0},"--",null,null,"De 6 a 10 años",{"$f":"SUMPRODUCT(SUBTOTAL(2,OFFSET('03 Ingreso de datos'!G3,ROW('03 Ingreso de datos'!G4:G1001)-ROW('03 Ingreso de datos'!$G$3),0)),('03 Ingreso de datos'!G4:G1001>5.5)*('03 Ingreso de datos'!G4:G1001<=10)+0)","v":0},{"$f":"IFERROR(J36/$C$6, \" \")","v":" "}]
[null,null,"Insertar o asistir en la inserción de vías centrales",null,null,null,null,null,"Más de 10 años",{"$f":"SUMPRODUCT(SUBTOTAL(2,OFFSET('03 Ingreso de datos'!G3,ROW('03 Ingreso de datos'!G4:G1001)-ROW('03 Ingreso de datos'!$G$3),0)),('03 Ingreso de datos'!G4:G1001>10)+0)","v":0},{"$f":"IFERROR(J37/$C$6, \" \")","v":" "}]
[null,null,"Sí",null,{"$f":"SUMPRODUCT(SUBTOTAL(3,OFFSET('03 Ingreso de datos'!I3, ROW('03 Ingreso de datos'!I4:I1001)-ROW('03 Ingreso de datos'!$I$3),,1)),--(ISNUMBER(MATCH('03 Ingreso de datos'!I4:I1001,{\"Sí\"},0))))","v":0},{"$f":"IFERROR(E38/$C$6, \"\")","v":""},null,null,"Faltante",{"$f":"$C$6-SUM(J34:J37)","v":0},"--"]
[null,null,"No",null,{"$f":"SUMPRODUCT(SUBTOTAL(3,OFFSET('03 Ingreso de datos'!I3, ROW('03 Ingreso de datos'!I4:I1001)-ROW('03 Ingreso de datos'!$I$3),,1)),--(ISNUMBER(MATCH('03 Ingreso de datos'!I4:I1001,{\"No\"},0))))","v":0},{"$f":"IFERROR(E39/$C$6, \"\")","v":""},null,null,"Años de experiencia en esta unidad"]
[null,null,"Faltante",null,{"$f":"$C$6-SUM(E38:E39)","v":0},"--",null,null,"Menos de 1",{"$f":"SUMPRODUCT(SUBTOTAL(2,OFFSET('03 Ingreso de datos'!H3,ROW('03 Ingreso de datos'!H4:H1001)-ROW('03 Ingreso de datos'!$H$3),0)),('03 Ingreso de datos'!H4:H1001<1)+0)","v":0},{"$f":"IFERROR(J40/$C$6, \" \")","v":" "}]
[null,null,"Mantener o asistir en el mantenimiento de vías centrales",null,null,null,null,null,"De 1 a 5 años",{"$f":"SUMPRODUCT(SUBTOTAL(2,OFFSET('03 Ingreso de datos'!H3,ROW('03 Ingreso de datos'!H4:H1001)-ROW('03 Ingreso de datos'!$H$3),0)),('03 Ingreso de datos'!H4:H1001>=1)*('03 Ingreso de datos'!H4:H1001<=5.5)+0)","v":0},{"$f":"IFERROR(J41/$C$6, \" \")","v":" "}]
[null,null,"Sí",null,{"$f":"SUMPRODUCT(SUBTOTAL(3,OFFSET('03 Ingreso de datos'!J3,ROW('03 Ingreso de datos'!J4:J1001)-ROW('03 Ingreso de datos'!$J$3),,1)),--(ISNUMBER(MATCH('03 Ingreso de datos'!J4:J1001,{\"Sí\"},0))))","v":0},{"$f":"IFERROR(E42/$C$6, \"\")","v":""},null,null,"De 6 a 10 años",{"$f":"SUMPRODUCT(SUBTOTAL(2,OFFSET('03 Ingreso de datos'!H3,ROW('03 Ingreso de datos'!H4:H1001)-ROW('03 Ingreso de datos'!$H$3),0)),('03 Ingreso de datos'!H4:H1001>5.5)*('03 Ingreso de datos'!H4:H1001<=10)+0)","v":0},{"$f":"IFERROR(J42/$C$6, \" \")","v":" "}]
[null,null,"No",null,{"$f":"SUMPRODUCT(SUBTOTAL(3,OFFSET('03 Ingreso de datos'!J3,ROW('03 Ingreso de datos'!J4:J1001)-ROW('03 Ingreso de datos'!$J$3),,1)),--(ISNUMBER(MATCH('03 Ingreso de datos'!J4:J1001,{\"No\"},0))))","v":0},{"$f":"IFERROR(E43/$C$6, \"\")","v":""},null,null,"Más de 10 años",{"$f":"SUMPRODUCT(SUBTOTAL(2,OFFSET('03 Ingreso de datos'!H3,ROW('03 Ingreso de datos'!H4:H1001)-ROW('03 Ingreso de datos'!$H$3),0)),('03 Ingreso de datos'!H4:H1001>10)+0)","v":0},{"$f":"IFERROR(J43/$C$6, \" \")","v":" "}]
[null,null,"Faltante",null,{"$f":"$C$6-SUM(E42:E43)","v":0},"--",null,null,"Faltante",{"$f":"$C$6-SUM(J40:J43)","v":0},"--"]
[null,null,"Insertar o asistir en la inserción de vías i.v. periféricas"]
[null,null,"Sí",null,{"$f":"SUMPRODUCT(SUBTOTAL(3,OFFSET('03 Ingreso de datos'!K3,ROW('03 Ingreso de datos'!K4:K1001)-ROW('03 Ingreso de datos'!$K$3),,1)),--(ISNUMBER(MATCH('03 Ingreso de datos'!K4:K1001,{\"Sí\"},0))))","v":0},{"$f":"IFERROR(E46/$C$6, \"\")","v":""}]
[null,null,"No",null,{"$f":"SUMPRODUCT(SUBTOTAL(3,OFFSET('03 Ingreso de datos'!K3,ROW('03 Ingreso de datos'!K4:K1001)-ROW('03 Ingreso de datos'!$K$3),,1)),--(ISNUMBER(MATCH('03 Ingreso de datos'!K4:K1001,{\"No\"},0))))","v":0},{"$f":"IFERROR(E47/$C$6, \"\")","v":""},null,null,null,null,{"$f":"IF(E6=C6, \"No\", \"Sí\")","v":"No"}]
[null,null,"Faltante",null,{"$f":"$C$6-SUM(E46:E47)","v":0},"--",null,"¿Se aplicó algún filtro?"]
[null,null,"Mantener/asistir en el mantenimiento de vías i.v. periféricas"]
[null,null,"Sí",null,{"$f":"SUMPRODUCT(SUBTOTAL(3,OFFSET('03 Ingreso de datos'!L3,ROW('03 Ingreso de datos'!L4:L1001)-ROW('03 Ingreso de datos'!$L$3),,1)),--(ISNUMBER(MATCH('03 Ingreso de datos'!L4:L1001,{\"Sí\"},0))))","v":0},{"$f":"IFERROR(E50/$C$6, \"\")","v":""},null,"Vista actual"]
[null,null,"No",null,{"$f":"SUMPRODUCT(SUBTOTAL(3,OFFSET('03 Ingreso de datos'!L3,ROW('03 Ingreso de datos'!L4:L1001)-ROW('03 Ingreso de datos'!$L$3),,1)),--(ISNUMBER(MATCH('03 Ingreso de datos'!L4:L1001,{\"No\"},0))))","v":0},{"$f":"IFERROR(E51/$C$6, \"\")","v":""},null,"# de evaluaciones:",null,{"$f":"C6","v":0},"% de evaluaciones:",{"$f":"IFERROR(C6/E6, \"0\")","v":"0"}]
[null,null,"Faltante",null,{"$f":"$C$6-SUM(E50:E51)","v":0},"--"]
[]
[null,"Valores límite de los porcentajes"]
[]
[null,"Fortalezas",null,null,null,null,"Oportunidades para la mejora"]
[null,"Sí ≥",null,null,0.75,null,"No sabe ≥",null,null,null,null,0.33]
[null,"Total de (Casi siempre + Siempre) ≥",null,null,0.75,null,"Total de (No + No sabe) ≥",null,null,null,null,0.495]
[null,null,null,null,null,null,"Total de (Nunca + Casi nunca + A veces +No sabe) ≥",null,null,null,null,0.495]
[]
[null,"1. Liderazgo y coordinación"]
[null,null,null,null,null,null,null,null,"Sí","  No","No sabe","# de respuestas"]
[null,"1. ¿Está involucrado el liderazgo de la unidad (médico o de enfermería) en las actividades para la prevención de infecciones sanguíneas?",null,null,null,null,null,null,{"$f":"IFERROR((SUMPRODUCT(SUBTOTAL(3,OFFSET('03 Ingreso de datos'!N4,ROW('03 Ingreso de datos'!N4:N1001)-ROW('03 Ingreso de datos'!N4),0)),('03 Ingreso de datos'!N4:N1001=\"Sí\")+0))/(_xlfn.AGGREGATE(3,5,'03 Ingreso de datos'!N4:N1001)), 0)","v":0},{"$f":"IFERROR((SUMPRODUCT(SUBTOTAL(3,OFFSET('03 Ingreso de datos'!N4,ROW('03 Ingreso de datos'!N4:N1001)-ROW('03 Ingreso de datos'!N4),0)),('03 Ingreso de datos'!N4:N1001=\"No\")+0))/(_xlfn.AGGREGATE(3,5,'03 Ingreso de datos'!N4:N1001)), 0)","v":0},{"$f":"IFERROR((SUMPRODUCT(SUBTOTAL(3,OFFSET('03 Ingreso de datos'!N4,ROW('03 Ingreso de datos'!N4:N1001)-ROW('03 Ingreso de datos'!N4),0)),('03 Ingreso de datos'!N4:N1001=\"No sabe\")+0))/(_xlfn.AGGREGATE(3,5,'03 Ingreso de datos'!N4:N1001)), 0)","v":0},{"$f":"SUBTOTAL(3,'03 Ingreso de datos'!N4:N1001)","v":0}]
[null,"2. ¿Hay alguna persona en la unidad dedicada a realizar actividades de prevención de infecciones sanguíneas?",null,null,null,null,null,null,{"$f":"IFERROR((SUMPRODUCT(SUBTOTAL(3,OFFSET('03 Ingreso de datos'!O4,ROW('03 Ingreso de datos'!O4:O1001)-ROW('03 Ingreso de datos'!O4),0)),('03 Ingreso de datos'!O4:O1001=\"Sí\")+0))/(_xlfn.AGGREGATE(3,5,'03 Ingreso de datos'!O4:O1001)), 0)","v":0},{"$f":"IFERROR((SUMPRODUCT(SUBTOTAL(3,OFFSET('03 Ingreso de datos'!O4,ROW('03 Ingreso de datos'!O4:O1001)-ROW('03 Ingreso de datos'!O4),0)),('03 Ingreso de datos'!O4:O1001=\"No\")+0))/(_xlfn.AGGREGATE(3,5,'03 Ingreso de datos'!O4:O1001)), 0)","v":0},{"$f":"IFERROR((SUMPRODUCT(SUBTOTAL(3,OFFSET('03 Ingreso de datos'!O4,ROW('03 Ingreso de datos'!O4:O1001)-ROW('03 Ingreso de datos'!O4),0)),('03 Ingreso de datos'!O4:O1001=\"No sabe\")+0))/(_xlfn.AGGREGATE(3,5,'03 Ingreso de datos'!O4:O1001)), 0)","v":0},{"$f":"SUBTOTAL(3,'03 Ingreso de datos'!O4:O1001)","v":0}]
[null,"3. ¿Revisa la unidad cada caso cuando se produce una infección sanguínea a fin de identificar las potenciales brechas en las prácticas?",null,null,null,null,null,null,{"$f":"IFERROR((SUMPRODUCT(SUBTOTAL(3,OFFSET('03 Ingreso de datos'!P4,ROW('03 Ingreso de datos'!P4:P1001)-ROW('03 Ingreso de datos'!P4),0)),('03 Ingreso de datos'!P4:P1001=\"Sí\")+0))/(_xlfn.AGGREGATE(3,5,'03 Ingreso de datos'!P4:P1001)), 0)","v":0},{"$f":"IFERROR((SUMPRODUCT(SUBTOTAL(3,OFFSET('03 Ingreso de datos'!P4,ROW('03 Ingreso de datos'!P4:P1001)-ROW('03 Ingreso de datos'!P4),0)),('03 Ingreso de datos'!P4:P1001=\"No\")+0))/(_xlfn.AGGREGATE(3,5,'03 Ingreso de datos'!P4:P1001)), 0)","v":0},{"$f":"IFERROR((SUMPRODUCT(SUBTOTAL(3,OFFSET('03 Ingreso de datos'!P4,ROW('03 Ingreso de datos'!P4:P1001)-ROW('03 Ingreso de datos'!P4),0)),('03 Ingreso de datos'!P4:P1001=\"No sabe\")+0))/(_xlfn.AGGREGATE(3,5,'03 Ingreso de datos'!P4:P1001)), 0)","v":0},{"$f":"SUBTOTAL(3,'03 Ingreso de datos'!P4:P1001)","v":0}]
[null,"2A. Vías centrales (vías venosas centrales, vías centrales de inserción periférica)"]
[null,null,null,null,null,null,null,null,"Sí","  No","No sabe","# de respuestas"]
[null,"1. ¿Cuenta la unidad con un protocolo para el uso de vías centrales\n (p. ej., protocolo de inserción, mantenimiento y retiro)?",null,null,null,null,null,null,{"$f":"IFERROR((SUMPRODUCT(SUBTOTAL(3,OFFSET('03 Ingreso de datos'!Q4,ROW('03 Ingreso de datos'!Q4:Q1001)-ROW('03 Ingreso de datos'!Q4),0)),('03 Ingreso de datos'!Q4:Q1001=\"Sí\")+0))/(_xlfn.AGGREGATE(3,5,'03 Ingreso de datos'!Q4:Q1001)), 0)","v":0},{"$f":"IFERROR((SUMPRODUCT(SUBTOTAL(3,OFFSET('03 Ingreso de datos'!Q4,ROW('03 Ingreso de datos'!Q4:Q1001)-ROW('03 Ingreso de datos'!Q4),0)),('03 Ingreso de datos'!Q4:Q1001=\"No\")+0))/(_xlfn.AGGREGATE(3,5,'03 Ingreso de datos'!Q4:Q1001)), 0)","v":0},{"$f":"IFERROR((SUMPRODUCT(SUBTOTAL(3,OFFSET('03 Ingreso de datos'!Q4,ROW('03 Ingreso de datos'!Q4:Q1001)-ROW('03 Ingreso de datos'!Q4),0)),('03 Ingreso de datos'!Q4:Q1001=\"No sabe\")+0))/(_xlfn.AGGREGATE(3,5,'03 Ingreso de datos'!Q4:Q1001)), 0)","v":0},{"$f":"SUBTOTAL(3,'03 Ingreso de datos'!Q4:Q1001)","v":0}]
[null,"2. ¿Cuenta la unidad con kits de inserción de vías centrales listos para usar?",null,null,null,null,null,null,{"$f":"IFERROR((SUMPRODUCT(SUBTOTAL(3,OFFSET('03 Ingreso de datos'!R4,ROW('03 Ingreso de datos'!R4:R1001)-ROW('03 Ingreso de datos'!R4),0)),('03 Ingreso de datos'!R4:R1001=\"Sí\")+0))/(_xlfn.AGGREGATE(3,5,'03 Ingreso de datos'!R4:R1001)), 0)","v":0},{"$f":"IFERROR((SUMPRODUCT(SUBTOTAL(3,OFFSET('03 Ingreso de datos'!R4,ROW('03 Ingreso de datos'!R4:R1001)-ROW('03 Ingreso de datos'!R4),0)),('03 Ingreso de datos'!R4:R1001=\"No\")+0))/(_xlfn.AGGREGATE(3,5,'03 Ingreso de datos'!R4:R1001)), 0)","v":0},{"$f":"IFERROR((SUMPRODUCT(SUBTOTAL(3,OFFSET('03 Ingreso de datos'!R4,ROW('03 Ingreso de datos'!R4:R1001)-ROW('03 Ingreso de datos'!R4),0)),('03 Ingreso de datos'!R4:R1001=\"No Sabe\")+0))/(_xlfn.AGGREGATE(3,5,'03 Ingreso de datos'!R4:R1001)), 0)","v":0},{"$f":"SUBTOTAL(3,'03 Ingreso de datos'!R4:R1001)","v":0}]
[null,"3. ¿Cuenta la unidad con kits de cambio de vendajes listos para usar?",null,null,null,null,null,null,{"$f":"IFERROR((SUMPRODUCT(SUBTOTAL(3,OFFSET('03 Ingreso de datos'!S4,ROW('03 Ingreso de datos'!S4:S1001)-ROW('03 Ingreso de datos'!S4),0)),('03 Ingreso de datos'!S4:S1001=\"Sí\")+0))/(_xlfn.AGGREGATE(3,5,'03 Ingreso de datos'!S4:S1001)), 0)","v":0},{"$f":"IFERROR((SUMPRODUCT(SUBTOTAL(3,OFFSET('03 Ingreso de datos'!S4,ROW('03 Ingreso de datos'!S4:S1001)-ROW('03 Ingreso de datos'!S4),0)),('03 Ingreso de datos'!S4:S1001=\"No\")+0))/(_xlfn.AGGREGATE(3,5,'03 Ingreso de datos'!S4:S1001)), 0)","v":0},{"$f":"IFERROR((SUMPRODUCT(SUBTOTAL(3,OFFSET('03 Ingreso de datos'!S4,ROW('03 Ingreso de datos'!S4:S1001)-ROW('03 Ingreso de datos'!S4),0)),('03 Ingreso de datos'!S4:S1001=\"No Sabe\")+0))/(_xlfn.AGGREGATE(3,5,'03 Ingreso de datos'!S4:S1001)), 0)","v":0},{"$f":"SUBTOTAL(3,'03 Ingreso de datos'!S4:S1001)","v":0}]
[null,"4. ¿Se usan conectores desinfectantes en la unidad?",null,null,null,null,null,null,{"$f":"IFERROR((SUMPRODUCT(SUBTOTAL(3,OFFSET('03 Ingreso de datos'!T4,ROW('03 Ingreso de datos'!T4:T1001)-ROW('03 Ingreso de datos'!T4),0)),('03 Ingreso de datos'!T4:T1001=\"Sí\")+0))/(_xlfn.AGGREGATE(3,5,'03 Ingreso de datos'!T4:T1001)), 0)","v":0},{"$f":"IFERROR((SUMPRODUCT(SUBTOTAL(3,OFFSET('03 Ingreso de datos'!T4,ROW('03 Ingreso de datos'!T4:T1001)-ROW('03 Ingreso de datos'!T4),0)),('03 Ingreso de datos'!T4:T1001=\"No\")+0))/(_xlfn.AGGREGATE(3,5,'03 Ingreso de datos'!T4:T1001)), 0)","v":0},{"$f":"IFERROR((SUMPRODUCT(SUBTOTAL(3,OFFSET('03 Ingreso de datos'!T4,ROW('03 Ingreso de datos'!T4:T1001)-ROW('03 Ingreso de datos'!T4),0)),('03 Ingreso de datos'!T4:T1001=\"No Sabe\")+0))/(_xlfn.AGGREGATE(3,5,'03 Ingreso de datos'!T4:T1001)), 0)","v":0},{"$f":"SUBTOTAL(3,'03 Ingreso de datos'!T4:T1001)","v":0}]
[null,"5. ¿Documenta la unidad las inserciones de vías centrales (por ejemplo, en el registro médico)?",null,null,null,null,null,null,{"$f":"IFERROR((SUMPRODUCT(SUBTOTAL(3,OFFSET('03 Ingreso de datos'!U4,ROW('03 Ingreso de datos'!U4:U1001)-ROW('03 Ingreso de datos'!U4),0)),('03 Ingreso de datos'!U4:U1001=\"Sí\")+0))/(_xlfn.AGGREGATE(3,5,'03 Ingreso de datos'!U4:U1001)), 0)","v":0},{"$f":"IFERROR((SUMPRODUCT(SUBTOTAL(3,OFFSET('03 Ingreso de datos'!U4,ROW('03 Ingreso de datos'!U4:U1001)-ROW('03 Ingreso de datos'!U4),0)),('03 Ingreso de datos'!U4:U1001=\"No\")+0))/(_xlfn.AGGREGATE(3,5,'03 Ingreso de datos'!U4:U1001)), 0)","v":0},{"$f":"IFERROR((SUMPRODUCT(SUBTOTAL(3,OFFSET('03 Ingreso de datos'!U4,ROW('03 Ingreso de datos'!U4:U1001)-ROW('03 Ingreso de datos'!U4),0)),('03 Ingreso de datos'!U4:U1001=\"No Sabe\")+0))/(_xlfn.AGGREGATE(3,5,'03 Ingreso de datos'!U4:U1001)), 0)","v":0},{"$f":"SUBTOTAL(3,'03 Ingreso de datos'!U4:U1001)","v":0}]
[null,null,null,null,null,null,"Durante la contratación u orientación","Al menos una vez al año        ","Dispositivos o protocolos nuevos ","No recibió capacitación","No se encarga de este procedimiento","# de respuestas"]
[null,"6. ¿Recibió usted capacitación por parte de su hospital en la inserción de vías centrales?*",null,null,null,null,{"$f":"IFERROR((SUMPRODUCT(SUBTOTAL(3,OFFSET('03 Ingreso de datos'!V4,ROW('03 Ingreso de datos'!V4:V1001)-ROW('03 Ingreso de datos'!V4),0)),(('03 Ingreso de datos'!V4:V1001=\"A, B y C\")+('03 Ingreso de datos'!V4:V1001=\"A y B\")+('03 Ingreso de datos'!V4:V1001=\"A y C\")+('03 Ingreso de datos'!V4:V1001=\"A. Durante la contratación u orientación\"))+0))/(_xlfn.AGGREGATE(3,5,'03 Ingreso de datos'!V4:V1001)-'06 Listas'!L15), 0)","v":0},{"$f":"IFERROR((SUMPRODUCT(SUBTOTAL(3,OFFSET('03 Ingreso de datos'!V4,ROW('03 Ingreso de datos'!V4:V1001)-ROW('03 Ingreso de datos'!V4),0)),(('03 Ingreso de datos'!V4:V1001=\"A, B, y C\")+('03 Ingreso de datos'!V4:V1001=\"A y B\")+('03 Ingreso de datos'!V4:V1001=\"B y C\")+('03 Ingreso de datos'!V4:V1001=\"B. Al menos una vez al año\"))+0))/(_xlfn.AGGREGATE(3,5,'03 Ingreso de datos'!V4:V1001)-'06 Listas'!L15), 0)","v":0},{"$f":"IFERROR((SUMPRODUCT(SUBTOTAL(3,OFFSET('03 Ingreso de datos'!V4,ROW('03 Ingreso de datos'!V4:V1001)-ROW('03 Ingreso de datos'!V4),0)),(('03 Ingreso de datos'!V4:V1001=\"A, B, y C\")+('03 Ingreso de datos'!V4:V1001=\"A y C\")+('03 Ingreso de datos'!V4:V1001=\"B y C\")+('03 Ingreso de datos'!V4:V1001=\"C. Cuando hay dispositivos o protocolos nuevos\"))+0))/(_xlfn.AGGREGATE(3,5,'03 Ingreso de datos'!V4:V1001)-'06 Listas'!L15), 0)","v":0},{"$f":"IFERROR((SUMPRODUCT(SUBTOTAL(3,OFFSET('03 Ingreso de datos'!V4,ROW('03 Ingreso de datos'!V4:V1001)-ROW('03 Ingreso de datos'!V4),0)),('03 Ingreso de datos'!V4:V1001=\"No recibió capacitación\")+0))/(_xlfn.AGGREGATE(3,5,'03 Ingreso de datos'!V4:V1001)-'06 Listas'!L15), 0)","v":0},{"$f":"IFERROR((SUMPRODUCT(SUBTOTAL(3,OFFSET('03 Ingreso de datos'!V4,ROW('03 Ingreso de datos'!V4:V1001)-ROW('03 Ingreso de datos'!V4),0)),('03 Ingreso de datos'!V4:V1001=\"No se encarga de este procedimiento\")+0))/(_xlfn.AGGREGATE(3,5,'03 Ingreso de datos'!V4:V1001)), 0)","v":0},{"$f":"SUBTOTAL(3,'03 Ingreso de datos'!V4:V1001)","v":0}]
[null,"7. ¿Recibió usted capacitación por parte de su hospital en el mantenimiento de las vías centrales?*",null,null,null,null,{"$f":"IFERROR((SUMPRODUCT(SUBTOTAL(3,OFFSET('03 Ingreso de datos'!W4,ROW('03 Ingreso de datos'!W4:W1001)-ROW('03 Ingreso de datos'!W4),0)),(('03 Ingreso de datos'!W4:W1001=\"A, B, y C\")+('03 Ingreso de datos'!W4:W1001=\"A y B\")+('03 Ingreso de datos'!W4:W1001=\"A y C\")+('03 Ingreso de datos'!W4:W1001=\"A. Durante la contratación u orientación\"))+0))/(_xlfn.AGGREGATE(3,5,'03 Ingreso de datos'!W4:W1001)-'06 Listas'!L16), 0)","v":0},{"$f":"IFERROR((SUMPRODUCT(SUBTOTAL(3,OFFSET('03 Ingreso de datos'!W4,ROW('03 Ingreso de datos'!W4:W1001)-ROW('03 Ingreso de datos'!W4),0)),(('03 Ingreso de datos'!W4:W1001=\"A, B, y C\")+('03 Ingreso de datos'!W4:W1001=\"A y B\")+('03 Ingreso de datos'!W4:W1001=\"B y C\")+('03 Ingreso de datos'!W4:W1001=\"B. Al menos una vez al año\"))+0))/(_xlfn.AGGREGATE(3,5,'03 Ingreso de datos'!W4:W1001)-'06 Listas'!L16), 0)","v":0},{"$f":"IFERROR((SUMPRODUCT(SUBTOTAL(3,OFFSET('03 Ingreso de datos'!W4,ROW('03 Ingreso de datos'!W4:W1001)-ROW('03 Ingreso de datos'!W4),0)),(('03 Ingreso de datos'!W4:W1001=\"A, B, y C\")+('03 Ingreso de datos'!W4:W1001=\"A y C\")+('03 Ingreso de datos'!W4:W1001=\"B y C\")+('03 Ingreso de datos'!W4:W1001=\"C. Cuando hay dispositivos o protocolos nuevos\"))+0))/(_xlfn.AGGREGATE(3,5,'03 Ingreso de datos'!W4:W1001)-'06 Listas'!L16), 0)","v":0},{"$f":"IFERROR((SUMPRODUCT(SUBTOTAL(3,OFFSET('03 Ingreso de datos'!W4,ROW('03 Ingreso de datos'!W4:W1001)-ROW('03 Ingreso de datos'!W4),0)),('03 Ingreso de datos'!W4:W1001=\"No recibió capacitación\")+0))/(_xlfn.AGGREGATE(3,5,'03 Ingreso de datos'!W4:W1001)-'06 Listas'!L16), 0)","v":0},{"$f":"IFERROR((SUMPRODUCT(SUBTOTAL(3,OFFSET('03 Ingreso de datos'!W4,ROW('03 Ingreso de datos'!W4:W1001)-ROW('03 Ingreso de datos'!W4),0)),('03 Ingreso de datos'!W4:W1001=\"No se encarga de este procedimiento\")+0))/(_xlfn.AGGREGATE(3,5,'03 Ingreso de datos'!W4:W1001)), 0)","v":0},{"$f":"SUBTOTAL(3,'03 Ingreso de datos'!W4:W1001)","v":0}]
[null,"*Los porcentajes se calculan al eliminar del denominador los encuestados que respondieron \"No se encarga de este procedimiento\"."]
[null,null,null,null,null,null,null,"Sí","No","No sabe","No recibió capacitación ","# de respuestas"]
[null,"8. ¿Incluyó su capacitación en inserción de catéteres venosos centrales el uso de técnicas de inserción asépticas?",null,null,null,null,null,{"$f":"IFERROR((SUMPRODUCT(SUBTOTAL(3,OFFSET('03 Ingreso de datos'!X4,ROW('03 Ingreso de datos'!X4:X1001)-ROW('03 Ingreso de datos'!X4),0)),('03 Ingreso de datos'!X4:X1001=\"Sí\")+0))/(_xlfn.AGGREGATE(3,5,'03 Ingreso de datos'!X4:X1001)), 0)","v":0},{"$f":"IFERROR((SUMPRODUCT(SUBTOTAL(3,OFFSET('03 Ingreso de datos'!X4,ROW('03 Ingreso de datos'!X4:X1001)-ROW('03 Ingreso de datos'!X4),0)),('03 Ingreso de datos'!X4:X1001=\"No\")+0))/(_xlfn.AGGREGATE(3,5,'03 Ingreso de datos'!X4:X1001)), 0)","v":0},{"$f":"IFERROR((SUMPRODUCT(SUBTOTAL(3,OFFSET('03 Ingreso de datos'!X4,ROW('03 Ingreso de datos'!X4:X1001)-ROW('03 Ingreso de datos'!X4),0)),('03 Ingreso de datos'!X4:X1001=\"No sabe\")+0))/(_xlfn.AGGREGATE(3,5,'03 Ingreso de datos'!X4:X1001)), 0)","v":0},{"$f":"IFERROR((SUMPRODUCT(SUBTOTAL(3,OFFSET('03 Ingreso de datos'!X4,ROW('03 Ingreso de datos'!X4:X1001)-ROW('03 Ingreso de datos'!X4),0)),('03 Ingreso de datos'!X4:X1001=\"No recibió capacitación\")+0))/(_xlfn.AGGREGATE(3,5,'03 Ingreso de datos'!X4:X1001)), 0)","v":0},{"$f":"SUBTOTAL(3,'03 Ingreso de datos'!X4:X1001)","v":0}]
[null,"9. ¿Incluyó su capacitación en inserción de catéteres venosos centrales precauciones máximas de barrera estéril (uso de bata estéril, guantes, mascarilla y gorro estériles, y paños estériles para cubrir al paciente)?",null,null,null,null,null,{"$f":"IFERROR((SUMPRODUCT(SUBTOTAL(3,OFFSET('03 Ingreso de datos'!Y4,ROW('03 Ingreso de datos'!Y4:Y1001)-ROW('03 Ingreso de datos'!Y4),0)),('03 Ingreso de datos'!Y4:Y1001=\"Sí\")+0))/(_xlfn.AGGREGATE(3,5,'03 Ingreso de datos'!Y4:Y1001)), 0)","v":0},{"$f":"IFERROR((SUMPRODUCT(SUBTOTAL(3,OFFSET('03 Ingreso de datos'!Y4,ROW('03 Ingreso de datos'!Y4:Y1001)-ROW('03 Ingreso de datos'!Y4),0)),('03 Ingreso de datos'!Y4:Y1001=\"No\")+0))/(_xlfn.AGGREGATE(3,5,'03 Ingreso de datos'!Y4:Y1001)), 0)","v":0},{"$f":"IFERROR((SUMPRODUCT(SUBTOTAL(3,OFFSET('03 Ingreso de datos'!Y4,ROW('03 Ingreso de datos'!Y4:Y1001)-ROW('03 Ingreso de datos'!Y4),0)),('03 Ingreso de datos'!Y4:Y1001=\"No sabe\")+0))/(_xlfn.AGGREGATE(3,5,'03 Ingreso de datos'!Y4:Y1001)), 0)","v":0},{"$f":"IFERROR((SUMPRODUCT(SUBTOTAL(3,OFFSET('03 Ingreso de datos'!Y4,ROW('03 Ingreso de datos'!Y4:Y1001)-ROW('03 Ingreso de datos'!Y4),0)),('03 Ingreso de datos'!Y4:Y1001=\"No recibió capacitación\")+0))/(_xlfn.AGGREGATE(3,5,'03 Ingreso de datos'!Y4:Y1001)), 0)","v":0},{"$f":"SUBTOTAL(3,'03 Ingreso de datos'!Y4:Y1001)","v":0}]
[null,"10. ¿Incluyó su capacitación el uso de técnicas estériles al accesar o manipular el catéter?",null,null,null,null,null,{"$f":"IFERROR((SUMPRODUCT(SUBTOTAL(3,OFFSET('03 Ingreso de datos'!Z4,ROW('03 Ingreso de datos'!Z4:Z1001)-ROW('03 Ingreso de datos'!Z4),0)),('03 Ingreso de datos'!Z4:Z1001=\"Sí\")+0))/(_xlfn.AGGREGATE(3,5,'03 Ingreso de datos'!Z4:Z1001)), 0)","v":0},{"$f":"IFERROR((SUMPRODUCT(SUBTOTAL(3,OFFSET('03 Ingreso de datos'!Z4,ROW('03 Ingreso de datos'!Z4:Z1001)-ROW('03 Ingreso de datos'!Z4),0)),('03 Ingreso de datos'!Z4:Z1001=\"No\")+0))/(_xlfn.AGGREGATE(3,5,'03 Ingreso de datos'!Z4:Z1001)), 0)","v":0},{"$f":"IFERROR((SUMPRODUCT(SUBTOTAL(3,OFFSET('03 Ingreso de datos'!Z4,ROW('03 Ingreso de datos'!Z4:Z1001)-ROW('03 Ingreso de datos'!Z4),0)),('03 Ingreso de datos'!Z4:Z1001=\"No sabe\")+0))/(_xlfn.AGGREGATE(3,5,'03 Ingreso de datos'!Z4:Z1001)), 0)","v":0},{"$f":"IFERROR((SUMPRODUCT(SUBTOTAL(3,OFFSET('03 Ingreso de datos'!Z4,ROW('03 Ingreso de datos'!Z4:Z1001)-ROW('03 Ingreso de datos'!Z4),0)),('03 Ingreso de datos'!Z4:Z1001=\"No recibió capacitación\")+0))/(_xlfn.AGGREGATE(3,5,'03 Ingreso de datos'!Z4:Z1001)), 0)","v":0},{"$f":"SUBTOTAL(3,'03 Ingreso de datos'!Z4:Z1001)","v":0}]
[null,"11. ¿Incluyó su capacitación la evaluación del sitio de inserción en busca de signos de infección?",null,null,null,null,null,{"$f":"IFERROR((SUMPRODUCT(SUBTOTAL(3,OFFSET('03 Ingreso de datos'!AA4,ROW('03 Ingreso de datos'!AA4:AA1001)-ROW('03 Ingreso de datos'!AA4),0)),('03 Ingreso de datos'!AA4:AA1001=\"Sí\")+0))/(_xlfn.AGGREGATE(3,5,'03 Ingreso de datos'!AA4:AA1001)), 0)","v":0},{"$f":"IFERROR((SUMPRODUCT(SUBTOTAL(3,OFFSET('03 Ingreso de datos'!AA4,ROW('03 Ingreso de datos'!AA4:AA1001)-ROW('03 Ingreso de datos'!AA4),0)),('03 Ingreso de datos'!AA4:AA1001=\"No\")+0))/(_xlfn.AGGREGATE(3,5,'03 Ingreso de datos'!AA4:AA1001)), 0)","v":0},{"$f":"IFERROR((SUMPRODUCT(SUBTOTAL(3,OFFSET('03 Ingreso de datos'!AA4,ROW('03 Ingreso de datos'!AA4:AA1001)-ROW('03 Ingreso de datos'!AA4),0)),('03 Ingreso de datos'!AA4:AA1001=\"No sabe\")+0))/(_xlfn.AGGREGATE(3,5,'03 Ingreso de datos'!AA4:AA1001)), 0)","v":0},{"$f":"IFERROR((SUMPRODUCT(SUBTOTAL(3,OFFSET('03 Ingreso de datos'!AA4,ROW('03 Ingreso de datos'!AA4:AA1001)-ROW('03 Ingreso de datos'!AA4),0)),('03 Ingreso de datos'!AA4:AA1001=\"No recibió capacitación\")+0))/(_xlfn.AGGREGATE(3,5,'03 Ingreso de datos'!AA4:AA1001)), 0)","v":0},{"$f":"SUBTOTAL(3,'03 Ingreso de datos'!AA4:AA1001)","v":0}]
[null,"12. ¿Incluyó su capacitación el manejo de catéres de vías intravenosas (por ejemplo, cuándo cambiar los conjuntos de catéteres intravenosos)?",null,null,null,null,null,{"$f":"IFERROR((SUMPRODUCT(SUBTOTAL(3,OFFSET('03 Ingreso de datos'!AB4,ROW('03 Ingreso de datos'!AB4:AB1001)-ROW('03 Ingreso de datos'!AB4),0)),('03 Ingreso de datos'!AB4:AB1001=\"Sí\")+0))/(_xlfn.AGGREGATE(3,5,'03 Ingreso de datos'!AB4:AB1001)), 0)","v":0},{"$f":"IFERROR((SUMPRODUCT(SUBTOTAL(3,OFFSET('03 Ingreso de datos'!AB4,ROW('03 Ingreso de datos'!AB4:AB1001)-ROW('03 Ingreso de datos'!AB4),0)),('03 Ingreso de datos'!AB4:AB1001=\"No\")+0))/(_xlfn.AGGREGATE(3,5,'03 Ingreso de datos'!AB4:AB1001)), 0)","v":0},{"$f":"IFERROR((SUMPRODUCT(SUBTOTAL(3,OFFSET('03 Ingreso de datos'!AB4,ROW('03 Ingreso de datos'!AB4:AB1001)-ROW('03 Ingreso de datos'!AB4),0)),('03 Ingreso de datos'!AB4:AB1001=\"No sabe\")+0))/(_xlfn.AGGREGATE(3,5,'03 Ingreso de datos'!AB4:AB1001)), 0)","v":0},{"$f":"IFERROR((SUMPRODUCT(SUBTOTAL(3,OFFSET('03 Ingreso de datos'!AB4,ROW('03 Ingreso de datos'!AB4:AB1001)-ROW('03 Ingreso de datos'!AB4),0)),('03 Ingreso de datos'!AB4:AB1001=\"No recibió capacitación\")+0))/(_xlfn.AGGREGATE(3,5,'03 Ingreso de datos'!AB4:AB1001)), 0)","v":0},{"$f":"SUBTOTAL(3,'03 Ingreso de datos'!AB4:AB1001)","v":0}]
[]
[null,"2B. Prácticas relacionadas con las vías centrales"]
[null,null,null,null,null,"Siempre","Casi siempre","A veces","Casi nunca","Nunca","No sabe","# de respuestas"]
[null,"1. ¿Proporcionan los médicos una orden escrita para las vías centrales? ",null,null,null,{"$f":"IFERROR((SUMPRODUCT(SUBTOTAL(3,OFFSET('03 Ingreso de datos'!AC4,ROW('03 Ingreso de datos'!AC4:AC1001)-ROW('03 Ingreso de datos'!AC4),0)),('03 Ingreso de datos'!AC4:AC1001=\"Siempre\")+0))/(_xlfn.AGGREGATE(3,5,'03 Ingreso de datos'!AC4:AC1001)), 0)","v":0},{"$f":"IFERROR((SUMPRODUCT(SUBTOTAL(3,OFFSET('03 Ingreso de datos'!AC4,ROW('03 Ingreso de datos'!AC4:AC1001)-ROW('03 Ingreso de datos'!AC4),0)),('03 Ingreso de datos'!AC4:AC1001=\"Casi siempre\")+0))/(_xlfn.AGGREGATE(3,5,'03 Ingreso de datos'!AC4:AC1001)), 0)","v":0},{"$f":"IFERROR((SUMPRODUCT(SUBTOTAL(3,OFFSET('03 Ingreso de datos'!AC4,ROW('03 Ingreso de datos'!AC4:AC1001)-ROW('03 Ingreso de datos'!AC4),0)),('03 Ingreso de datos'!AC4:AC1001=\"A veces\")+0))/(_xlfn.AGGREGATE(3,5,'03 Ingreso de datos'!AC4:AC1001)), 0)","v":0},{"$f":"IFERROR((SUMPRODUCT(SUBTOTAL(3,OFFSET('03 Ingreso de datos'!AC4,ROW('03 Ingreso de datos'!AC4:AC1001)-ROW('03 Ingreso de datos'!AC4),0)),('03 Ingreso de datos'!AC4:AC1001=\"Casi nunca\")+0))/(_xlfn.AGGREGATE(3,5,'03 Ingreso de datos'!AC4:AC1001)), 0)","v":0},{"$f":"IFERROR((SUMPRODUCT(SUBTOTAL(3,OFFSET('03 Ingreso de datos'!AC4,ROW('03 Ingreso de datos'!AC4:AC1001)-ROW('03 Ingreso de datos'!AC4),0)),('03 Ingreso de datos'!AC4:AC1001=\"Nunca\")+0))/(_xlfn.AGGREGATE(3,5,'03 Ingreso de datos'!AC4:AC1001)), 0)","v":0},{"$f":"IFERROR((SUMPRODUCT(SUBTOTAL(3,OFFSET('03 Ingreso de datos'!AC4,ROW('03 Ingreso de datos'!AC4:AC1001)-ROW('03 Ingreso de datos'!AC4),0)),('03 Ingreso de datos'!AC4:AC1001=\"No sabe\")+0))/(_xlfn.AGGREGATE(3,5,'03 Ingreso de datos'!AC4:AC1001)), 0)","v":0},{"$f":"SUBTOTAL(3,'03 Ingreso de datos'!AC4:AC1001)","v":0}]
[null,"2. ¿Se prefieren las vías centrales a las vías periféricas en caso de necesitarse acceso venoso a largo plazo (p. ej., más de una vez a la semana)?",null,null,null,{"$f":"IFERROR((SUMPRODUCT(SUBTOTAL(3,OFFSET('03 Ingreso de datos'!AD4,ROW('03 Ingreso de datos'!AD4:AD1001)-ROW('03 Ingreso de datos'!AD4),0)),('03 Ingreso de datos'!AD4:AD1001=\"Siempre\")+0))/(_xlfn.AGGREGATE(3,5,'03 Ingreso de datos'!AD4:AD1001)), 0)","v":0},{"$f":"IFERROR((SUMPRODUCT(SUBTOTAL(3,OFFSET('03 Ingreso de datos'!AD4,ROW('03 Ingreso de datos'!AD4:AD1001)-ROW('03 Ingreso de datos'!AD4),0)),('03 Ingreso de datos'!AD4:AD1001=\"Casi siempre\")+0))/(_xlfn.AGGREGATE(3,5,'03 Ingreso de datos'!AD4:AD1001)), 0)","v":0},{"$f":"IFERROR((SUMPRODUCT(SUBTOTAL(3,OFFSET('03 Ingreso de datos'!AD4,ROW('03 Ingreso de datos'!AD4:AD1001)-ROW('03 Ingreso de datos'!AD4),0)),('03 Ingreso de datos'!AD4:AD1001=\"A veces\")+0))/(_xlfn.AGGREGATE(3,5,'03 Ingreso de datos'!AD4:AD1001)), 0)","v":0},{"$f":"IFERROR((SUMPRODUCT(SUBTOTAL(3,OFFSET('03 Ingreso de datos'!AD4,ROW('03 Ingreso de datos'!AD4:AD1001)-ROW('03 Ingreso de datos'!AD4),0)),('03 Ingreso de datos'!AD4:AD1001=\"Casi nunca\")+0))/(_xlfn.AGGREGATE(3,5,'03 Ingreso de datos'!AD4:AD1001)), 0)","v":0},{"$f":"IFERROR((SUMPRODUCT(SUBTOTAL(3,OFFSET('03 Ingreso de datos'!AD4,ROW('03 Ingreso de datos'!AD4:AD1001)-ROW('03 Ingreso de datos'!AD4),0)),('03 Ingreso de datos'!AD4:AD1001=\"Nunca\")+0))/(_xlfn.AGGREGATE(3,5,'03 Ingreso de datos'!AD4:AD1001)), 0)","v":0},{"$f":"IFERROR((SUMPRODUCT(SUBTOTAL(3,OFFSET('03 Ingreso de datos'!AD4,ROW('03 Ingreso de datos'!AD4:AD1001)-ROW('03 Ingreso de datos'!AD4),0)),('03 Ingreso de datos'!AD4:AD1001=\"No sabe\")+0))/(_xlfn.AGGREGATE(3,5,'03 Ingreso de datos'!AD4:AD1001)), 0)","v":0},{"$f":"SUBTOTAL(3,'03 Ingreso de datos'!AD4:AD1001)","v":0}]
[null,"3. ¿Son insertadas las vías centrales por miembros del personal capacitados en su inserción?  ",null,null,null,{"$f":"IFERROR((SUMPRODUCT(SUBTOTAL(3,OFFSET('03 Ingreso de datos'!AE4,ROW('03 Ingreso de datos'!AE4:AE1001)-ROW('03 Ingreso de datos'!AE4),0)),('03 Ingreso de datos'!AE4:AE1001=\"Siempre\")+0))/(_xlfn.AGGREGATE(3,5,'03 Ingreso de datos'!AE4:AE1001)), 0)","v":0},{"$f":"IFERROR((SUMPRODUCT(SUBTOTAL(3,OFFSET('03 Ingreso de datos'!AE4,ROW('03 Ingreso de datos'!AE4:AE1001)-ROW('03 Ingreso de datos'!AE4),0)),('03 Ingreso de datos'!AE4:AE1001=\"Casi siempre\")+0))/(_xlfn.AGGREGATE(3,5,'03 Ingreso de datos'!AE4:AE1001)), 0)","v":0},{"$f":"IFERROR((SUMPRODUCT(SUBTOTAL(3,OFFSET('03 Ingreso de datos'!AE4,ROW('03 Ingreso de datos'!AE4:AE1001)-ROW('03 Ingreso de datos'!AE4),0)),('03 Ingreso de datos'!AE4:AE1001=\"A veces\")+0))/(_xlfn.AGGREGATE(3,5,'03 Ingreso de datos'!AE4:AE1001)), 0)","v":0},{"$f":"IFERROR((SUMPRODUCT(SUBTOTAL(3,OFFSET('03 Ingreso de datos'!AE4,ROW('03 Ingreso de datos'!AE4:AE1001)-ROW('03 Ingreso de datos'!AE4),0)),('03 Ingreso de datos'!AE4:AE1001=\"Casi nunca\")+0))/(_xlfn.AGGREGATE(3,5,'03 Ingreso de datos'!AE4:AE1001)), 0)","v":0},{"$f":"IFERROR((SUMPRODUCT(SUBTOTAL(3,OFFSET('03 Ingreso de datos'!AE4,ROW('03 Ingreso de datos'!AE4:AE1001)-ROW('03 Ingreso de datos'!AE4),0)),('03 Ingreso de datos'!AE4:AE1001=\"Nunca\")+0))/(_xlfn.AGGREGATE(3,5,'03 Ingreso de datos'!AE4:AE1001)), 0)","v":0},{"$f":"IFERROR((SUMPRODUCT(SUBTOTAL(3,OFFSET('03 Ingreso de datos'!AE4,ROW('03 Ingreso de datos'!AE4:AE1001)-ROW('03 Ingreso de datos'!AE4),0)),('03 Ingreso de datos'!AE4:AE1001=\"No sabe\")+0))/(_xlfn.AGGREGATE(3,5,'03 Ingreso de datos'!AE4:AE1001)), 0)","v":0},{"$f":"SUBTOTAL(3,'03 Ingreso de datos'!AE4:AE1001)","v":0}]
[null,"4. ¿Practican los miembros del personal higiene de las manos antes de ponerse los guantes estériles para la inserción?  ",null,null,null,{"$f":"IFERROR((SUMPRODUCT(SUBTOTAL(3,OFFSET('03 Ingreso de datos'!AF4,ROW('03 Ingreso de datos'!AF4:AF1001)-ROW('03 Ingreso de datos'!AF4),0)),('03 Ingreso de datos'!AF4:AF1001=\"Siempre\")+0))/(_xlfn.AGGREGATE(3,5,'03 Ingreso de datos'!AF4:AF1001)), 0)","v":0},{"$f":"IFERROR((SUMPRODUCT(SUBTOTAL(3,OFFSET('03 Ingreso de datos'!AF4,ROW('03 Ingreso de datos'!AF4:AF1001)-ROW('03 Ingreso de datos'!AF4),0)),('03 Ingreso de datos'!AF4:AF1001=\"Casi siempre\")+0))/(_xlfn.AGGREGATE(3,5,'03 Ingreso de datos'!AF4:AF1001)), 0)","v":0},{"$f":"IFERROR((SUMPRODUCT(SUBTOTAL(3,OFFSET('03 Ingreso de datos'!AF4,ROW('03 Ingreso de datos'!AF4:AF1001)-ROW('03 Ingreso de datos'!AF4),0)),('03 Ingreso de datos'!AF4:AF1001=\"A veces\")+0))/(_xlfn.AGGREGATE(3,5,'03 Ingreso de datos'!AF4:AF1001)), 0)","v":0},{"$f":"IFERROR((SUMPRODUCT(SUBTOTAL(3,OFFSET('03 Ingreso de datos'!AF4,ROW('03 Ingreso de datos'!AF4:AF1001)-ROW('03 Ingreso de datos'!AF4),0)),('03 Ingreso de datos'!AF4:AF1001=\"Casi nunca\")+0))/(_xlfn.AGGREGATE(3,5,'03 Ingreso de datos'!AF4:AF1001)), 0)","v":0},{"$f":"IFERROR((SUMPRODUCT(SUBTOTAL(3,OFFSET('03 Ingreso de datos'!AF4,ROW('03 Ingreso de datos'!AF4:AF1001)-ROW('03 Ingreso de datos'!AF4),0)),('03 Ingreso de datos'!AF4:AF1001=\"Nunca\")+0))/(_xlfn.AGGREGATE(3,5,'03 Ingreso de datos'!AF4:AF1001)), 0)","v":0},{"$f":"IFERROR((SUMPRODUCT(SUBTOTAL(3,OFFSET('03 Ingreso de datos'!AF4,ROW('03 Ingreso de datos'!AF4:AF1001)-ROW('03 Ingreso de datos'!AF4),0)),('03 Ingreso de datos'!AF4:AF1001=\"No sabe\")+0))/(_xlfn.AGGREGATE(3,5,'03 Ingreso de datos'!AF4:AF1001)), 0)","v":0},{"$f":"SUBTOTAL(3,'03 Ingreso de datos'!AF4:AF1001)","v":0}]
[null,"5. ¿Se prepara la piel con un antiséptico antes de la inserción (clorhexidina, povidona yodada)?",null,null,null,{"$f":"IFERROR((SUMPRODUCT(SUBTOTAL(3,OFFSET('03 Ingreso de datos'!AG4,ROW('03 Ingreso de datos'!AG4:AG1001)-ROW('03 Ingreso de datos'!AG4),0)),('03 Ingreso de datos'!AG4:AG1001=\"Siempre\")+0))/(_xlfn.AGGREGATE(3,5,'03 Ingreso de datos'!AG4:AG1001)), 0)","v":0},{"$f":"IFERROR((SUMPRODUCT(SUBTOTAL(3,OFFSET('03 Ingreso de datos'!AG4,ROW('03 Ingreso de datos'!AG4:AG1001)-ROW('03 Ingreso de datos'!AG4),0)),('03 Ingreso de datos'!AG4:AG1001=\"Casi siempre\")+0))/(_xlfn.AGGREGATE(3,5,'03 Ingreso de datos'!AG4:AG1001)), 0)","v":0},{"$f":"IFERROR((SUMPRODUCT(SUBTOTAL(3,OFFSET('03 Ingreso de datos'!AG4,ROW('03 Ingreso de datos'!AG4:AG1001)-ROW('03 Ingreso de datos'!AG4),0)),('03 Ingreso de datos'!AG4:AG1001=\"A veces\")+0))/(_xlfn.AGGREGATE(3,5,'03 Ingreso de datos'!AG4:AG1001)), 0)","v":0},{"$f":"IFERROR((SUMPRODUCT(SUBTOTAL(3,OFFSET('03 Ingreso de datos'!AG4,ROW('03 Ingreso de datos'!AG4:AG1001)-ROW('03 Ingreso de datos'!AG4),0)),('03 Ingreso de datos'!AG4:AG1001=\"Casi nunca\")+0))/(_xlfn.AGGREGATE(3,5,'03 Ingreso de datos'!AG4:AG1001)), 0)","v":0},{"$f":"IFERROR((SUMPRODUCT(SUBTOTAL(3,OFFSET('03 Ingreso de datos'!AG4,ROW('03 Ingreso de datos'!AG4:AG1001)-ROW('03 Ingreso de datos'!AG4),0)),('03 Ingreso de datos'!AG4:AG1001=\"Nunca\")+0))/(_xlfn.AGGREGATE(3,5,'03 Ingreso de datos'!AG4:AG1001)), 0)","v":0},{"$f":"IFERROR((SUMPRODUCT(SUBTOTAL(3,OFFSET('03 Ingreso de datos'!AG4,ROW('03 Ingreso de datos'!AG4:AG1001)-ROW('03 Ingreso de datos'!AG4),0)),('03 Ingreso de datos'!AG4:AG1001=\"No sabe\")+0))/(_xlfn.AGGREGATE(3,5,'03 Ingreso de datos'!AG4:AG1001)), 0)","v":0},{"$f":"SUBTOTAL(3,'03 Ingreso de datos'!AG4:AG1001)","v":0}]
[null,"6. ¿Se deja que el antiséptico se seque al aire antes de la punción de la piel? ",null,null,null,{"$f":"IFERROR((SUMPRODUCT(SUBTOTAL(3,OFFSET('03 Ingreso de datos'!AH4,ROW('03 Ingreso de datos'!AH4:AH1001)-ROW('03 Ingreso de datos'!AH4),0)),('03 Ingreso de datos'!AH4:AH1001=\"Siempre\")+0))/(_xlfn.AGGREGATE(3,5,'03 Ingreso de datos'!AH4:AH1001)), 0)","v":0},{"$f":"IFERROR((SUMPRODUCT(SUBTOTAL(3,OFFSET('03 Ingreso de datos'!AH4,ROW('03 Ingreso de datos'!AH4:AH1001)-ROW('03 Ingreso de datos'!AH4),0)),('03 Ingreso de datos'!AH4:AH1001=\"Casi siempre\")+0))/(_xlfn.AGGREGATE(3,5,'03 Ingreso de datos'!AH4:AH1001)), 0)","v":0},{"$f":"IFERROR((SUMPRODUCT(SUBTOTAL(3,OFFSET('03 Ingreso de datos'!AH4,ROW('03 Ingreso de datos'!AH4:AH1001)-ROW('03 Ingreso de datos'!AH4),0)),('03 Ingreso de datos'!AH4:AH1001=\"A veces\")+0))/(_xlfn.AGGREGATE(3,5,'03 Ingreso de datos'!AH4:AH1001)), 0)","v":0},{"$f":"IFERROR((SUMPRODUCT(SUBTOTAL(3,OFFSET('03 Ingreso de datos'!AH4,ROW('03 Ingreso de datos'!AH4:AH1001)-ROW('03 Ingreso de datos'!AH4),0)),('03 Ingreso de datos'!AH4:AH1001=\"Casi nunca\")+0))/(_xlfn.AGGREGATE(3,5,'03 Ingreso de datos'!AH4:AH1001)), 0)","v":0},{"$f":"IFERROR((SUMPRODUCT(SUBTOTAL(3,OFFSET('03 Ingreso de datos'!AH4,ROW('03 Ingreso de datos'!AH4:AH1001)-ROW('03 Ingreso de datos'!AH4),0)),('03 Ingreso de datos'!AH4:AH1001=\"Nunca\")+0))/(_xlfn.AGGREGATE(3,5,'03 Ingreso de datos'!AH4:AH1001)), 0)","v":0},{"$f":"IFERROR((SUMPRODUCT(SUBTOTAL(3,OFFSET('03 Ingreso de datos'!AH4,ROW('03 Ingreso de datos'!AH4:AH1001)-ROW('03 Ingreso de datos'!AH4),0)),('03 Ingreso de datos'!AH4:AH1001=\"No sabe\")+0))/(_xlfn.AGGREGATE(3,5,'03 Ingreso de datos'!AH4:AH1001)), 0)","v":0},{"$f":"SUBTOTAL(3,'03 Ingreso de datos'!AH4:AH1001)","v":0}]
[null,"7. ¿Practican los miembros del personal de atención médica las siguientes precauciones máximas de barrera estéril al insertar una vía central? "]
[null,null,"A. Gorro quirúrgico",null,null,{"$f":"IFERROR((SUMPRODUCT(SUBTOTAL(3,OFFSET('03 Ingreso de datos'!AI4,ROW('03 Ingreso de datos'!AI4:AI1001)-ROW('03 Ingreso de datos'!AI4),0)),('03 Ingreso de datos'!AI4:AI1001=\"Siempre\")+0))/(_xlfn.AGGREGATE(3,5,'03 Ingreso de datos'!AI4:AI1001)), 0)","v":0},{"$f":"IFERROR((SUMPRODUCT(SUBTOTAL(3,OFFSET('03 Ingreso de datos'!AI4,ROW('03 Ingreso de datos'!AI4:AI1001)-ROW('03 Ingreso de datos'!AI4),0)),('03 Ingreso de datos'!AI4:AI1001=\"Casi siempre\")+0))/(_xlfn.AGGREGATE(3,5,'03 Ingreso de datos'!AI4:AI1001)), 0)","v":0},{"$f":"IFERROR((SUMPRODUCT(SUBTOTAL(3,OFFSET('03 Ingreso de datos'!AI4,ROW('03 Ingreso de datos'!AI4:AI1001)-ROW('03 Ingreso de datos'!AI4),0)),('03 Ingreso de datos'!AI4:AI1001=\"A veces\")+0))/(_xlfn.AGGREGATE(3,5,'03 Ingreso de datos'!AI4:AI1001)), 0)","v":0},{"$f":"IFERROR((SUMPRODUCT(SUBTOTAL(3,OFFSET('03 Ingreso de datos'!AI4,ROW('03 Ingreso de datos'!AI4:AI1001)-ROW('03 Ingreso de datos'!AI4),0)),('03 Ingreso de datos'!AI4:AI1001=\"Casi nunca\")+0))/(_xlfn.AGGREGATE(3,5,'03 Ingreso de datos'!AI4:AI1001)), 0)","v":0},{"$f":"IFERROR((SUMPRODUCT(SUBTOTAL(3,OFFSET('03 Ingreso de datos'!AI4,ROW('03 Ingreso de datos'!AI4:AI1001)-ROW('03 Ingreso de datos'!AI4),0)),('03 Ingreso de datos'!AI4:AI1001=\"Nunca\")+0))/(_xlfn.AGGREGATE(3,5,'03 Ingreso de datos'!AI4:AI1001)), 0)","v":0},{"$f":"IFERROR((SUMPRODUCT(SUBTOTAL(3,OFFSET('03 Ingreso de datos'!AI4,ROW('03 Ingreso de datos'!AI4:AI1001)-ROW('03 Ingreso de datos'!AI4),0)),('03 Ingreso de datos'!AI4:AI1001=\"No sabe\")+0))/(_xlfn.AGGREGATE(3,5,'03 Ingreso de datos'!AI4:AI1001)), 0)","v":0},{"$f":"SUBTOTAL(3,'03 Ingreso de datos'!AI4:AI1001)","v":0}]
[null,null,"B. Mascarilla",null,null,{"$f":"IFERROR((SUMPRODUCT(SUBTOTAL(3,OFFSET('03 Ingreso de datos'!AJ4,ROW('03 Ingreso de datos'!AJ4:AJ1001)-ROW('03 Ingreso de datos'!AJ4),0)),('03 Ingreso de datos'!AJ4:AJ1001=\"Siempre\")+0))/(_xlfn.AGGREGATE(3,5,'03 Ingreso de datos'!AJ4:AJ1001)), 0)","v":0},{"$f":"IFERROR((SUMPRODUCT(SUBTOTAL(3,OFFSET('03 Ingreso de datos'!AJ4,ROW('03 Ingreso de datos'!AJ4:AJ1001)-ROW('03 Ingreso de datos'!AJ4),0)),('03 Ingreso de datos'!AJ4:AJ1001=\"Casi siempre\")+0))/(_xlfn.AGGREGATE(3,5,'03 Ingreso de datos'!AJ4:AJ1001)), 0)","v":0},{"$f":"IFERROR((SUMPRODUCT(SUBTOTAL(3,OFFSET('03 Ingreso de datos'!AJ4,ROW('03 Ingreso de datos'!AJ4:AJ1001)-ROW('03 Ingreso de datos'!AJ4),0)),('03 Ingreso de datos'!AJ4:AJ1001=\"A veces\")+0))/(_xlfn.AGGREGATE(3,5,'03 Ingreso de datos'!AJ4:AJ1001)), 0)","v":0},{"$f":"IFERROR((SUMPRODUCT(SUBTOTAL(3,OFFSET('03 Ingreso de datos'!AJ4,ROW('03 Ingreso de datos'!AJ4:AJ1001)-ROW('03 Ingreso de datos'!AJ4),0)),('03 Ingreso de datos'!AJ4:AJ1001=\"Casi nunca\")+0))/(_xlfn.AGGREGATE(3,5,'03 Ingreso de datos'!AJ4:AJ1001)), 0)","v":0},{"$f":"IFERROR((SUMPRODUCT(SUBTOTAL(3,OFFSET('03 Ingreso de datos'!AJ4,ROW('03 Ingreso de datos'!AJ4:AJ1001)-ROW('03 Ingreso de datos'!AJ4),0)),('03 Ingreso de datos'!AJ4:AJ1001=\"Nunca\")+0))/(_xlfn.AGGREGATE(3,5,'03 Ingreso de datos'!AJ4:AJ1001)), 0)","v":0},{"$f":"IFERROR((SUMPRODUCT(SUBTOTAL(3,OFFSET('03 Ingreso de datos'!AJ4,ROW('03 Ingreso de datos'!AJ4:AJ1001)-ROW('03 Ingreso de datos'!AJ4),0)),('03 Ingreso de datos'!AJ4:AJ1001=\"No sabe\")+0))/(_xlfn.AGGREGATE(3,5,'03 Ingreso de datos'!AJ4:AJ1001)), 0)","v":0},{"$f":"SUBTOTAL(3,'03 Ingreso de datos'!AJ4:AJ1001)","v":0}]
[null,null,"C. Bata estéril",null,null,{"$f":"IFERROR((SUMPRODUCT(SUBTOTAL(3,OFFSET('03 Ingreso de datos'!AK4,ROW('03 Ingreso de datos'!AK4:AK1001)-ROW('03 Ingreso de datos'!AK4),0)),('03 Ingreso de datos'!AK4:AK1001=\"Siempre\")+0))/(_xlfn.AGGREGATE(3,5,'03 Ingreso de datos'!AK4:AK1001)), 0)","v":0},{"$f":"IFERROR((SUMPRODUCT(SUBTOTAL(3,OFFSET('03 Ingreso de datos'!AK4,ROW('03 Ingreso de datos'!AK4:AK1001)-ROW('03 Ingreso de datos'!AK4),0)),('03 Ingreso de datos'!AK4:AK1001=\"Casi siempre\")+0))/(_xlfn.AGGREGATE(3,5,'03 Ingreso de datos'!AK4:AK1001)), 0)","v":0},{"$f":"IFERROR((SUMPRODUCT(SUBTOTAL(3,OFFSET('03 Ingreso de datos'!AK4,ROW('03 Ingreso de datos'!AK4:AK1001)-ROW('03 Ingreso de datos'!AK4),0)),('03 Ingreso de datos'!AK4:AK1001=\"A veces\")+0))/(_xlfn.AGGREGATE(3,5,'03 Ingreso de datos'!AK4:AK1001)), 0)","v":0},{"$f":"IFERROR((SUMPRODUCT(SUBTOTAL(3,OFFSET('03 Ingreso de datos'!AK4,ROW('03 Ingreso de datos'!AK4:AK1001)-ROW('03 Ingreso de datos'!AK4),0)),('03 Ingreso de datos'!AK4:AK1001=\"Casi nunca\")+0))/(_xlfn.AGGREGATE(3,5,'03 Ingreso de datos'!AK4:AK1001)), 0)","v":0},{"$f":"IFERROR((SUMPRODUCT(SUBTOTAL(3,OFFSET('03 Ingreso de datos'!AK4,ROW('03 Ingreso de datos'!AK4:AK1001)-ROW('03 Ingreso de datos'!AK4),0)),('03 Ingreso de datos'!AK4:AK1001=\"Nunca\")+0))/(_xlfn.AGGREGATE(3,5,'03 Ingreso de datos'!AK4:AK1001)), 0)","v":0},{"$f":"IFERROR((SUMPRODUCT(SUBTOTAL(3,OFFSET('03 Ingreso de datos'!AK4,ROW('03 Ingreso de datos'!AK4:AK1001)-ROW('03 Ingreso de datos'!AK4),0)),('03 Ingreso de datos'!AK4:AK1001=\"No sabe\")+0))/(_xlfn.AGGREGATE(3,5,'03 Ingreso de datos'!AK4:AK1001)), 0)","v":0},{"$f":"SUBTOTAL(3,'03 Ingreso de datos'!AK4:AK1001)","v":0}]
[null,null,"D. Guantes estériles",null,null,{"$f":"IFERROR((SUMPRODUCT(SUBTOTAL(3,OFFSET('03 Ingreso de datos'!AL4,ROW('03 Ingreso de datos'!AL4:AL1001)-ROW('03 Ingreso de datos'!AL4),0)),('03 Ingreso de datos'!AL4:AL1001=\"Siempre\")+0))/(_xlfn.AGGREGATE(3,5,'03 Ingreso de datos'!AL4:AL1001)), 0)","v":0},{"$f":"IFERROR((SUMPRODUCT(SUBTOTAL(3,OFFSET('03 Ingreso de datos'!AL4,ROW('03 Ingreso de datos'!AL4:AL1001)-ROW('03 Ingreso de datos'!AL4),0)),('03 Ingreso de datos'!AL4:AL1001=\"Casi siempre\")+0))/(_xlfn.AGGREGATE(3,5,'03 Ingreso de datos'!AL4:AL1001)), 0)","v":0},{"$f":"IFERROR((SUMPRODUCT(SUBTOTAL(3,OFFSET('03 Ingreso de datos'!AL4,ROW('03 Ingreso de datos'!AL4:AL1001)-ROW('03 Ingreso de datos'!AL4),0)),('03 Ingreso de datos'!AL4:AL1001=\"A veces\")+0))/(_xlfn.AGGREGATE(3,5,'03 Ingreso de datos'!AL4:AL1001)), 0)","v":0},{"$f":"IFERROR((SUMPRODUCT(SUBTOTAL(3,OFFSET('03 Ingreso de datos'!AL4,ROW('03 Ingreso de datos'!AL4:AL1001)-ROW('03 Ingreso de datos'!AL4),0)),('03 Ingreso de datos'!AL4:AL1001=\"Casi nunca\")+0))/(_xlfn.AGGREGATE(3,5,'03 Ingreso de datos'!AL4:AL1001)), 0)","v":0},{"$f":"IFERROR((SUMPRODUCT(SUBTOTAL(3,OFFSET('03 Ingreso de datos'!AL4,ROW('03 Ingreso de datos'!AL4:AL1001)-ROW('03 Ingreso de datos'!AL4),0)),('03 Ingreso de datos'!AL4:AL1001=\"Nunca\")+0))/(_xlfn.AGGREGATE(3,5,'03 Ingreso de datos'!AL4:AL1001)), 0)","v":0},{"$f":"IFERROR((SUMPRODUCT(SUBTOTAL(3,OFFSET('03 Ingreso de datos'!AL4,ROW('03 Ingreso de datos'!AL4:AL1001)-ROW('03 Ingreso de datos'!AL4),0)),('03 Ingreso de datos'!AL4:AL1001=\"No sabe\")+0))/(_xlfn.AGGREGATE(3,5,'03 Ingreso de datos'!AL4:AL1001)), 0)","v":0},{"$f":"SUBTOTAL(3,'03 Ingreso de datos'!AL4:AL1001)","v":0}]
[null,null,"E. Paño estéril para cubrir al paciente",null,null,{"$f":"IFERROR((SUMPRODUCT(SUBTOTAL(3,OFFSET('03 Ingreso de datos'!AM4,ROW('03 Ingreso de datos'!AM4:AM1001)-ROW('03 Ingreso de datos'!AM4),0)),('03 Ingreso de datos'!AM4:AM1001=\"Siempre\")+0))/(_xlfn.AGGREGATE(3,5,'03 Ingreso de datos'!AM4:AM1001)), 0)","v":0},{"$f":"IFERROR((SUMPRODUCT(SUBTOTAL(3,OFFSET('03 Ingreso de datos'!AM4,ROW('03 Ingreso de datos'!AM4:AM1001)-ROW('03 Ingreso de datos'!AM4),0)),('03 Ingreso de datos'!AM4:AM1001=\"Casi siempre\")+0))/(_xlfn.AGGREGATE(3,5,'03 Ingreso de datos'!AM4:AM1001)), 0)","v":0},{"$f":"IFERROR((SUMPRODUCT(SUBTOTAL(3,OFFSET('03 Ingreso de datos'!AM4,ROW('03 Ingreso de datos'!AM4:AM1001)-ROW('03 Ingreso de datos'!AM4),0)),('03 Ingreso de datos'!AM4:AM1001=\"A veces\")+0))/(_xlfn.AGGREGATE(3,5,'03 Ingreso de datos'!AM4:AM1001)), 0)","v":0},{"$f":"IFERROR((SUMPRODUCT(SUBTOTAL(3,OFFSET('03 Ingreso de datos'!AM4,ROW('03 Ingreso de datos'!AM4:AM1001)-ROW('03 Ingreso de datos'!AM4),0)),('03 Ingreso de datos'!AM4:AM1001=\"Casi nunca\")+0))/(_xlfn.AGGREGATE(3,5,'03 Ingreso de datos'!AM4:AM1001)), 0)","v":0},{"$f":"IFERROR((SUMPRODUCT(SUBTOTAL(3,OFFSET('03 Ingreso de datos'!AM4,ROW('03 Ingreso de datos'!AM4:AM1001)-ROW('03 Ingreso de datos'!AM4),0)),('03 Ingreso de datos'!AM4:AM1001=\"Nunca\")+0))/(_xlfn.AGGREGATE(3,5,'03 Ingreso de datos'!AM4:AM1001)), 0)","v":0},{"$f":"IFERROR((SUMPRODUCT(SUBTOTAL(3,OFFSET('03 Ingreso de datos'!AM4,ROW('03 Ingreso de datos'!AM4:AM1001)-ROW('03 Ingreso de datos'!AM4),0)),('03 Ingreso de datos'!AM4:AM1001=\"No sabe\")+0))/(_xlfn.AGGREGATE(3,5,'03 Ingreso de datos'!AM4:AM1001)), 0)","v":0},{"$f":"SUBTOTAL(3,'03 Ingreso de datos'!AM4:AM1001)","v":0}]
[null,"8. ¿Participan al menos dos miembros del personal de atención médica en la inserción de las vías centrales (uno que hace la inserción y otro que observa o asiste con los suministros)?",null,null,null,{"$f":"IFERROR((SUMPRODUCT(SUBTOTAL(3,OFFSET('03 Ingreso de datos'!AN4,ROW('03 Ingreso de datos'!AN4:AN1001)-ROW('03 Ingreso de datos'!AN4),0)),('03 Ingreso de datos'!AN4:AN1001=\"Siempre\")+0))/(_xlfn.AGGREGATE(3,5,'03 Ingreso de datos'!AN4:AN1001)), 0)","v":0},{"$f":"IFERROR((SUMPRODUCT(SUBTOTAL(3,OFFSET('03 Ingreso de datos'!AN4,ROW('03 Ingreso de datos'!AN4:AN1001)-ROW('03 Ingreso de datos'!AN4),0)),('03 Ingreso de datos'!AN4:AN1001=\"Casi siempre\")+0))/(_xlfn.AGGREGATE(3,5,'03 Ingreso de datos'!AN4:AN1001)), 0)","v":0},{"$f":"IFERROR((SUMPRODUCT(SUBTOTAL(3,OFFSET('03 Ingreso de datos'!AN4,ROW('03 Ingreso de datos'!AN4:AN1001)-ROW('03 Ingreso de datos'!AN4),0)),('03 Ingreso de datos'!AN4:AN1001=\"A veces\")+0))/(_xlfn.AGGREGATE(3,5,'03 Ingreso de datos'!AN4:AN1001)), 0)","v":0},{"$f":"IFERROR((SUMPRODUCT(SUBTOTAL(3,OFFSET('03 Ingreso de datos'!AN4,ROW('03 Ingreso de datos'!AN4:AN1001)-ROW('03 Ingreso de datos'!AN4),0)),('03 Ingreso de datos'!AN4:AN1001=\"Casi nunca\")+0))/(_xlfn.AGGREGATE(3,5,'03 Ingreso de datos'!AN4:AN1001)), 0)","v":0},{"$f":"IFERROR((SUMPRODUCT(SUBTOTAL(3,OFFSET('03 Ingreso de datos'!AN4,ROW('03 Ingreso de datos'!AN4:AN1001)-ROW('03 Ingreso de datos'!AN4),0)),('03 Ingreso de datos'!AN4:AN1001=\"Nunca\")+0))/(_xlfn.AGGREGATE(3,5,'03 Ingreso de datos'!AN4:AN1001)), 0)","v":0},{"$f":"IFERROR((SUMPRODUCT(SUBTOTAL(3,OFFSET('03 Ingreso de datos'!AN4,ROW('03 Ingreso de datos'!AN4:AN1001)-ROW('03 Ingreso de datos'!AN4),0)),('03 Ingreso de datos'!AN4:AN1001=\"No sabe\")+0))/(_xlfn.AGGREGATE(3,5,'03 Ingreso de datos'!AN4:AN1001)), 0)","v":0},{"$f":"SUBTOTAL(3,'03 Ingreso de datos'!AN4:AN1001)","v":0}]
[null,"9. ¿Detienen los miembros del personal de atención médica la inserción de una vía central (no urgente) si no se siguieron los procedimientos adecuados?",null,null,null,{"$f":"IFERROR((SUMPRODUCT(SUBTOTAL(3,OFFSET('03 Ingreso de datos'!AO4,ROW('03 Ingreso de datos'!AO4:AO1001)-ROW('03 Ingreso de datos'!AO4),0)),('03 Ingreso de datos'!AO4:AO1001=\"Siempre\")+0))/(_xlfn.AGGREGATE(3,5,'03 Ingreso de datos'!AO4:AO1001)), 0)","v":0},{"$f":"IFERROR((SUMPRODUCT(SUBTOTAL(3,OFFSET('03 Ingreso de datos'!AO4,ROW('03 Ingreso de datos'!AO4:AO1001)-ROW('03 Ingreso de datos'!AO4),0)),('03 Ingreso de datos'!AO4:AO1001=\"Casi siempre\")+0))/(_xlfn.AGGREGATE(3,5,'03 Ingreso de datos'!AO4:AO1001)), 0)","v":0},{"$f":"IFERROR((SUMPRODUCT(SUBTOTAL(3,OFFSET('03 Ingreso de datos'!AO4,ROW('03 Ingreso de datos'!AO4:AO1001)-ROW('03 Ingreso de datos'!AO4),0)),('03 Ingreso de datos'!AO4:AO1001=\"A veces\")+0))/(_xlfn.AGGREGATE(3,5,'03 Ingreso de datos'!AO4:AO1001)), 0)","v":0},{"$f":"IFERROR((SUMPRODUCT(SUBTOTAL(3,OFFSET('03 Ingreso de datos'!AO4,ROW('03 Ingreso de datos'!AO4:AO1001)-ROW('03 Ingreso de datos'!AO4),0)),('03 Ingreso de datos'!AO4:AO1001=\"Casi nunca\")+0))/(_xlfn.AGGREGATE(3,5,'03 Ingreso de datos'!AO4:AO1001)), 0)","v":0},{"$f":"IFERROR((SUMPRODUCT(SUBTOTAL(3,OFFSET('03 Ingreso de datos'!AO4,ROW('03 Ingreso de datos'!AO4:AO1001)-ROW('03 Ingreso de datos'!AO4),0)),('03 Ingreso de datos'!AO4:AO1001=\"Nunca\")+0))/(_xlfn.AGGREGATE(3,5,'03 Ingreso de datos'!AO4:AO1001)), 0)","v":0},{"$f":"IFERROR((SUMPRODUCT(SUBTOTAL(3,OFFSET('03 Ingreso de datos'!AO4,ROW('03 Ingreso de datos'!AO4:AO1001)-ROW('03 Ingreso de datos'!AO4),0)),('03 Ingreso de datos'!AO4:AO1001=\"No sabe\")+0))/(_xlfn.AGGREGATE(3,5,'03 Ingreso de datos'!AO4:AO1001)), 0)","v":0},{"$f":"SUBTOTAL(3,'03 Ingreso de datos'!AO4:AO1001)","v":0}]
[null,"10. ¿Se usan vías centrales con la cantidad mínima de lúmenes?",null,null,null,{"$f":"IFERROR((SUMPRODUCT(SUBTOTAL(3,OFFSET('03 Ingreso de datos'!AP4,ROW('03 Ingreso de datos'!AP4:AP1001)-ROW('03 Ingreso de datos'!AP4),0)),('03 Ingreso de datos'!AP4:AP1001=\"Siempre\")+0))/(_xlfn.AGGREGATE(3,5,'03 Ingreso de datos'!AP4:AP1001)), 0)","v":0},{"$f":"IFERROR((SUMPRODUCT(SUBTOTAL(3,OFFSET('03 Ingreso de datos'!AP4,ROW('03 Ingreso de datos'!AP4:AP1001)-ROW('03 Ingreso de datos'!AP4),0)),('03 Ingreso de datos'!AP4:AP1001=\"Casi siempre\")+0))/(_xlfn.AGGREGATE(3,5,'03 Ingreso de datos'!AP4:AP1001)), 0)","v":0},{"$f":"IFERROR((SUMPRODUCT(SUBTOTAL(3,OFFSET('03 Ingreso de datos'!AP4,ROW('03 Ingreso de datos'!AP4:AP1001)-ROW('03 Ingreso de datos'!AP4),0)),('03 Ingreso de datos'!AP4:AP1001=\"A veces\")+0))/(_xlfn.AGGREGATE(3,5,'03 Ingreso de datos'!AP4:AP1001)), 0)","v":0},{"$f":"IFERROR((SUMPRODUCT(SUBTOTAL(3,OFFSET('03 Ingreso de datos'!AP4,ROW('03 Ingreso de datos'!AP4:AP1001)-ROW('03 Ingreso de datos'!AP4),0)),('03 Ingreso de datos'!AP4:AP1001=\"Casi nunca\")+0))/(_xlfn.AGGREGATE(3,5,'03 Ingreso de datos'!AP4:AP1001)), 0)","v":0},{"$f":"IFERROR((SUMPRODUCT(SUBTOTAL(3,OFFSET('03 Ingreso de datos'!AP4,ROW('03 Ingreso de datos'!AP4:AP1001)-ROW('03 Ingreso de datos'!AP4),0)),('03 Ingreso de datos'!AP4:AP1001=\"Nunca\")+0))/(_xlfn.AGGREGATE(3,5,'03 Ingreso de datos'!AP4:AP1001)), 0)","v":0},{"$f":"IFERROR((SUMPRODUCT(SUBTOTAL(3,OFFSET('03 Ingreso de datos'!AP4,ROW('03 Ingreso de datos'!AP4:AP1001)-ROW('03 Ingreso de datos'!AP4),0)),('03 Ingreso de datos'!AP4:AP1001=\"No sabe\")+0))/(_xlfn.AGGREGATE(3,5,'03 Ingreso de datos'!AP4:AP1001)), 0)","v":0},{"$f":"SUBTOTAL(3,'03 Ingreso de datos'!AP4:AP1001)","v":0}]
[null,"11. ¿Se fijan las vías centrales a la piel sin puntos de sutura  (por ejemplo, un dispositivo de fijación sin suturas)?",null,null,null,{"$f":"IFERROR((SUMPRODUCT(SUBTOTAL(3,OFFSET('03 Ingreso de datos'!AQ4,ROW('03 Ingreso de datos'!AQ4:AQ1001)-ROW('03 Ingreso de datos'!AQ4),0)),('03 Ingreso de datos'!AQ4:AQ1001=\"Siempre\")+0))/(_xlfn.AGGREGATE(3,5,'03 Ingreso de datos'!AQ4:AQ1001)), 0)","v":0},{"$f":"IFERROR((SUMPRODUCT(SUBTOTAL(3,OFFSET('03 Ingreso de datos'!AQ4,ROW('03 Ingreso de datos'!AQ4:AQ1001)-ROW('03 Ingreso de datos'!AQ4),0)),('03 Ingreso de datos'!AQ4:AQ1001=\"Casi siempre\")+0))/(_xlfn.AGGREGATE(3,5,'03 Ingreso de datos'!AQ4:AQ1001)), 0)","v":0},{"$f":"IFERROR((SUMPRODUCT(SUBTOTAL(3,OFFSET('03 Ingreso de datos'!AQ4,ROW('03 Ingreso de datos'!AQ4:AQ1001)-ROW('03 Ingreso de datos'!AQ4),0)),('03 Ingreso de datos'!AQ4:AQ1001=\"A veces\")+0))/(_xlfn.AGGREGATE(3,5,'03 Ingreso de datos'!AQ4:AQ1001)), 0)","v":0},{"$f":"IFERROR((SUMPRODUCT(SUBTOTAL(3,OFFSET('03 Ingreso de datos'!AQ4,ROW('03 Ingreso de datos'!AQ4:AQ1001)-ROW('03 Ingreso de datos'!AQ4),0)),('03 Ingreso de datos'!AQ4:AQ1001=\"Casi nunca\")+0))/(_xlfn.AGGREGATE(3,5,'03 Ingreso de datos'!AQ4:AQ1001)), 0)","v":0},{"$f":"IFERROR((SUMPRODUCT(SUBTOTAL(3,OFFSET('03 Ingreso de datos'!AQ4,ROW('03 Ingreso de datos'!AQ4:AQ1001)-ROW('03 Ingreso de datos'!AQ4),0)),('03 Ingreso de datos'!AQ4:AQ1001=\"Nunca\")+0))/(_xlfn.AGGREGATE(3,5,'03 Ingreso de datos'!AQ4:AQ1001)), 0)","v":0},{"$f":"IFERROR((SUMPRODUCT(SUBTOTAL(3,OFFSET('03 Ingreso de datos'!AQ4,ROW('03 Ingreso de datos'!AQ4:AQ1001)-ROW('03 Ingreso de datos'!AQ4),0)),('03 Ingreso de datos'!AQ4:AQ1001=\"No sabe\")+0))/(_xlfn.AGGREGATE(3,5,'03 Ingreso de datos'!AQ4:AQ1001)), 0)","v":0},{"$f":"SUBTOTAL(3,'03 Ingreso de datos'!AQ4:AQ1001)","v":0}]
[]
[null,"2B. Prácticas relacionadas con las vías centrales, continuación"]
[null,null,null,null,null,"Siempre","Casi siempre","A veces","Casi nunca","Nunca","No sabe","# de respuestas"]
[null,"12. ¿Se cubren los sitios de inserción de las vías centrales con un vendaje estéril (gaza estéril o vendaje transparente estéril)?",null,null,null,{"$f":"IFERROR((SUMPRODUCT(SUBTOTAL(3,OFFSET('03 Ingreso de datos'!AR4,ROW('03 Ingreso de datos'!AR4:AR1001)-ROW('03 Ingreso de datos'!AR4),0)),('03 Ingreso de datos'!AR4:AR1001=\"Siempre\")+0))/(_xlfn.AGGREGATE(3,5,'03 Ingreso de datos'!AR4:AR1001)), 0)","v":0},{"$f":"IFERROR((SUMPRODUCT(SUBTOTAL(3,OFFSET('03 Ingreso de datos'!AR4,ROW('03 Ingreso de datos'!AR4:AR1001)-ROW('03 Ingreso de datos'!AR4),0)),('03 Ingreso de datos'!AR4:AR1001=\"Casi siempre\")+0))/(_xlfn.AGGREGATE(3,5,'03 Ingreso de datos'!AR4:AR1001)), 0)","v":0},{"$f":"IFERROR((SUMPRODUCT(SUBTOTAL(3,OFFSET('03 Ingreso de datos'!AR4,ROW('03 Ingreso de datos'!AR4:AR1001)-ROW('03 Ingreso de datos'!AR4),0)),('03 Ingreso de datos'!AR4:AR1001=\"A veces\")+0))/(_xlfn.AGGREGATE(3,5,'03 Ingreso de datos'!AR4:AR1001)), 0)","v":0},{"$f":"IFERROR((SUMPRODUCT(SUBTOTAL(3,OFFSET('03 Ingreso de datos'!AR4,ROW('03 Ingreso de datos'!AR4:AR1001)-ROW('03 Ingreso de datos'!AR4),0)),('03 Ingreso de datos'!AR4:AR1001=\"Casi nunca\")+0))/(_xlfn.AGGREGATE(3,5,'03 Ingreso de datos'!AR4:AR1001)), 0)","v":0},{"$f":"IFERROR((SUMPRODUCT(SUBTOTAL(3,OFFSET('03 Ingreso de datos'!AR4,ROW('03 Ingreso de datos'!AR4:AR1001)-ROW('03 Ingreso de datos'!AR4),0)),('03 Ingreso de datos'!AR4:AR1001=\"Nunca\")+0))/(_xlfn.AGGREGATE(3,5,'03 Ingreso de datos'!AR4:AR1001)), 0)","v":0},{"$f":"IFERROR((SUMPRODUCT(SUBTOTAL(3,OFFSET('03 Ingreso de datos'!AR4,ROW('03 Ingreso de datos'!AR4:AR1001)-ROW('03 Ingreso de datos'!AR4),0)),('03 Ingreso de datos'!AR4:AR1001=\"No sabe\")+0))/(_xlfn.AGGREGATE(3,5,'03 Ingreso de datos'!AR4:AR1001)), 0)","v":0},{"$f":"SUBTOTAL(3,'03 Ingreso de datos'!AR4:AR1001)","v":0}]
[null,"13. ¿Se evalúan a diario las vías centrales (p. ej., durante las visitas médicas a los pacientes) para asegurarse de que sigan siendo necesarias?",null,null,null,{"$f":"IFERROR((SUMPRODUCT(SUBTOTAL(3,OFFSET('03 Ingreso de datos'!AS4,ROW('03 Ingreso de datos'!AS4:AS1001)-ROW('03 Ingreso de datos'!AS4),0)),('03 Ingreso de datos'!AS4:AS1001=\"Siempre\")+0))/(_xlfn.AGGREGATE(3,5,'03 Ingreso de datos'!AS4:AS1001)), 0)","v":0},{"$f":"IFERROR((SUMPRODUCT(SUBTOTAL(3,OFFSET('03 Ingreso de datos'!AS4,ROW('03 Ingreso de datos'!AS4:AS1001)-ROW('03 Ingreso de datos'!AS4),0)),('03 Ingreso de datos'!AS4:AS1001=\"Casi siempre\")+0))/(_xlfn.AGGREGATE(3,5,'03 Ingreso de datos'!AS4:AS1001)), 0)","v":0},{"$f":"IFERROR((SUMPRODUCT(SUBTOTAL(3,OFFSET('03 Ingreso de datos'!AS4,ROW('03 Ingreso de datos'!AS4:AS1001)-ROW('03 Ingreso de datos'!AS4),0)),('03 Ingreso de datos'!AS4:AS1001=\"A veces\")+0))/(_xlfn.AGGREGATE(3,5,'03 Ingreso de datos'!AS4:AS1001)), 0)","v":0},{"$f":"IFERROR((SUMPRODUCT(SUBTOTAL(3,OFFSET('03 Ingreso de datos'!AS4,ROW('03 Ingreso de datos'!AS4:AS1001)-ROW('03 Ingreso de datos'!AS4),0)),('03 Ingreso de datos'!AS4:AS1001=\"Casi nunca\")+0))/(_xlfn.AGGREGATE(3,5,'03 Ingreso de datos'!AS4:AS1001)), 0)","v":0},{"$f":"IFERROR((SUMPRODUCT(SUBTOTAL(3,OFFSET('03 Ingreso de datos'!AS4,ROW('03 Ingreso de datos'!AS4:AS1001)-ROW('03 Ingreso de datos'!AS4),0)),('03 Ingreso de datos'!AS4:AS1001=\"Nunca\")+0))/(_xlfn.AGGREGATE(3,5,'03 Ingreso de datos'!AS4:AS1001)), 0)","v":0},{"$f":"IFERROR((SUMPRODUCT(SUBTOTAL(3,OFFSET('03 Ingreso de datos'!AS4,ROW('03 Ingreso de datos'!AS4:AS1001)-ROW('03 Ingreso de datos'!AS4),0)),('03 Ingreso de datos'!AS4:AS1001=\"No sabe\")+0))/(_xlfn.AGGREGATE(3,5,'03 Ingreso de datos'!AS4:AS1001)), 0)","v":0},{"$f":"SUBTOTAL(3,'03 Ingreso de datos'!AS4:AS1001)","v":0}]
[null,"14. ¿Son accesadas y mantenidas las vías centrales solo por miembros del personal de atención médica capacitados? ",null,null,null,{"$f":"IFERROR((SUMPRODUCT(SUBTOTAL(3,OFFSET('03 Ingreso de datos'!AT4,ROW('03 Ingreso de datos'!AT4:AT1001)-ROW('03 Ingreso de datos'!AT4),0)),('03 Ingreso de datos'!AT4:AT1001=\"Siempre\")+0))/(_xlfn.AGGREGATE(3,5,'03 Ingreso de datos'!AT4:AT1001)), 0)","v":0},{"$f":"IFERROR((SUMPRODUCT(SUBTOTAL(3,OFFSET('03 Ingreso de datos'!AT4,ROW('03 Ingreso de datos'!AT4:AT1001)-ROW('03 Ingreso de datos'!AT4),0)),('03 Ingreso de datos'!AT4:AT1001=\"Casi siempre\")+0))/(_xlfn.AGGREGATE(3,5,'03 Ingreso de datos'!AT4:AT1001)), 0)","v":0},{"$f":"IFERROR((SUMPRODUCT(SUBTOTAL(3,OFFSET('03 Ingreso de datos'!AT4,ROW('03 Ingreso de datos'!AT4:AT1001)-ROW('03 Ingreso de datos'!AT4),0)),('03 Ingreso de datos'!AT4:AT1001=\"A veces\")+0))/(_xlfn.AGGREGATE(3,5,'03 Ingreso de datos'!AT4:AT1001)), 0)","v":0},{"$f":"IFERROR((SUMPRODUCT(SUBTOTAL(3,OFFSET('03 Ingreso de datos'!AT4,ROW('03 Ingreso de datos'!AT4:AT1001)-ROW('03 Ingreso de datos'!AT4),0)),('03 Ingreso de datos'!AT4:AT1001=\"Casi nunca\")+0))/(_xlfn.AGGREGATE(3,5,'03 Ingreso de datos'!AT4:AT1001)), 0)","v":0},{"$f":"IFERROR((SUMPRODUCT(SUBTOTAL(3,OFFSET('03 Ingreso de datos'!AT4,ROW('03 Ingreso de datos'!AT4:AT1001)-ROW('03 Ingreso de datos'!AT4),0)),('03 Ingreso de datos'!AT4:AT1001=\"Nunca\")+0))/(_xlfn.AGGREGATE(3,5,'03 Ingreso de datos'!AT4:AT1001)), 0)","v":0},{"$f":"IFERROR((SUMPRODUCT(SUBTOTAL(3,OFFSET('03 Ingreso de datos'!AT4,ROW('03 Ingreso de datos'!AT4:AT1001)-ROW('03 Ingreso de datos'!AT4),0)),('03 Ingreso de datos'!AT4:AT1001=\"No sabe\")+0))/(_xlfn.AGGREGATE(3,5,'03 Ingreso de datos'!AT4:AT1001)), 0)","v":0},{"$f":"SUBTOTAL(3,'03 Ingreso de datos'!AT4:AT1001)","v":0}]
[null,"15. ¿Se practica higiene de las manos antes de manipular las vías centrales (por ejemplo, para accesar o hacer un cambio de vendaje)?",null,null,null,{"$f":"IFERROR((SUMPRODUCT(SUBTOTAL(3,OFFSET('03 Ingreso de datos'!AU4,ROW('03 Ingreso de datos'!AU4:AU1001)-ROW('03 Ingreso de datos'!AU4),0)),('03 Ingreso de datos'!AU4:AU1001=\"Siempre\")+0))/(_xlfn.AGGREGATE(3,5,'03 Ingreso de datos'!AU4:AU1001)), 0)","v":0},{"$f":"IFERROR((SUMPRODUCT(SUBTOTAL(3,OFFSET('03 Ingreso de datos'!AU4,ROW('03 Ingreso de datos'!AU4:AU1001)-ROW('03 Ingreso de datos'!AU4),0)),('03 Ingreso de datos'!AU4:AU1001=\"Casi siempre\")+0))/(_xlfn.AGGREGATE(3,5,'03 Ingreso de datos'!AU4:AU1001)), 0)","v":0},{"$f":"IFERROR((SUMPRODUCT(SUBTOTAL(3,OFFSET('03 Ingreso de datos'!AU4,ROW('03 Ingreso de datos'!AU4:AU1001)-ROW('03 Ingreso de datos'!AU4),0)),('03 Ingreso de datos'!AU4:AU1001=\"A veces\")+0))/(_xlfn.AGGREGATE(3,5,'03 Ingreso de datos'!AU4:AU1001)), 0)","v":0},{"$f":"IFERROR((SUMPRODUCT(SUBTOTAL(3,OFFSET('03 Ingreso de datos'!AU4,ROW('03 Ingreso de datos'!AU4:AU1001)-ROW('03 Ingreso de datos'!AU4),0)),('03 Ingreso de datos'!AU4:AU1001=\"Casi nunca\")+0))/(_xlfn.AGGREGATE(3,5,'03 Ingreso de datos'!AU4:AU1001)), 0)","v":0},{"$f":"IFERROR((SUMPRODUCT(SUBTOTAL(3,OFFSET('03 Ingreso de datos'!AU4,ROW('03 Ingreso de datos'!AU4:AU1001)-ROW('03 Ingreso de datos'!AU4),0)),('03 Ingreso de datos'!AU4:AU1001=\"Nunca\")+0))/(_xlfn.AGGREGATE(3,5,'03 Ingreso de datos'!AU4:AU1001)), 0)","v":0},{"$f":"IFERROR((SUMPRODUCT(SUBTOTAL(3,OFFSET('03 Ingreso de datos'!AU4,ROW('03 Ingreso de datos'!AU4:AU1001)-ROW('03 Ingreso de datos'!AU4),0)),('03 Ingreso de datos'!AU4:AU1001=\"No sabe\")+0))/(_xlfn.AGGREGATE(3,5,'03 Ingreso de datos'!AU4:AU1001)), 0)","v":0},{"$f":"SUBTOTAL(3,'03 Ingreso de datos'!AU4:AU1001)","v":0}]
[null,"16. ¿Se accesan las vías centrales con dispositivos estériles solamente (por ejemplo, jeringas y catéteres)? ",null,null,null,{"$f":"IFERROR((SUMPRODUCT(SUBTOTAL(3,OFFSET('03 Ingreso de datos'!AV4,ROW('03 Ingreso de datos'!AV4:AV1001)-ROW('03 Ingreso de datos'!AV4),0)),('03 Ingreso de datos'!AV4:AV1001=\"Siempre\")+0))/(_xlfn.AGGREGATE(3,5,'03 Ingreso de datos'!AV4:AV1001)), 0)","v":0},{"$f":"IFERROR((SUMPRODUCT(SUBTOTAL(3,OFFSET('03 Ingreso de datos'!AV4,ROW('03 Ingreso de datos'!AV4:AV1001)-ROW('03 Ingreso de datos'!AV4),0)),('03 Ingreso de datos'!AV4:AV1001=\"Casi siempre\")+0))/(_xlfn.AGGREGATE(3,5,'03 Ingreso de datos'!AV4:AV1001)), 0)","v":0},{"$f":"IFERROR((SUMPRODUCT(SUBTOTAL(3,OFFSET('03 Ingreso de datos'!AV4,ROW('03 Ingreso de datos'!AV4:AV1001)-ROW('03 Ingreso de datos'!AV4),0)),('03 Ingreso de datos'!AV4:AV1001=\"A veces\")+0))/(_xlfn.AGGREGATE(3,5,'03 Ingreso de datos'!AV4:AV1001)), 0)","v":0},{"$f":"IFERROR((SUMPRODUCT(SUBTOTAL(3,OFFSET('03 Ingreso de datos'!AV4,ROW('03 Ingreso de datos'!AV4:AV1001)-ROW('03 Ingreso de datos'!AV4),0)),('03 Ingreso de datos'!AV4:AV1001=\"Casi nunca\")+0))/(_xlfn.AGGREGATE(3,5,'03 Ingreso de datos'!AV4:AV1001)), 0)","v":0},{"$f":"IFERROR((SUMPRODUCT(SUBTOTAL(3,OFFSET('03 Ingreso de datos'!AV4,ROW('03 Ingreso de datos'!AV4:AV1001)-ROW('03 Ingreso de datos'!AV4),0)),('03 Ingreso de datos'!AV4:AV1001=\"Nunca\")+0))/(_xlfn.AGGREGATE(3,5,'03 Ingreso de datos'!AV4:AV1001)), 0)","v":0},{"$f":"IFERROR((SUMPRODUCT(SUBTOTAL(3,OFFSET('03 Ingreso de datos'!AV4,ROW('03 Ingreso de datos'!AV4:AV1001)-ROW('03 Ingreso de datos'!AV4),0)),('03 Ingreso de datos'!AV4:AV1001=\"No sabe\")+0))/(_xlfn.AGGREGATE(3,5,'03 Ingreso de datos'!AV4:AV1001)), 0)","v":0},{"$f":"SUBTOTAL(3,'03 Ingreso de datos'!AV4:AV1001)","v":0}]
[null,"17. ¿Se limpian los puertos o conectores de acceso con un antiséptico inmediatamente antes de su uso (clorhexidina, povidona yodada o alcohol al 70 %)?",null,null,null,{"$f":"IFERROR((SUMPRODUCT(SUBTOTAL(3,OFFSET('03 Ingreso de datos'!AW4,ROW('03 Ingreso de datos'!AW4:AW1001)-ROW('03 Ingreso de datos'!AW4),0)),('03 Ingreso de datos'!AW4:AW1001=\"Siempre\")+0))/(_xlfn.AGGREGATE(3,5,'03 Ingreso de datos'!AW4:AW1001)), 0)","v":0},{"$f":"IFERROR((SUMPRODUCT(SUBTOTAL(3,OFFSET('03 Ingreso de datos'!AW4,ROW('03 Ingreso de datos'!AW4:AW1001)-ROW('03 Ingreso de datos'!AW4),0)),('03 Ingreso de datos'!AW4:AW1001=\"Casi siempre\")+0))/(_xlfn.AGGREGATE(3,5,'03 Ingreso de datos'!AW4:AW1001)), 0)","v":0},{"$f":"IFERROR((SUMPRODUCT(SUBTOTAL(3,OFFSET('03 Ingreso de datos'!AW4,ROW('03 Ingreso de datos'!AW4:AW1001)-ROW('03 Ingreso de datos'!AW4),0)),('03 Ingreso de datos'!AW4:AW1001=\"A veces\")+0))/(_xlfn.AGGREGATE(3,5,'03 Ingreso de datos'!AW4:AW1001)), 0)","v":0},{"$f":"IFERROR((SUMPRODUCT(SUBTOTAL(3,OFFSET('03 Ingreso de datos'!AW4,ROW('03 Ingreso de datos'!AW4:AW1001)-ROW('03 Ingreso de datos'!AW4),0)),('03 Ingreso de datos'!AW4:AW1001=\"Casi nunca\")+0))/(_xlfn.AGGREGATE(3,5,'03 Ingreso de datos'!AW4:AW1001)), 0)","v":0},{"$f":"IFERROR((SUMPRODUCT(SUBTOTAL(3,OFFSET('03 Ingreso de datos'!AW4,ROW('03 Ingreso de datos'!AW4:AW1001)-ROW('03 Ingreso de datos'!AW4),0)),('03 Ingreso de datos'!AW4:AW1001=\"Nunca\")+0))/(_xlfn.AGGREGATE(3,5,'03 Ingreso de datos'!AW4:AW1001)), 0)","v":0},{"$f":"IFERROR((SUMPRODUCT(SUBTOTAL(3,OFFSET('03 Ingreso de datos'!AW4,ROW('03 Ingreso de datos'!AW4:AW1001)-ROW('03 Ingreso de datos'!AW4),0)),('03 Ingreso de datos'!AW4:AW1001=\"No sabe\")+0))/(_xlfn.AGGREGATE(3,5,'03 Ingreso de datos'!AW4:AW1001)), 0)","v":0},{"$f":"SUBTOTAL(3,'03 Ingreso de datos'!AW4:AW1001)","v":0}]
[null,"18. ¿Se prepara la piel con un antiséptico durante los cambios de vendajes (clorhexidina, povidona yodada o alcohol al 70 %)?",null,null,null,{"$f":"IFERROR((SUMPRODUCT(SUBTOTAL(3,OFFSET('03 Ingreso de datos'!AX4,ROW('03 Ingreso de datos'!AX4:AX1001)-ROW('03 Ingreso de datos'!AX4),0)),('03 Ingreso de datos'!AX4:AX1001=\"Siempre\")+0))/(_xlfn.AGGREGATE(3,5,'03 Ingreso de datos'!AX4:AX1001)), 0)","v":0},{"$f":"IFERROR((SUMPRODUCT(SUBTOTAL(3,OFFSET('03 Ingreso de datos'!AX4,ROW('03 Ingreso de datos'!AX4:AX1001)-ROW('03 Ingreso de datos'!AX4),0)),('03 Ingreso de datos'!AX4:AX1001=\"Casi siempre\")+0))/(_xlfn.AGGREGATE(3,5,'03 Ingreso de datos'!AX4:AX1001)), 0)","v":0},{"$f":"IFERROR((SUMPRODUCT(SUBTOTAL(3,OFFSET('03 Ingreso de datos'!AX4,ROW('03 Ingreso de datos'!AX4:AX1001)-ROW('03 Ingreso de datos'!AX4),0)),('03 Ingreso de datos'!AX4:AX1001=\"A veces\")+0))/(_xlfn.AGGREGATE(3,5,'03 Ingreso de datos'!AX4:AX1001)), 0)","v":0},{"$f":"IFERROR((SUMPRODUCT(SUBTOTAL(3,OFFSET('03 Ingreso de datos'!AX4,ROW('03 Ingreso de datos'!AX4:AX1001)-ROW('03 Ingreso de datos'!AX4),0)),('03 Ingreso de datos'!AX4:AX1001=\"Casi nunca\")+0))/(_xlfn.AGGREGATE(3,5,'03 Ingreso de datos'!AX4:AX1001)), 0)","v":0},{"$f":"IFERROR((SUMPRODUCT(SUBTOTAL(3,OFFSET('03 Ingreso de datos'!AX4,ROW('03 Ingreso de datos'!AX4:AX1001)-ROW('03 Ingreso de datos'!AX4),0)),('03 Ingreso de datos'!AX4:AX1001=\"Nunca\")+0))/(_xlfn.AGGREGATE(3,5,'03 Ingreso de datos'!AX4:AX1001)), 0)","v":0},{"$f":"IFERROR((SUMPRODUCT(SUBTOTAL(3,OFFSET('03 Ingreso de datos'!AX4,ROW('03 Ingreso de datos'!AX4:AX1001)-ROW('03 Ingreso de datos'!AX4),0)),('03 Ingreso de datos'!AX4:AX1001=\"No sabe\")+0))/(_xlfn.AGGREGATE(3,5,'03 Ingreso de datos'!AX4:AX1001)), 0)","v":0},{"$f":"SUBTOTAL(3,'03 Ingreso de datos'!AX4:AX1001)","v":0}]
[null,"19. ¿Se cambian los vendajes usando una técnica aséptica \n(por ejemplo, usar guantes limpios o estériles)?",null,null,null,{"$f":"IFERROR((SUMPRODUCT(SUBTOTAL(3,OFFSET('03 Ingreso de datos'!AY4,ROW('03 Ingreso de datos'!AY4:AY1001)-ROW('03 Ingreso de datos'!AY4),0)),('03 Ingreso de datos'!AY4:AY1001=\"Siempre\")+0))/(_xlfn.AGGREGATE(3,5,'03 Ingreso de datos'!AY4:AY1001)), 0)","v":0},{"$f":"IFERROR((SUMPRODUCT(SUBTOTAL(3,OFFSET('03 Ingreso de datos'!AY4,ROW('03 Ingreso de datos'!AY4:AY1001)-ROW('03 Ingreso de datos'!AY4),0)),('03 Ingreso de datos'!AY4:AY1001=\"Casi siempre\")+0))/(_xlfn.AGGREGATE(3,5,'03 Ingreso de datos'!AY4:AY1001)), 0)","v":0},{"$f":"IFERROR((SUMPRODUCT(SUBTOTAL(3,OFFSET('03 Ingreso de datos'!AY4,ROW('03 Ingreso de datos'!AY4:AY1001)-ROW('03 Ingreso de datos'!AY4),0)),('03 Ingreso de datos'!AY4:AY1001=\"A veces\")+0))/(_xlfn.AGGREGATE(3,5,'03 Ingreso de datos'!AY4:AY1001)), 0)","v":0},{"$f":"IFERROR((SUMPRODUCT(SUBTOTAL(3,OFFSET('03 Ingreso de datos'!AY4,ROW('03 Ingreso de datos'!AY4:AY1001)-ROW('03 Ingreso de datos'!AY4),0)),('03 Ingreso de datos'!AY4:AY1001=\"Casi nunca\")+0))/(_xlfn.AGGREGATE(3,5,'03 Ingreso de datos'!AY4:AY1001)), 0)","v":0},{"$f":"IFERROR((SUMPRODUCT(SUBTOTAL(3,OFFSET('03 Ingreso de datos'!AY4,ROW('03 Ingreso de datos'!AY4:AY1001)-ROW('03 Ingreso de datos'!AY4),0)),('03 Ingreso de datos'!AY4:AY1001=\"Nunca\")+0))/(_xlfn.AGGREGATE(3,5,'03 Ingreso de datos'!AY4:AY1001)), 0)","v":0},{"$f":"IFERROR((SUMPRODUCT(SUBTOTAL(3,OFFSET('03 Ingreso de datos'!AY4,ROW('03 Ingreso de datos'!AY4:AY1001)-ROW('03 Ingreso de datos'!AY4),0)),('03 Ingreso de datos'!AY4:AY1001=\"No sabe\")+0))/(_xlfn.AGGREGATE(3,5,'03 Ingreso de datos'!AY4:AY1001)), 0)","v":0},{"$f":"SUBTOTAL(3,'03 Ingreso de datos'!AY4:AY1001)","v":0}]
[null,"20. ¿Se cambian los vendajes inmediatamente cuando se mojan, ensucian o desprenden?",null,null,null,{"$f":"IFERROR((SUMPRODUCT(SUBTOTAL(3,OFFSET('03 Ingreso de datos'!AZ4,ROW('03 Ingreso de datos'!AZ4:AZ1001)-ROW('03 Ingreso de datos'!AZ4),0)),('03 Ingreso de datos'!AZ4:AZ1001=\"Siempre\")+0))/(_xlfn.AGGREGATE(3,5,'03 Ingreso de datos'!AZ4:AZ1001)), 0)","v":0},{"$f":"IFERROR((SUMPRODUCT(SUBTOTAL(3,OFFSET('03 Ingreso de datos'!AZ4,ROW('03 Ingreso de datos'!AZ4:AZ1001)-ROW('03 Ingreso de datos'!AZ4),0)),('03 Ingreso de datos'!AZ4:AZ1001=\"Casi siempre\")+0))/(_xlfn.AGGREGATE(3,5,'03 Ingreso de datos'!AZ4:AZ1001)), 0)","v":0},{"$f":"IFERROR((SUMPRODUCT(SUBTOTAL(3,OFFSET('03 Ingreso de datos'!AZ4,ROW('03 Ingreso de datos'!AZ4:AZ1001)-ROW('03 Ingreso de datos'!AZ4),0)),('03 Ingreso de datos'!AZ4:AZ1001=\"A veces\")+0))/(_xlfn.AGGREGATE(3,5,'03 Ingreso de datos'!AZ4:AZ1001)), 0)","v":0},{"$f":"IFERROR((SUMPRODUCT(SUBTOTAL(3,OFFSET('03 Ingreso de datos'!AZ4,ROW('03 Ingreso de datos'!AZ4:AZ1001)-ROW('03 Ingreso de datos'!AZ4),0)),('03 Ingreso de datos'!AZ4:AZ1001=\"Casi nunca\")+0))/(_xlfn.AGGREGATE(3,5,'03 Ingreso de datos'!AZ4:AZ1001)), 0)","v":0},{"$f":"IFERROR((SUMPRODUCT(SUBTOTAL(3,OFFSET('03 Ingreso de datos'!AZ4,ROW('03 Ingreso de datos'!AZ4:AZ1001)-ROW('03 Ingreso de datos'!AZ4),0)),('03 Ingreso de datos'!AZ4:AZ1001=\"Nunca\")+0))/(_xlfn.AGGREGATE(3,5,'03 Ingreso de datos'!AZ4:AZ1001)), 0)","v":0},{"$f":"IFERROR((SUMPRODUCT(SUBTOTAL(3,OFFSET('03 Ingreso de datos'!AZ4,ROW('03 Ingreso de datos'!AZ4:AZ1001)-ROW('03 Ingreso de datos'!AZ4),0)),('03 Ingreso de datos'!AZ4:AZ1001=\"No sabe\")+0))/(_xlfn.AGGREGATE(3,5,'03 Ingreso de datos'!AZ4:AZ1001)), 0)","v":0},{"$f":"SUBTOTAL(3,'03 Ingreso de datos'!AZ4:AZ1001)","v":0}]
[null,"21. ¿Se cambian cada 4 días los catéteres intravenosos usados para las infusiones continuas?",null,null,null,{"$f":"IFERROR((SUMPRODUCT(SUBTOTAL(3,OFFSET('03 Ingreso de datos'!BA4,ROW('03 Ingreso de datos'!BA4:BA1001)-ROW('03 Ingreso de datos'!BA4),0)),('03 Ingreso de datos'!BA4:BA1001=\"Siempre\")+0))/(_xlfn.AGGREGATE(3,5,'03 Ingreso de datos'!BA4:BA1001)), 0)","v":0},{"$f":"IFERROR((SUMPRODUCT(SUBTOTAL(3,OFFSET('03 Ingreso de datos'!BA4,ROW('03 Ingreso de datos'!BA4:BA1001)-ROW('03 Ingreso de datos'!BA4),0)),('03 Ingreso de datos'!BA4:BA1001=\"Casi siempre\")+0))/(_xlfn.AGGREGATE(3,5,'03 Ingreso de datos'!BA4:BA1001)), 0)","v":0},{"$f":"IFERROR((SUMPRODUCT(SUBTOTAL(3,OFFSET('03 Ingreso de datos'!BA4,ROW('03 Ingreso de datos'!BA4:BA1001)-ROW('03 Ingreso de datos'!BA4),0)),('03 Ingreso de datos'!BA4:BA1001=\"A veces\")+0))/(_xlfn.AGGREGATE(3,5,'03 Ingreso de datos'!BA4:BA1001)), 0)","v":0},{"$f":"IFERROR((SUMPRODUCT(SUBTOTAL(3,OFFSET('03 Ingreso de datos'!BA4,ROW('03 Ingreso de datos'!BA4:BA1001)-ROW('03 Ingreso de datos'!BA4),0)),('03 Ingreso de datos'!BA4:BA1001=\"Casi nunca\")+0))/(_xlfn.AGGREGATE(3,5,'03 Ingreso de datos'!BA4:BA1001)), 0)","v":0},{"$f":"IFERROR((SUMPRODUCT(SUBTOTAL(3,OFFSET('03 Ingreso de datos'!BA4,ROW('03 Ingreso de datos'!BA4:BA1001)-ROW('03 Ingreso de datos'!BA4),0)),('03 Ingreso de datos'!BA4:BA1001=\"Nunca\")+0))/(_xlfn.AGGREGATE(3,5,'03 Ingreso de datos'!BA4:BA1001)), 0)","v":0},{"$f":"IFERROR((SUMPRODUCT(SUBTOTAL(3,OFFSET('03 Ingreso de datos'!BA4,ROW('03 Ingreso de datos'!BA4:BA1001)-ROW('03 Ingreso de datos'!BA4),0)),('03 Ingreso de datos'!BA4:BA1001=\"No sabe\")+0))/(_xlfn.AGGREGATE(3,5,'03 Ingreso de datos'!BA4:BA1001)), 0)","v":0},{"$f":"SUBTOTAL(3,'03 Ingreso de datos'!BA4:BA1001)","v":0}]
[null,"22. ¿Se cambian cada 24 horas los catéteres intravenosos que se usan para sangre, productos de sangre o emulsiones de grasa?",null,null,null,{"$f":"IFERROR((SUMPRODUCT(SUBTOTAL(3,OFFSET('03 Ingreso de datos'!BB4,ROW('03 Ingreso de datos'!BB4:BB1001)-ROW('03 Ingreso de datos'!BB4),0)),('03 Ingreso de datos'!BB4:BB1001=\"Siempre\")+0))/(_xlfn.AGGREGATE(3,5,'03 Ingreso de datos'!BB4:BB1001)), 0)","v":0},{"$f":"IFERROR((SUMPRODUCT(SUBTOTAL(3,OFFSET('03 Ingreso de datos'!BB4,ROW('03 Ingreso de datos'!BB4:BB1001)-ROW('03 Ingreso de datos'!BB4),0)),('03 Ingreso de datos'!BB4:BB1001=\"Casi siempre\")+0))/(_xlfn.AGGREGATE(3,5,'03 Ingreso de datos'!BB4:BB1001)), 0)","v":0},{"$f":"IFERROR((SUMPRODUCT(SUBTOTAL(3,OFFSET('03 Ingreso de datos'!BB4,ROW('03 Ingreso de datos'!BB4:BB1001)-ROW('03 Ingreso de datos'!BB4),0)),('03 Ingreso de datos'!BB4:BB1001=\"A veces\")+0))/(_xlfn.AGGREGATE(3,5,'03 Ingreso de datos'!BB4:BB1001)), 0)","v":0},{"$f":"IFERROR((SUMPRODUCT(SUBTOTAL(3,OFFSET('03 Ingreso de datos'!BB4,ROW('03 Ingreso de datos'!BB4:BB1001)-ROW('03 Ingreso de datos'!BB4),0)),('03 Ingreso de datos'!BB4:BB1001=\"Casi nunca\")+0))/(_xlfn.AGGREGATE(3,5,'03 Ingreso de datos'!BB4:BB1001)), 0)","v":0},{"$f":"IFERROR((SUMPRODUCT(SUBTOTAL(3,OFFSET('03 Ingreso de datos'!BB4,ROW('03 Ingreso de datos'!BB4:BB1001)-ROW('03 Ingreso de datos'!BB4),0)),('03 Ingreso de datos'!BB4:BB1001=\"Nunca\")+0))/(_xlfn.AGGREGATE(3,5,'03 Ingreso de datos'!BB4:BB1001)), 0)","v":0},{"$f":"IFERROR((SUMPRODUCT(SUBTOTAL(3,OFFSET('03 Ingreso de datos'!BB4,ROW('03 Ingreso de datos'!BB4:BB1001)-ROW('03 Ingreso de datos'!BB4),0)),('03 Ingreso de datos'!BB4:BB1001=\"No sabe\")+0))/(_xlfn.AGGREGATE(3,5,'03 Ingreso de datos'!BB4:BB1001)), 0)","v":0},{"$f":"SUBTOTAL(3,'03 Ingreso de datos'!BB4:BB1001)","v":0}]
[null,"23. ¿Se monitorean los sitios de inserción de manera rutinaria en busca de signos de infección (por ejemplo, induración, eritema)?",null,null,null,{"$f":"IFERROR((SUMPRODUCT(SUBTOTAL(3,OFFSET('03 Ingreso de datos'!BC4,ROW('03 Ingreso de datos'!BC4:BC1001)-ROW('03 Ingreso de datos'!BC4),0)),('03 Ingreso de datos'!BC4:BC1001=\"Siempre\")+0))/(_xlfn.AGGREGATE(3,5,'03 Ingreso de datos'!BC4:BC1001)), 0)","v":0},{"$f":"IFERROR((SUMPRODUCT(SUBTOTAL(3,OFFSET('03 Ingreso de datos'!BC4,ROW('03 Ingreso de datos'!BC4:BC1001)-ROW('03 Ingreso de datos'!BC4),0)),('03 Ingreso de datos'!BC4:BC1001=\"Casi siempre\")+0))/(_xlfn.AGGREGATE(3,5,'03 Ingreso de datos'!BC4:BC1001)), 0)","v":0},{"$f":"IFERROR((SUMPRODUCT(SUBTOTAL(3,OFFSET('03 Ingreso de datos'!BC4,ROW('03 Ingreso de datos'!BC4:BC1001)-ROW('03 Ingreso de datos'!BC4),0)),('03 Ingreso de datos'!BC4:BC1001=\"A veces\")+0))/(_xlfn.AGGREGATE(3,5,'03 Ingreso de datos'!BC4:BC1001)), 0)","v":0},{"$f":"IFERROR((SUMPRODUCT(SUBTOTAL(3,OFFSET('03 Ingreso de datos'!BC4,ROW('03 Ingreso de datos'!BC4:BC1001)-ROW('03 Ingreso de datos'!BC4),0)),('03 Ingreso de datos'!BC4:BC1001=\"Casi nunca\")+0))/(_xlfn.AGGREGATE(3,5,'03 Ingreso de datos'!BC4:BC1001)), 0)","v":0},{"$f":"IFERROR((SUMPRODUCT(SUBTOTAL(3,OFFSET('03 Ingreso de datos'!BC4,ROW('03 Ingreso de datos'!BC4:BC1001)-ROW('03 Ingreso de datos'!BC4),0)),('03 Ingreso de datos'!BC4:BC1001=\"Nunca\")+0))/(_xlfn.AGGREGATE(3,5,'03 Ingreso de datos'!BC4:BC1001)), 0)","v":0},{"$f":"IFERROR((SUMPRODUCT(SUBTOTAL(3,OFFSET('03 Ingreso de datos'!BC4,ROW('03 Ingreso de datos'!BC4:BC1001)-ROW('03 Ingreso de datos'!BC4),0)),('03 Ingreso de datos'!BC4:BC1001=\"No sabe\")+0))/(_xlfn.AGGREGATE(3,5,'03 Ingreso de datos'!BC4:BC1001)), 0)","v":0},{"$f":"SUBTOTAL(3,'03 Ingreso de datos'!BC4:BC1001)","v":0}]
[null,"24. ¿Se retiran con prontitud las vías centrales que ya no se necesitan (dentro de las 24 horas)?",null,null,null,{"$f":"IFERROR((SUMPRODUCT(SUBTOTAL(3,OFFSET('03 Ingreso de datos'!BD4,ROW('03 Ingreso de datos'!BD4:BD1001)-ROW('03 Ingreso de datos'!BD4),0)),('03 Ingreso de datos'!BD4:BD1001=\"Siempre\")+0))/(_xlfn.AGGREGATE(3,5,'03 Ingreso de datos'!BD4:BD1001)), 0)","v":0},{"$f":"IFERROR((SUMPRODUCT(SUBTOTAL(3,OFFSET('03 Ingreso de datos'!BD4,ROW('03 Ingreso de datos'!BD4:BD1001)-ROW('03 Ingreso de datos'!BD4),0)),('03 Ingreso de datos'!BD4:BD1001=\"Casi siempre\")+0))/(_xlfn.AGGREGATE(3,5,'03 Ingreso de datos'!BD4:BD1001)), 0)","v":0},{"$f":"IFERROR((SUMPRODUCT(SUBTOTAL(3,OFFSET('03 Ingreso de datos'!BD4,ROW('03 Ingreso de datos'!BD4:BD1001)-ROW('03 Ingreso de datos'!BD4),0)),('03 Ingreso de datos'!BD4:BD1001=\"A veces\")+0))/(_xlfn.AGGREGATE(3,5,'03 Ingreso de datos'!BD4:BD1001)), 0)","v":0},{"$f":"IFERROR((SUMPRODUCT(SUBTOTAL(3,OFFSET('03 Ingreso de datos'!BD4,ROW('03 Ingreso de datos'!BD4:BD1001)-ROW('03 Ingreso de datos'!BD4),0)),('03 Ingreso de datos'!BD4:BD1001=\"Casi nunca\")+0))/(_xlfn.AGGREGATE(3,5,'03 Ingreso de datos'!BD4:BD1001)), 0)","v":0},{"$f":"IFERROR((SUMPRODUCT(SUBTOTAL(3,OFFSET('03 Ingreso de datos'!BD4,ROW('03 Ingreso de datos'!BD4:BD1001)-ROW('03 Ingreso de datos'!BD4),0)),('03 Ingreso de datos'!BD4:BD1001=\"Nunca\")+0))/(_xlfn.AGGREGATE(3,5,'03 Ingreso de datos'!BD4:BD1001)), 0)","v":0},{"$f":"IFERROR((SUMPRODUCT(SUBTOTAL(3,OFFSET('03 Ingreso de datos'!BD4,ROW('03 Ingreso de datos'!BD4:BD1001)-ROW('03 Ingreso de datos'!BD4),0)),('03 Ingreso de datos'!BD4:BD1001=\"No sabe\")+0))/(_xlfn.AGGREGATE(3,5,'03 Ingreso de datos'!BD4:BD1001)), 0)","v":0},{"$f":"SUBTOTAL(3,'03 Ingreso de datos'!BD4:BD1001)","v":0}]
[null,"25. ¿Se retiran inmediatamente las vías centrales si hay algún signo de infección sanguínea relacionada con el catéter o trombosis?",null,null,null,{"$f":"IFERROR((SUMPRODUCT(SUBTOTAL(3,OFFSET('03 Ingreso de datos'!BE4,ROW('03 Ingreso de datos'!BE4:BE1001)-ROW('03 Ingreso de datos'!BE4),0)),('03 Ingreso de datos'!BE4:BE1001=\"Siempre\")+0))/(_xlfn.AGGREGATE(3,5,'03 Ingreso de datos'!BE4:BE1001)), 0)","v":0},{"$f":"IFERROR((SUMPRODUCT(SUBTOTAL(3,OFFSET('03 Ingreso de datos'!BE4,ROW('03 Ingreso de datos'!BE4:BE1001)-ROW('03 Ingreso de datos'!BE4),0)),('03 Ingreso de datos'!BE4:BE1001=\"Casi siempre\")+0))/(_xlfn.AGGREGATE(3,5,'03 Ingreso de datos'!BE4:BE1001)), 0)","v":0},{"$f":"IFERROR((SUMPRODUCT(SUBTOTAL(3,OFFSET('03 Ingreso de datos'!BE4,ROW('03 Ingreso de datos'!BE4:BE1001)-ROW('03 Ingreso de datos'!BE4),0)),('03 Ingreso de datos'!BE4:BE1001=\"A veces\")+0))/(_xlfn.AGGREGATE(3,5,'03 Ingreso de datos'!BE4:BE1001)), 0)","v":0},{"$f":"IFERROR((SUMPRODUCT(SUBTOTAL(3,OFFSET('03 Ingreso de datos'!BE4,ROW('03 Ingreso de datos'!BE4:BE1001)-ROW('03 Ingreso de datos'!BE4),0)),('03 Ingreso de datos'!BE4:BE1001=\"Casi nunca\")+0))/(_xlfn.AGGREGATE(3,5,'03 Ingreso de datos'!BE4:BE1001)), 0)","v":0},{"$f":"IFERROR((SUMPRODUCT(SUBTOTAL(3,OFFSET('03 Ingreso de datos'!BE4,ROW('03 Ingreso de datos'!BE4:BE1001)-ROW('03 Ingreso de datos'!BE4),0)),('03 Ingreso de datos'!BE4:BE1001=\"Nunca\")+0))/(_xlfn.AGGREGATE(3,5,'03 Ingreso de datos'!BE4:BE1001)), 0)","v":0},{"$f":"IFERROR((SUMPRODUCT(SUBTOTAL(3,OFFSET('03 Ingreso de datos'!BE4,ROW('03 Ingreso de datos'!BE4:BE1001)-ROW('03 Ingreso de datos'!BE4),0)),('03 Ingreso de datos'!BE4:BE1001=\"No sabe\")+0))/(_xlfn.AGGREGATE(3,5,'03 Ingreso de datos'!BE4:BE1001)), 0)","v":0},{"$f":"SUBTOTAL(3,'03 Ingreso de datos'!BE4:BE1001)","v":0}]
[null,"26. ¿Se usa una técnica aséptica para retirar las vías centrales?",null,null,null,{"$f":"IFERROR((SUMPRODUCT(SUBTOTAL(3,OFFSET('03 Ingreso de datos'!BF4,ROW('03 Ingreso de datos'!BF4:BF1001)-ROW('03 Ingreso de datos'!BF4),0)),('03 Ingreso de datos'!BF4:BF1001=\"Siempre\")+0))/(_xlfn.AGGREGATE(3,5,'03 Ingreso de datos'!BF4:BF1001)), 0)","v":0},{"$f":"IFERROR((SUMPRODUCT(SUBTOTAL(3,OFFSET('03 Ingreso de datos'!BF4,ROW('03 Ingreso de datos'!BF4:BF1001)-ROW('03 Ingreso de datos'!BF4),0)),('03 Ingreso de datos'!BF4:BF1001=\"Casi siempre\")+0))/(_xlfn.AGGREGATE(3,5,'03 Ingreso de datos'!BF4:BF1001)), 0)","v":0},{"$f":"IFERROR((SUMPRODUCT(SUBTOTAL(3,OFFSET('03 Ingreso de datos'!BF4,ROW('03 Ingreso de datos'!BF4:BF1001)-ROW('03 Ingreso de datos'!BF4),0)),('03 Ingreso de datos'!BF4:BF1001=\"A veces\")+0))/(_xlfn.AGGREGATE(3,5,'03 Ingreso de datos'!BF4:BF1001)), 0)","v":0},{"$f":"IFERROR((SUMPRODUCT(SUBTOTAL(3,OFFSET('03 Ingreso de datos'!BF4,ROW('03 Ingreso de datos'!BF4:BF1001)-ROW('03 Ingreso de datos'!BF4),0)),('03 Ingreso de datos'!BF4:BF1001=\"Casi nunca\")+0))/(_xlfn.AGGREGATE(3,5,'03 Ingreso de datos'!BF4:BF1001)), 0)","v":0},{"$f":"IFERROR((SUMPRODUCT(SUBTOTAL(3,OFFSET('03 Ingreso de datos'!BF4,ROW('03 Ingreso de datos'!BF4:BF1001)-ROW('03 Ingreso de datos'!BF4),0)),('03 Ingreso de datos'!BF4:BF1001=\"Nunca\")+0))/(_xlfn.AGGREGATE(3,5,'03 Ingreso de datos'!BF4:BF1001)), 0)","v":0},{"$f":"IFERROR((SUMPRODUCT(SUBTOTAL(3,OFFSET('03 Ingreso de datos'!BF4,ROW('03 Ingreso de datos'!BF4:BF1001)-ROW('03 Ingreso de datos'!BF4),0)),('03 Ingreso de datos'!BF4:BF1001=\"No sabe\")+0))/(_xlfn.AGGREGATE(3,5,'03 Ingreso de datos'!BF4:BF1001)), 0)","v":0},{"$f":"SUBTOTAL(3,'03 Ingreso de datos'!BF4:BF1001)","v":0}]
[]
[null,"3. Catéteres umbilicales "]
[null,null,null,null,null,null,null,null,"Sí","  No","No sabe","# de respuestas"]
[null,"1. ¿Tiene la unidad una política sobre la cantidad de tiempo que puede permanecer insertado un catéter venoso umbilical (p. ej., un máximo de 7 días)?  ",null,null,null,null,null,null,{"$f":"IFERROR((SUMPRODUCT(SUBTOTAL(3,OFFSET('03 Ingreso de datos'!BG4,ROW('03 Ingreso de datos'!BG4:BG1001)-ROW('03 Ingreso de datos'!BG4),0)),('03 Ingreso de datos'!BG4:BG1001=\"Sí\")+0))/(_xlfn.AGGREGATE(3,5,'03 Ingreso de datos'!BG4:BG1001)), 0)","v":0},{"$f":"IFERROR((SUMPRODUCT(SUBTOTAL(3,OFFSET('03 Ingreso de datos'!BG4,ROW('03 Ingreso de datos'!BG4:BG1001)-ROW('03 Ingreso de datos'!BG4),0)),('03 Ingreso de datos'!BG4:BG1001=\"No\")+0))/(_xlfn.AGGREGATE(3,5,'03 Ingreso de datos'!BG4:BG1001)), 0)","v":0},{"$f":"IFERROR((SUMPRODUCT(SUBTOTAL(3,OFFSET('03 Ingreso de datos'!BG4,ROW('03 Ingreso de datos'!BG4:BG1001)-ROW('03 Ingreso de datos'!BG4),0)),('03 Ingreso de datos'!BG4:BG1001=\"No sabe\")+0))/(_xlfn.AGGREGATE(3,5,'03 Ingreso de datos'!BG4:BG1001)), 0)","v":0},{"$f":"SUBTOTAL(3,'03 Ingreso de datos'!BG4:BG1001)","v":0}]
[null,"2. ¿Tiene la unidad una política sobre la cantidad de tiempo que puede permanecer insertado un catéter arterial umbilical (por ejemplo, un máximo de 7 días)?  \n",null,null,null,null,null,null,{"$f":"IFERROR((SUMPRODUCT(SUBTOTAL(3,OFFSET('03 Ingreso de datos'!BH4,ROW('03 Ingreso de datos'!BH4:BH1001)-ROW('03 Ingreso de datos'!BH4),0)),('03 Ingreso de datos'!BH4:BH1001=\"Sí\")+0))/(_xlfn.AGGREGATE(3,5,'03 Ingreso de datos'!BH4:BH1001)), 0)","v":0},{"$f":"IFERROR((SUMPRODUCT(SUBTOTAL(3,OFFSET('03 Ingreso de datos'!BH4,ROW('03 Ingreso de datos'!BH4:BH1001)-ROW('03 Ingreso de datos'!BH4),0)),('03 Ingreso de datos'!BH4:BH1001=\"No\")+0))/(_xlfn.AGGREGATE(3,5,'03 Ingreso de datos'!BH4:BH1001)), 0)","v":0},{"$f":"IFERROR((SUMPRODUCT(SUBTOTAL(3,OFFSET('03 Ingreso de datos'!BH4,ROW('03 Ingreso de datos'!BH4:BH1001)-ROW('03 Ingreso de datos'!BH4),0)),('03 Ingreso de datos'!BH4:BH1001=\"No sabe\")+0))/(_xlfn.AGGREGATE(3,5,'03 Ingreso de datos'!BH4:BH1001)), 0)","v":0},{"$f":"SUBTOTAL(3,'03 Ingreso de datos'!BH4:BH1001)","v":0}]
[null,"3. ¿Evita la unidad usar ungüentos o cremas antibióticas en los sitios de inserción de catéteres umbilicales?",null,null,null,null,null,null,{"$f":"IFERROR((SUMPRODUCT(SUBTOTAL(3,OFFSET('03 Ingreso de datos'!BI4,ROW('03 Ingreso de datos'!BI4:BI1001)-ROW('03 Ingreso de datos'!BI4),0)),('03 Ingreso de datos'!BI4:BI1001=\"Sí\")+0))/(_xlfn.AGGREGATE(3,5,'03 Ingreso de datos'!BI4:BI1001)), 0)","v":0},{"$f":"IFERROR((SUMPRODUCT(SUBTOTAL(3,OFFSET('03 Ingreso de datos'!BI4,ROW('03 Ingreso de datos'!BI4:BI1001)-ROW('03 Ingreso de datos'!BI4),0)),('03 Ingreso de datos'!BI4:BI1001=\"No\")+0))/(_xlfn.AGGREGATE(3,5,'03 Ingreso de datos'!BI4:BI1001)), 0)","v":0},{"$f":"IFERROR((SUMPRODUCT(SUBTOTAL(3,OFFSET('03 Ingreso de datos'!BI4,ROW('03 Ingreso de datos'!BI4:BI1001)-ROW('03 Ingreso de datos'!BI4),0)),('03 Ingreso de datos'!BI4:BI1001=\"No sabe\")+0))/(_xlfn.AGGREGATE(3,5,'03 Ingreso de datos'!BI4:BI1001)), 0)","v":0},{"$f":"SUBTOTAL(3,'03 Ingreso de datos'!BI4:BI1001)","v":0}]
[null,"4. ¿Se fijan las vías umbilicales a la piel sin puntos de sutura (por ejemplo, un dispositivo de fijación sin suturas)?",null,null,null,null,null,null,{"$f":"IFERROR((SUMPRODUCT(SUBTOTAL(3,OFFSET('03 Ingreso de datos'!BJ4,ROW('03 Ingreso de datos'!BJ4:BJ1001)-ROW('03 Ingreso de datos'!BJ4),0)),('03 Ingreso de datos'!BJ4:BJ1001=\"Sí\")+0))/(_xlfn.AGGREGATE(3,5,'03 Ingreso de datos'!BJ4:BJ1001)), 0)","v":0},{"$f":"IFERROR((SUMPRODUCT(SUBTOTAL(3,OFFSET('03 Ingreso de datos'!BJ4,ROW('03 Ingreso de datos'!BJ4:BJ1001)-ROW('03 Ingreso de datos'!BJ4),0)),('03 Ingreso de datos'!BJ4:BJ1001=\"No\")+0))/(_xlfn.AGGREGATE(3,5,'03 Ingreso de datos'!BJ4:BJ1001)), 0)","v":0},{"$f":"IFERROR((SUMPRODUCT(SUBTOTAL(3,OFFSET('03 Ingreso de datos'!BJ4,ROW('03 Ingreso de datos'!BJ4:BJ1001)-ROW('03 Ingreso de datos'!BJ4),0)),('03 Ingreso de datos'!BJ4:BJ1001=\"No sabe\")+0))/(_xlfn.AGGREGATE(3,5,'03 Ingreso de datos'!BJ4:BJ1001)), 0)","v":0},{"$f":"SUBTOTAL(3,'03 Ingreso de datos'!BJ4:BJ1001)","v":0}]
[]
[null,"4A. Vías intravenosas periféricas"]
[null,null,null,null,null,null,"Durante la contratación u orientación","Al menos una vez al año        ","Dispositivos o protocolos nuevos ","No recibió capacitación","No se encarga de este procedimiento","# de respuestas"]
[null,"1. ¿Recibió usted capacitación por parte de su hospital en la inserción de vías intravenosas periféricas? (Marque todas las opciones que correspondan).*",null,null,null,null,{"$f":"IFERROR((SUMPRODUCT(SUBTOTAL(3,OFFSET('03 Ingreso de datos'!BK4,ROW('03 Ingreso de datos'!BK4:BK1001)-ROW('03 Ingreso de datos'!BK4),0)),(('03 Ingreso de datos'!BK4:BK1001=\"A, B, and C\")+('03 Ingreso de datos'!BK4:BK1001=\"A and B\")+('03 Ingreso de datos'!BK4:BK1001=\"A and C\")+('03 Ingreso de datos'!BK4:BK1001=\"A. Durante la contratación u orientación\"))+0))/(_xlfn.AGGREGATE(3,5,'03 Ingreso de datos'!BK4:BK1001)-'06 Listas'!L18), 0)","v":0},{"$f":"IFERROR((SUMPRODUCT(SUBTOTAL(3,OFFSET('03 Ingreso de datos'!BK4,ROW('03 Ingreso de datos'!BK4:BK1001)-ROW('03 Ingreso de datos'!BK4),0)),(('03 Ingreso de datos'!BK4:BK1001=\"A, B, and C\")+('03 Ingreso de datos'!BK4:BK1001=\"A and B\")+('03 Ingreso de datos'!BK4:BK1001=\"B and C\")+('03 Ingreso de datos'!BK4:BK1001=\"B. Al menos una vez al año\"))+0))/(_xlfn.AGGREGATE(3,5,'03 Ingreso de datos'!BK4:BK1001)-'06 Listas'!L18), 0)","v":0},{"$f":"IFERROR((SUMPRODUCT(SUBTOTAL(3,OFFSET('03 Ingreso de datos'!BK4,ROW('03 Ingreso de datos'!BK4:BK1001)-ROW('03 Ingreso de datos'!BK4),0)),(('03 Ingreso de datos'!BK4:BK1001=\"A, B, and C\")+('03 Ingreso de datos'!BK4:BK1001=\"A and C\")+('03 Ingreso de datos'!BK4:BK1001=\"B and C\")+('03 Ingreso de datos'!BK4:BK1001=\"C. Cuando hay dispositivos o protocolos nuevos\"))+0))/(_xlfn.AGGREGATE(3,5,'03 Ingreso de datos'!BK4:BK1001)-'06 Listas'!L18), 0)","v":0},{"$f":"IFERROR((SUMPRODUCT(SUBTOTAL(3,OFFSET('03 Ingreso de datos'!BK4,ROW('03 Ingreso de datos'!BK4:BK1001)-ROW('03 Ingreso de datos'!BK4),0)),('03 Ingreso de datos'!BK4:BK1001=\"No recibió capacitación\")+0))/(_xlfn.AGGREGATE(3,5,'03 Ingreso de datos'!BK4:BK1001)-'06 Listas'!L18), 0)","v":0},{"$f":"IFERROR((SUMPRODUCT(SUBTOTAL(3,OFFSET('03 Ingreso de datos'!BK4,ROW('03 Ingreso de datos'!BK4:BK1001)-ROW('03 Ingreso de datos'!BK4),0)),('03 Ingreso de datos'!BK4:BK1001=\"No se encarga de este procedimiento\")+0))/(_xlfn.AGGREGATE(3,5,'03 Ingreso de datos'!BK4:BK1001)), 0)","v":0},{"$f":"SUBTOTAL(3,'03 Ingreso de datos'!BK4:BK1001)","v":0}]
[null,"2. ¿Recibió usted capacitación por parte de su hospital en el mantenimiento de vías intravenosas periféricas? (Marque todas las opciones que correspondan).*",null,null,null,null,{"$f":"IFERROR((SUMPRODUCT(SUBTOTAL(3,OFFSET('03 Ingreso de datos'!BL4,ROW('03 Ingreso de datos'!BL4:BL1001)-ROW('03 Ingreso de datos'!BL4),0)),(('03 Ingreso de datos'!BL4:BL1001=\"A, B, and C\")+('03 Ingreso de datos'!BL4:BL1001=\"A and B\")+('03 Ingreso de datos'!BL4:BL1001=\"A and C\")+('03 Ingreso de datos'!BL4:BL1001=\"A. Durante la contratación u orientación\"))+0))/(_xlfn.AGGREGATE(3,5,'03 Ingreso de datos'!BL4:BL1001)-'06 Listas'!L19), 0)","v":0},{"$f":"IFERROR((SUMPRODUCT(SUBTOTAL(3,OFFSET('03 Ingreso de datos'!BL4,ROW('03 Ingreso de datos'!BL4:BL1001)-ROW('03 Ingreso de datos'!BL4),0)),(('03 Ingreso de datos'!BL4:BL1001=\"A, B, and C\")+('03 Ingreso de datos'!BL4:BL1001=\"A and B\")+('03 Ingreso de datos'!BL4:BL1001=\"B and C\")+('03 Ingreso de datos'!BL4:BL1001=\"B. Al menos una vez al año\"))+0))/(_xlfn.AGGREGATE(3,5,'03 Ingreso de datos'!BL4:BL1001)-'06 Listas'!L19), 0)","v":0},{"$f":"IFERROR((SUMPRODUCT(SUBTOTAL(3,OFFSET('03 Ingreso de datos'!BL4,ROW('03 Ingreso de datos'!BL4:BL1001)-ROW('03 Ingreso de datos'!BL4),0)),(('03 Ingreso de datos'!BL4:BL1001=\"A, B, and C\")+('03 Ingreso de datos'!BL4:BL1001=\"A and C\")+('03 Ingreso de datos'!BL4:BL1001=\"B and C\")+('03 Ingreso de datos'!BL4:BL1001=\"C. Cuando hay dispositivos o protocolos nuevos\"))+0))/(_xlfn.AGGREGATE(3,5,'03 Ingreso de datos'!BL4:BL1001)-'06 Listas'!L19), 0)","v":0},{"$f":"IFERROR((SUMPRODUCT(SUBTOTAL(3,OFFSET('03 Ingreso de datos'!BL4,ROW('03 Ingreso de datos'!BL4:BL1001)-ROW('03 Ingreso de datos'!BL4),0)),('03 Ingreso de datos'!BL4:BL1001=\"No recibió capacitación\")+0))/(_xlfn.AGGREGATE(3,5,'03 Ingreso de datos'!BL4:BL1001)-'06 Listas'!L19), 0)","v":0},{"$f":"IFERROR((SUMPRODUCT(SUBTOTAL(3,OFFSET('03 Ingreso de datos'!BL4,ROW('03 Ingreso de datos'!BL4:BL1001)-ROW('03 Ingreso de datos'!BL4),0)),('03 Ingreso de datos'!BL4:BL1001=\"No se encarga de este procedimiento\")+0))/(_xlfn.AGGREGATE(3,5,'03 Ingreso de datos'!BL4:BL1001)), 0)","v":0},{"$f":"SUBTOTAL(3,'03 Ingreso de datos'!BL4:BL1001)","v":0}]
[null,"*Los porcentajes se calculan al eliminar del denominador los encuestados que respondieron \"No se encarga de este procedimiento\"."]
[null,null,null,null,null,null,null,"Sí","No","No sabe","No recibió capacitación","# de respuestas"]
[null,"3. ¿Cubrió su capacitación en la inserción de vías intravenosas periféricas precauciones para la inserción (por ejemplo, higiene de las manos, uso de guantes limpios, antisepsia de la piel)?",null,null,null,null,null,{"$f":"IFERROR((SUMPRODUCT(SUBTOTAL(3,OFFSET('03 Ingreso de datos'!BM4,ROW('03 Ingreso de datos'!BM4:BM1001)-ROW('03 Ingreso de datos'!BM4),0)),('03 Ingreso de datos'!BM4:BM1001=\"Sí\")+0))/(_xlfn.AGGREGATE(3,5,'03 Ingreso de datos'!BM4:BM1001)), 0)","v":0},{"$f":"IFERROR((SUMPRODUCT(SUBTOTAL(3,OFFSET('03 Ingreso de datos'!BM4,ROW('03 Ingreso de datos'!BM4:BM1001)-ROW('03 Ingreso de datos'!BM4),0)),('03 Ingreso de datos'!BM4:BM1001=\"No\")+0))/(_xlfn.AGGREGATE(3,5,'03 Ingreso de datos'!BM4:BM1001)), 0)","v":0},{"$f":"IFERROR((SUMPRODUCT(SUBTOTAL(3,OFFSET('03 Ingreso de datos'!BM4,ROW('03 Ingreso de datos'!BM4:BM1001)-ROW('03 Ingreso de datos'!BM4),0)),('03 Ingreso de datos'!BM4:BM1001=\"No sabe\")+0))/(_xlfn.AGGREGATE(3,5,'03 Ingreso de datos'!BM4:BM1001)), 0)","v":0},{"$f":"IFERROR((SUMPRODUCT(SUBTOTAL(3,OFFSET('03 Ingreso de datos'!BM4,ROW('03 Ingreso de datos'!BM4:BM1001)-ROW('03 Ingreso de datos'!BM4),0)),('03 Ingreso de datos'!BM4:BM1001=\"No recibió capacitación\")+0))/(_xlfn.AGGREGATE(3,5,'03 Ingreso de datos'!BM4:BM1001)), 0)","v":0},{"$f":"SUBTOTAL(3,'03 Ingreso de datos'!BM4:BM1001)","v":0}]
[null,"4. ¿Cubrió su capacitación en vías intravenosas periféricas precauciones para el acceso a las vías intravenosas (higiene de las manos, uso de guantes limpios)?",null,null,null,null,null,{"$f":"IFERROR((SUMPRODUCT(SUBTOTAL(3,OFFSET('03 Ingreso de datos'!BN4,ROW('03 Ingreso de datos'!BN4:BN1001)-ROW('03 Ingreso de datos'!BN4),0)),('03 Ingreso de datos'!BN4:BN1001=\"Sí\")+0))/(_xlfn.AGGREGATE(3,5,'03 Ingreso de datos'!BN4:BN1001)), 0)","v":0},{"$f":"IFERROR((SUMPRODUCT(SUBTOTAL(3,OFFSET('03 Ingreso de datos'!BN4,ROW('03 Ingreso de datos'!BN4:BN1001)-ROW('03 Ingreso de datos'!BN4),0)),('03 Ingreso de datos'!BN4:BN1001=\"No\")+0))/(_xlfn.AGGREGATE(3,5,'03 Ingreso de datos'!BN4:BN1001)), 0)","v":0},{"$f":"IFERROR((SUMPRODUCT(SUBTOTAL(3,OFFSET('03 Ingreso de datos'!BN4,ROW('03 Ingreso de datos'!BN4:BN1001)-ROW('03 Ingreso de datos'!BN4),0)),('03 Ingreso de datos'!BN4:BN1001=\"No sabe\")+0))/(_xlfn.AGGREGATE(3,5,'03 Ingreso de datos'!BN4:BN1001)), 0)","v":0},{"$f":"IFERROR((SUMPRODUCT(SUBTOTAL(3,OFFSET('03 Ingreso de datos'!BN4,ROW('03 Ingreso de datos'!BN4:BN1001)-ROW('03 Ingreso de datos'!BN4),0)),('03 Ingreso de datos'!BN4:BN1001=\"No recibió capacitación\")+0))/(_xlfn.AGGREGATE(3,5,'03 Ingreso de datos'!BN4:BN1001)), 0)","v":0},{"$f":"SUBTOTAL(3,'03 Ingreso de datos'!BN4:BN1001)","v":0}]
[null,"5. ¿Cubrió su capacitación en vías intravenosas periféricas la evaluación del sitio en busca de signos de infección?",null,null,null,null,null,{"$f":"IFERROR((SUMPRODUCT(SUBTOTAL(3,OFFSET('03 Ingreso de datos'!BO4,ROW('03 Ingreso de datos'!BO4:BO1001)-ROW('03 Ingreso de datos'!BO4),0)),('03 Ingreso de datos'!BO4:BO1001=\"Sí\")+0))/(_xlfn.AGGREGATE(3,5,'03 Ingreso de datos'!BO4:BO1001)), 0)","v":0},{"$f":"IFERROR((SUMPRODUCT(SUBTOTAL(3,OFFSET('03 Ingreso de datos'!BO4,ROW('03 Ingreso de datos'!BO4:BO1001)-ROW('03 Ingreso de datos'!BO4),0)),('03 Ingreso de datos'!BO4:BO1001=\"No\")+0))/(_xlfn.AGGREGATE(3,5,'03 Ingreso de datos'!BO4:BO1001)), 0)","v":0},{"$f":"IFERROR((SUMPRODUCT(SUBTOTAL(3,OFFSET('03 Ingreso de datos'!BO4,ROW('03 Ingreso de datos'!BO4:BO1001)-ROW('03 Ingreso de datos'!BO4),0)),('03 Ingreso de datos'!BO4:BO1001=\"No sabe\")+0))/(_xlfn.AGGREGATE(3,5,'03 Ingreso de datos'!BO4:BO1001)), 0)","v":0},{"$f":"IFERROR((SUMPRODUCT(SUBTOTAL(3,OFFSET('03 Ingreso de datos'!BO4,ROW('03 Ingreso de datos'!BO4:BO1001)-ROW('03 Ingreso de datos'!BO4),0)),('03 Ingreso de datos'!BO4:BO1001=\"No recibió capacitación\")+0))/(_xlfn.AGGREGATE(3,5,'03 Ingreso de datos'!BO4:BO1001)), 0)","v":0},{"$f":"SUBTOTAL(3,'03 Ingreso de datos'!BO4:BO1001)","v":0}]
[]
[null,"4B. Vías intravenosas periféricas: Prácticas"]
[null,null,null,null,null,"Siempre","Casi siempre","A veces","Casi nunca","Nunca","No sabe","# de respuestas"]
[null,"1. ¿Se practica higiene de las manos antes de ponerse guantes para la inserción de una vía intravenosa periférica? ",null,null,null,{"$f":"IFERROR((SUMPRODUCT(SUBTOTAL(3,OFFSET('03 Ingreso de datos'!BP4,ROW('03 Ingreso de datos'!BP4:BP1001)-ROW('03 Ingreso de datos'!BP4),0)),('03 Ingreso de datos'!BP4:BP1001=\"Siempre\")+0))/(_xlfn.AGGREGATE(3,5,'03 Ingreso de datos'!BP4:BP1001)), 0)","v":0},{"$f":"IFERROR((SUMPRODUCT(SUBTOTAL(3,OFFSET('03 Ingreso de datos'!BP4,ROW('03 Ingreso de datos'!BP4:BP1001)-ROW('03 Ingreso de datos'!BP4),0)),('03 Ingreso de datos'!BP4:BP1001=\"Casi siempre\")+0))/(_xlfn.AGGREGATE(3,5,'03 Ingreso de datos'!BP4:BP1001)), 0)","v":0},{"$f":"IFERROR((SUMPRODUCT(SUBTOTAL(3,OFFSET('03 Ingreso de datos'!BP4,ROW('03 Ingreso de datos'!BP4:BP1001)-ROW('03 Ingreso de datos'!BP4),0)),('03 Ingreso de datos'!BP4:BP1001=\"A veces\")+0))/(_xlfn.AGGREGATE(3,5,'03 Ingreso de datos'!BP4:BP1001)), 0)","v":0},{"$f":"IFERROR((SUMPRODUCT(SUBTOTAL(3,OFFSET('03 Ingreso de datos'!BP4,ROW('03 Ingreso de datos'!BP4:BP1001)-ROW('03 Ingreso de datos'!BP4),0)),('03 Ingreso de datos'!BP4:BP1001=\"Casi nunca\")+0))/(_xlfn.AGGREGATE(3,5,'03 Ingreso de datos'!BP4:BP1001)), 0)","v":0},{"$f":"IFERROR((SUMPRODUCT(SUBTOTAL(3,OFFSET('03 Ingreso de datos'!BP4,ROW('03 Ingreso de datos'!BP4:BP1001)-ROW('03 Ingreso de datos'!BP4),0)),('03 Ingreso de datos'!BP4:BP1001=\"Nunca\")+0))/(_xlfn.AGGREGATE(3,5,'03 Ingreso de datos'!BP4:BP1001)), 0)","v":0},{"$f":"IFERROR((SUMPRODUCT(SUBTOTAL(3,OFFSET('03 Ingreso de datos'!BP4,ROW('03 Ingreso de datos'!BP4:BP1001)-ROW('03 Ingreso de datos'!BP4),0)),('03 Ingreso de datos'!BP4:BP1001=\"No sabe\")+0))/(_xlfn.AGGREGATE(3,5,'03 Ingreso de datos'!BP4:BP1001)), 0)","v":0},{"$f":"SUBTOTAL(3,'03 Ingreso de datos'!BP4:BP1001)","v":0}]
[null,"2. ¿Se usan guantes limpios de un solo uso para insertar las vías intravenosas periféricas?",null,null,null,{"$f":"IFERROR((SUMPRODUCT(SUBTOTAL(3,OFFSET('03 Ingreso de datos'!BQ4,ROW('03 Ingreso de datos'!BQ4:BQ1001)-ROW('03 Ingreso de datos'!BQ4),0)),('03 Ingreso de datos'!BQ4:BQ1001=\"Siempre\")+0))/(_xlfn.AGGREGATE(3,5,'03 Ingreso de datos'!BQ4:BQ1001)), 0)","v":0},{"$f":"IFERROR((SUMPRODUCT(SUBTOTAL(3,OFFSET('03 Ingreso de datos'!BQ4,ROW('03 Ingreso de datos'!BQ4:BQ1001)-ROW('03 Ingreso de datos'!BQ4),0)),('03 Ingreso de datos'!BQ4:BQ1001=\"Casi siempre\")+0))/(_xlfn.AGGREGATE(3,5,'03 Ingreso de datos'!BQ4:BQ1001)), 0)","v":0},{"$f":"IFERROR((SUMPRODUCT(SUBTOTAL(3,OFFSET('03 Ingreso de datos'!BQ4,ROW('03 Ingreso de datos'!BQ4:BQ1001)-ROW('03 Ingreso de datos'!BQ4),0)),('03 Ingreso de datos'!BQ4:BQ1001=\"A veces\")+0))/(_xlfn.AGGREGATE(3,5,'03 Ingreso de datos'!BQ4:BQ1001)), 0)","v":0},{"$f":"IFERROR((SUMPRODUCT(SUBTOTAL(3,OFFSET('03 Ingreso de datos'!BQ4,ROW('03 Ingreso de datos'!BQ4:BQ1001)-ROW('03 Ingreso de datos'!BQ4),0)),('03 Ingreso de datos'!BQ4:BQ1001=\"Casi nunca\")+0))/(_xlfn.AGGREGATE(3,5,'03 Ingreso de datos'!BQ4:BQ1001)), 0)","v":0},{"$f":"IFERROR((SUMPRODUCT(SUBTOTAL(3,OFFSET('03 Ingreso de datos'!BQ4,ROW('03 Ingreso de datos'!BQ4:BQ1001)-ROW('03 Ingreso de datos'!BQ4),0)),('03 Ingreso de datos'!BQ4:BQ1001=\"Nunca\")+0))/(_xlfn.AGGREGATE(3,5,'03 Ingreso de datos'!BQ4:BQ1001)), 0)","v":0},{"$f":"IFERROR((SUMPRODUCT(SUBTOTAL(3,OFFSET('03 Ingreso de datos'!BQ4,ROW('03 Ingreso de datos'!BQ4:BQ1001)-ROW('03 Ingreso de datos'!BQ4),0)),('03 Ingreso de datos'!BQ4:BQ1001=\"No sabe\")+0))/(_xlfn.AGGREGATE(3,5,'03 Ingreso de datos'!BQ4:BQ1001)), 0)","v":0},{"$f":"SUBTOTAL(3,'03 Ingreso de datos'!BQ4:BQ1001)","v":0}]
[null,"3. ¿Se realiza antisepsia de la piel antes de la inserción de una vía intravenosa periférica? ",null,null,null,{"$f":"IFERROR((SUMPRODUCT(SUBTOTAL(3,OFFSET('03 Ingreso de datos'!BR4,ROW('03 Ingreso de datos'!BR4:BR1001)-ROW('03 Ingreso de datos'!BR4),0)),('03 Ingreso de datos'!BR4:BR1001=\"Siempre\")+0))/(_xlfn.AGGREGATE(3,5,'03 Ingreso de datos'!BR4:BR1001)), 0)","v":0},{"$f":"IFERROR((SUMPRODUCT(SUBTOTAL(3,OFFSET('03 Ingreso de datos'!BR4,ROW('03 Ingreso de datos'!BR4:BR1001)-ROW('03 Ingreso de datos'!BR4),0)),('03 Ingreso de datos'!BR4:BR1001=\"Casi siempre\")+0))/(_xlfn.AGGREGATE(3,5,'03 Ingreso de datos'!BR4:BR1001)), 0)","v":0},{"$f":"IFERROR((SUMPRODUCT(SUBTOTAL(3,OFFSET('03 Ingreso de datos'!BR4,ROW('03 Ingreso de datos'!BR4:BR1001)-ROW('03 Ingreso de datos'!BR4),0)),('03 Ingreso de datos'!BR4:BR1001=\"A veces\")+0))/(_xlfn.AGGREGATE(3,5,'03 Ingreso de datos'!BR4:BR1001)), 0)","v":0},{"$f":"IFERROR((SUMPRODUCT(SUBTOTAL(3,OFFSET('03 Ingreso de datos'!BR4,ROW('03 Ingreso de datos'!BR4:BR1001)-ROW('03 Ingreso de datos'!BR4),0)),('03 Ingreso de datos'!BR4:BR1001=\"Casi nunca\")+0))/(_xlfn.AGGREGATE(3,5,'03 Ingreso de datos'!BR4:BR1001)), 0)","v":0},{"$f":"IFERROR((SUMPRODUCT(SUBTOTAL(3,OFFSET('03 Ingreso de datos'!BR4,ROW('03 Ingreso de datos'!BR4:BR1001)-ROW('03 Ingreso de datos'!BR4),0)),('03 Ingreso de datos'!BR4:BR1001=\"Nunca\")+0))/(_xlfn.AGGREGATE(3,5,'03 Ingreso de datos'!BR4:BR1001)), 0)","v":0},{"$f":"IFERROR((SUMPRODUCT(SUBTOTAL(3,OFFSET('03 Ingreso de datos'!BR4,ROW('03 Ingreso de datos'!BR4:BR1001)-ROW('03 Ingreso de datos'!BR4),0)),('03 Ingreso de datos'!BR4:BR1001=\"No sabe\")+0))/(_xlfn.AGGREGATE(3,5,'03 Ingreso de datos'!BR4:BR1001)), 0)","v":0},{"$f":"SUBTOTAL(3,'03 Ingreso de datos'!BR4:BR1001)","v":0}]
[null,"4. ¿Se fijan las vías intravenosas periféricas en los neonatos (p. ej., suturas adhesivas [steristrips], férulas de fijación de ser necesario)? ",null,null,null,{"$f":"IFERROR((SUMPRODUCT(SUBTOTAL(3,OFFSET('03 Ingreso de datos'!BS4,ROW('03 Ingreso de datos'!BS4:BS1001)-ROW('03 Ingreso de datos'!BS4),0)),('03 Ingreso de datos'!BS4:BS1001=\"Siempre\")+0))/(_xlfn.AGGREGATE(3,5,'03 Ingreso de datos'!BS4:BS1001)), 0)","v":0},{"$f":"IFERROR((SUMPRODUCT(SUBTOTAL(3,OFFSET('03 Ingreso de datos'!BS4,ROW('03 Ingreso de datos'!BS4:BS1001)-ROW('03 Ingreso de datos'!BS4),0)),('03 Ingreso de datos'!BS4:BS1001=\"Casi siempre\")+0))/(_xlfn.AGGREGATE(3,5,'03 Ingreso de datos'!BS4:BS1001)), 0)","v":0},{"$f":"IFERROR((SUMPRODUCT(SUBTOTAL(3,OFFSET('03 Ingreso de datos'!BS4,ROW('03 Ingreso de datos'!BS4:BS1001)-ROW('03 Ingreso de datos'!BS4),0)),('03 Ingreso de datos'!BS4:BS1001=\"A veces\")+0))/(_xlfn.AGGREGATE(3,5,'03 Ingreso de datos'!BS4:BS1001)), 0)","v":0},{"$f":"IFERROR((SUMPRODUCT(SUBTOTAL(3,OFFSET('03 Ingreso de datos'!BS4,ROW('03 Ingreso de datos'!BS4:BS1001)-ROW('03 Ingreso de datos'!BS4),0)),('03 Ingreso de datos'!BS4:BS1001=\"Casi nunca\")+0))/(_xlfn.AGGREGATE(3,5,'03 Ingreso de datos'!BS4:BS1001)), 0)","v":0},{"$f":"IFERROR((SUMPRODUCT(SUBTOTAL(3,OFFSET('03 Ingreso de datos'!BS4,ROW('03 Ingreso de datos'!BS4:BS1001)-ROW('03 Ingreso de datos'!BS4),0)),('03 Ingreso de datos'!BS4:BS1001=\"Nunca\")+0))/(_xlfn.AGGREGATE(3,5,'03 Ingreso de datos'!BS4:BS1001)), 0)","v":0},{"$f":"IFERROR((SUMPRODUCT(SUBTOTAL(3,OFFSET('03 Ingreso de datos'!BS4,ROW('03 Ingreso de datos'!BS4:BS1001)-ROW('03 Ingreso de datos'!BS4),0)),('03 Ingreso de datos'!BS4:BS1001=\"No sabe\")+0))/(_xlfn.AGGREGATE(3,5,'03 Ingreso de datos'!BS4:BS1001)), 0)","v":0},{"$f":"SUBTOTAL(3,'03 Ingreso de datos'!BS4:BS1001)","v":0}]
[null,"5. ¿Documenta la unidad las inserciones de vías intravenosas periféricas (por ejemplo, en el registro médico)?",null,null,null,{"$f":"IFERROR((SUMPRODUCT(SUBTOTAL(3,OFFSET('03 Ingreso de datos'!BT4,ROW('03 Ingreso de datos'!BT4:BT1001)-ROW('03 Ingreso de datos'!BT4),0)),('03 Ingreso de datos'!BT4:BT1001=\"Siempre\")+0))/(_xlfn.AGGREGATE(3,5,'03 Ingreso de datos'!BT4:BT1001)), 0)","v":0},{"$f":"IFERROR((SUMPRODUCT(SUBTOTAL(3,OFFSET('03 Ingreso de datos'!BT4,ROW('03 Ingreso de datos'!BT4:BT1001)-ROW('03 Ingreso de datos'!BT4),0)),('03 Ingreso de datos'!BT4:BT1001=\"Casi siempre\")+0))/(_xlfn.AGGREGATE(3,5,'03 Ingreso de datos'!BT4:BT1001)), 0)","v":0},{"$f":"IFERROR((SUMPRODUCT(SUBTOTAL(3,OFFSET('03 Ingreso de datos'!BT4,ROW('03 Ingreso de datos'!BT4:BT1001)-ROW('03 Ingreso de datos'!BT4),0)),('03 Ingreso de datos'!BT4:BT1001=\"A veces\")+0))/(_xlfn.AGGREGATE(3,5,'03 Ingreso de datos'!BT4:BT1001)), 0)","v":0},{"$f":"IFERROR((SUMPRODUCT(SUBTOTAL(3,OFFSET('03 Ingreso de datos'!BT4,ROW('03 Ingreso de datos'!BT4:BT1001)-ROW('03 Ingreso de datos'!BT4),0)),('03 Ingreso de datos'!BT4:BT1001=\"Casi nunca\")+0))/(_xlfn.AGGREGATE(3,5,'03 Ingreso de datos'!BT4:BT1001)), 0)","v":0},{"$f":"IFERROR((SUMPRODUCT(SUBTOTAL(3,OFFSET('03 Ingreso de datos'!BT4,ROW('03 Ingreso de datos'!BT4:BT1001)-ROW('03 Ingreso de datos'!BT4),0)),('03 Ingreso de datos'!BT4:BT1001=\"Nunca\")+0))/(_xlfn.AGGREGATE(3,5,'03 Ingreso de datos'!BT4:BT1001)), 0)","v":0},{"$f":"IFERROR((SUMPRODUCT(SUBTOTAL(3,OFFSET('03 Ingreso de datos'!BT4,ROW('03 Ingreso de datos'!BT4:BT1001)-ROW('03 Ingreso de datos'!BT4),0)),('03 Ingreso de datos'!BT4:BT1001=\"No sabe\")+0))/(_xlfn.AGGREGATE(3,5,'03 Ingreso de datos'!BT4:BT1001)), 0)","v":0},{"$f":"SUBTOTAL(3,'03 Ingreso de datos'!BT4:BT1001)","v":0}]
[null,"6. ¿Se practica higiene de las manos antes de accesar una vía intravenosa periférica (administración de medicamento, cambio de vendas)?",null,null,null,{"$f":"IFERROR((SUMPRODUCT(SUBTOTAL(3,OFFSET('03 Ingreso de datos'!BU4,ROW('03 Ingreso de datos'!BU4:BU1001)-ROW('03 Ingreso de datos'!BU4),0)),('03 Ingreso de datos'!BU4:BU1001=\"Siempre\")+0))/(_xlfn.AGGREGATE(3,5,'03 Ingreso de datos'!BU4:BU1001)), 0)","v":0},{"$f":"IFERROR((SUMPRODUCT(SUBTOTAL(3,OFFSET('03 Ingreso de datos'!BU4,ROW('03 Ingreso de datos'!BU4:BU1001)-ROW('03 Ingreso de datos'!BU4),0)),('03 Ingreso de datos'!BU4:BU1001=\"Casi siempre\")+0))/(_xlfn.AGGREGATE(3,5,'03 Ingreso de datos'!BU4:BU1001)), 0)","v":0},{"$f":"IFERROR((SUMPRODUCT(SUBTOTAL(3,OFFSET('03 Ingreso de datos'!BU4,ROW('03 Ingreso de datos'!BU4:BU1001)-ROW('03 Ingreso de datos'!BU4),0)),('03 Ingreso de datos'!BU4:BU1001=\"A veces\")+0))/(_xlfn.AGGREGATE(3,5,'03 Ingreso de datos'!BU4:BU1001)), 0)","v":0},{"$f":"IFERROR((SUMPRODUCT(SUBTOTAL(3,OFFSET('03 Ingreso de datos'!BU4,ROW('03 Ingreso de datos'!BU4:BU1001)-ROW('03 Ingreso de datos'!BU4),0)),('03 Ingreso de datos'!BU4:BU1001=\"Casi nunca\")+0))/(_xlfn.AGGREGATE(3,5,'03 Ingreso de datos'!BU4:BU1001)), 0)","v":0},{"$f":"IFERROR((SUMPRODUCT(SUBTOTAL(3,OFFSET('03 Ingreso de datos'!BU4,ROW('03 Ingreso de datos'!BU4:BU1001)-ROW('03 Ingreso de datos'!BU4),0)),('03 Ingreso de datos'!BU4:BU1001=\"Nunca\")+0))/(_xlfn.AGGREGATE(3,5,'03 Ingreso de datos'!BU4:BU1001)), 0)","v":0},{"$f":"IFERROR((SUMPRODUCT(SUBTOTAL(3,OFFSET('03 Ingreso de datos'!BU4,ROW('03 Ingreso de datos'!BU4:BU1001)-ROW('03 Ingreso de datos'!BU4),0)),('03 Ingreso de datos'!BU4:BU1001=\"No sabe\")+0))/(_xlfn.AGGREGATE(3,5,'03 Ingreso de datos'!BU4:BU1001)), 0)","v":0},{"$f":"SUBTOTAL(3,'03 Ingreso de datos'!BU4:BU1001)","v":0}]
[null,"7. ¿Se realiza antisepsia de la piel antes de accesar una vía intravenosa periférica?",null,null,null,{"$f":"IFERROR((SUMPRODUCT(SUBTOTAL(3,OFFSET('03 Ingreso de datos'!BV4,ROW('03 Ingreso de datos'!BV4:BV1001)-ROW('03 Ingreso de datos'!BV4),0)),('03 Ingreso de datos'!BV4:BV1001=\"Siempre\")+0))/(_xlfn.AGGREGATE(3,5,'03 Ingreso de datos'!BV4:BV1001)), 0)","v":0},{"$f":"IFERROR((SUMPRODUCT(SUBTOTAL(3,OFFSET('03 Ingreso de datos'!BV4,ROW('03 Ingreso de datos'!BV4:BV1001)-ROW('03 Ingreso de datos'!BV4),0)),('03 Ingreso de datos'!BV4:BV1001=\"Casi siempre\")+0))/(_xlfn.AGGREGATE(3,5,'03 Ingreso de datos'!BV4:BV1001)), 0)","v":0},{"$f":"IFERROR((SUMPRODUCT(SUBTOTAL(3,OFFSET('03 Ingreso de datos'!BV4,ROW('03 Ingreso de datos'!BV4:BV1001)-ROW('03 Ingreso de datos'!BV4),0)),('03 Ingreso de datos'!BV4:BV1001=\"A veces\")+0))/(_xlfn.AGGREGATE(3,5,'03 Ingreso de datos'!BV4:BV1001)), 0)","v":0},{"$f":"IFERROR((SUMPRODUCT(SUBTOTAL(3,OFFSET('03 Ingreso de datos'!BV4,ROW('03 Ingreso de datos'!BV4:BV1001)-ROW('03 Ingreso de datos'!BV4),0)),('03 Ingreso de datos'!BV4:BV1001=\"Casi nunca\")+0))/(_xlfn.AGGREGATE(3,5,'03 Ingreso de datos'!BV4:BV1001)), 0)","v":0},{"$f":"IFERROR((SUMPRODUCT(SUBTOTAL(3,OFFSET('03 Ingreso de datos'!BV4,ROW('03 Ingreso de datos'!BV4:BV1001)-ROW('03 Ingreso de datos'!BV4),0)),('03 Ingreso de datos'!BV4:BV1001=\"Nunca\")+0))/(_xlfn.AGGREGATE(3,5,'03 Ingreso de datos'!BV4:BV1001)), 0)","v":0},{"$f":"IFERROR((SUMPRODUCT(SUBTOTAL(3,OFFSET('03 Ingreso de datos'!BV4,ROW('03 Ingreso de datos'!BV4:BV1001)-ROW('03 Ingreso de datos'!BV4),0)),('03 Ingreso de datos'!BV4:BV1001=\"No sabe\")+0))/(_xlfn.AGGREGATE(3,5,'03 Ingreso de datos'!BV4:BV1001)), 0)","v":0},{"$f":"SUBTOTAL(3,'03 Ingreso de datos'!BV4:BV1001)","v":0}]
[null,"8. ¿Se desinfectan los puertos o las tapas cada vez que se accesa una vía intravenosa periférica?  ",null,null,null,{"$f":"IFERROR((SUMPRODUCT(SUBTOTAL(3,OFFSET('03 Ingreso de datos'!BW4,ROW('03 Ingreso de datos'!BW4:BW1001)-ROW('03 Ingreso de datos'!BW4),0)),('03 Ingreso de datos'!BW4:BW1001=\"Siempre\")+0))/(_xlfn.AGGREGATE(3,5,'03 Ingreso de datos'!BW4:BW1001)), 0)","v":0},{"$f":"IFERROR((SUMPRODUCT(SUBTOTAL(3,OFFSET('03 Ingreso de datos'!BW4,ROW('03 Ingreso de datos'!BW4:BW1001)-ROW('03 Ingreso de datos'!BW4),0)),('03 Ingreso de datos'!BW4:BW1001=\"Casi siempre\")+0))/(_xlfn.AGGREGATE(3,5,'03 Ingreso de datos'!BW4:BW1001)), 0)","v":0},{"$f":"IFERROR((SUMPRODUCT(SUBTOTAL(3,OFFSET('03 Ingreso de datos'!BW4,ROW('03 Ingreso de datos'!BW4:BW1001)-ROW('03 Ingreso de datos'!BW4),0)),('03 Ingreso de datos'!BW4:BW1001=\"A veces\")+0))/(_xlfn.AGGREGATE(3,5,'03 Ingreso de datos'!BW4:BW1001)), 0)","v":0},{"$f":"IFERROR((SUMPRODUCT(SUBTOTAL(3,OFFSET('03 Ingreso de datos'!BW4,ROW('03 Ingreso de datos'!BW4:BW1001)-ROW('03 Ingreso de datos'!BW4),0)),('03 Ingreso de datos'!BW4:BW1001=\"Casi nunca\")+0))/(_xlfn.AGGREGATE(3,5,'03 Ingreso de datos'!BW4:BW1001)), 0)","v":0},{"$f":"IFERROR((SUMPRODUCT(SUBTOTAL(3,OFFSET('03 Ingreso de datos'!BW4,ROW('03 Ingreso de datos'!BW4:BW1001)-ROW('03 Ingreso de datos'!BW4),0)),('03 Ingreso de datos'!BW4:BW1001=\"Nunca\")+0))/(_xlfn.AGGREGATE(3,5,'03 Ingreso de datos'!BW4:BW1001)), 0)","v":0},{"$f":"IFERROR((SUMPRODUCT(SUBTOTAL(3,OFFSET('03 Ingreso de datos'!BW4,ROW('03 Ingreso de datos'!BW4:BW1001)-ROW('03 Ingreso de datos'!BW4),0)),('03 Ingreso de datos'!BW4:BW1001=\"No sabe\")+0))/(_xlfn.AGGREGATE(3,5,'03 Ingreso de datos'!BW4:BW1001)), 0)","v":0},{"$f":"SUBTOTAL(3,'03 Ingreso de datos'!BW4:BW1001)","v":0}]
[null,"9. ¿Se irrigan las vías intravenosas periféricas con solución salina estéril después de una infusión? ",null,null,null,{"$f":"IFERROR((SUMPRODUCT(SUBTOTAL(3,OFFSET('03 Ingreso de datos'!BX4,ROW('03 Ingreso de datos'!BX4:BX1001)-ROW('03 Ingreso de datos'!BX4),0)),('03 Ingreso de datos'!BX4:BX1001=\"Siempre\")+0))/(_xlfn.AGGREGATE(3,5,'03 Ingreso de datos'!BX4:BX1001)), 0)","v":0},{"$f":"IFERROR((SUMPRODUCT(SUBTOTAL(3,OFFSET('03 Ingreso de datos'!BX4,ROW('03 Ingreso de datos'!BX4:BX1001)-ROW('03 Ingreso de datos'!BX4),0)),('03 Ingreso de datos'!BX4:BX1001=\"Casi siempre\")+0))/(_xlfn.AGGREGATE(3,5,'03 Ingreso de datos'!BX4:BX1001)), 0)","v":0},{"$f":"IFERROR((SUMPRODUCT(SUBTOTAL(3,OFFSET('03 Ingreso de datos'!BX4,ROW('03 Ingreso de datos'!BX4:BX1001)-ROW('03 Ingreso de datos'!BX4),0)),('03 Ingreso de datos'!BX4:BX1001=\"A veces\")+0))/(_xlfn.AGGREGATE(3,5,'03 Ingreso de datos'!BX4:BX1001)), 0)","v":0},{"$f":"IFERROR((SUMPRODUCT(SUBTOTAL(3,OFFSET('03 Ingreso de datos'!BX4,ROW('03 Ingreso de datos'!BX4:BX1001)-ROW('03 Ingreso de datos'!BX4),0)),('03 Ingreso de datos'!BX4:BX1001=\"Casi nunca\")+0))/(_xlfn.AGGREGATE(3,5,'03 Ingreso de datos'!BX4:BX1001)), 0)","v":0},{"$f":"IFERROR((SUMPRODUCT(SUBTOTAL(3,OFFSET('03 Ingreso de datos'!BX4,ROW('03 Ingreso de datos'!BX4:BX1001)-ROW('03 Ingreso de datos'!BX4),0)),('03 Ingreso de datos'!BX4:BX1001=\"Nunca\")+0))/(_xlfn.AGGREGATE(3,5,'03 Ingreso de datos'!BX4:BX1001)), 0)","v":0},{"$f":"IFERROR((SUMPRODUCT(SUBTOTAL(3,OFFSET('03 Ingreso de datos'!BX4,ROW('03 Ingreso de datos'!BX4:BX1001)-ROW('03 Ingreso de datos'!BX4),0)),('03 Ingreso de datos'!BX4:BX1001=\"No sabe\")+0))/(_xlfn.AGGREGATE(3,5,'03 Ingreso de datos'!BX4:BX1001)), 0)","v":0},{"$f":"SUBTOTAL(3,'03 Ingreso de datos'!BX4:BX1001)","v":0}]
[null,"10. ¿Se usan jeringas prellenadas para la irrigación con solución salina  (llenadas con solución salina por el fabricante)?",null,null,null,{"$f":"IFERROR((SUMPRODUCT(SUBTOTAL(3,OFFSET('03 Ingreso de datos'!BY4,ROW('03 Ingreso de datos'!BY4:BY1001)-ROW('03 Ingreso de datos'!BY4),0)),('03 Ingreso de datos'!BY4:BY1001=\"Siempre\")+0))/(_xlfn.AGGREGATE(3,5,'03 Ingreso de datos'!BY4:BY1001)), 0)","v":0},{"$f":"IFERROR((SUMPRODUCT(SUBTOTAL(3,OFFSET('03 Ingreso de datos'!BY4,ROW('03 Ingreso de datos'!BY4:BY1001)-ROW('03 Ingreso de datos'!BY4),0)),('03 Ingreso de datos'!BY4:BY1001=\"Casi siempre\")+0))/(_xlfn.AGGREGATE(3,5,'03 Ingreso de datos'!BY4:BY1001)), 0)","v":0},{"$f":"IFERROR((SUMPRODUCT(SUBTOTAL(3,OFFSET('03 Ingreso de datos'!BY4,ROW('03 Ingreso de datos'!BY4:BY1001)-ROW('03 Ingreso de datos'!BY4),0)),('03 Ingreso de datos'!BY4:BY1001=\"A veces\")+0))/(_xlfn.AGGREGATE(3,5,'03 Ingreso de datos'!BY4:BY1001)), 0)","v":0},{"$f":"IFERROR((SUMPRODUCT(SUBTOTAL(3,OFFSET('03 Ingreso de datos'!BY4,ROW('03 Ingreso de datos'!BY4:BY1001)-ROW('03 Ingreso de datos'!BY4),0)),('03 Ingreso de datos'!BY4:BY1001=\"Casi nunca\")+0))/(_xlfn.AGGREGATE(3,5,'03 Ingreso de datos'!BY4:BY1001)), 0)","v":0},{"$f":"IFERROR((SUMPRODUCT(SUBTOTAL(3,OFFSET('03 Ingreso de datos'!BY4,ROW('03 Ingreso de datos'!BY4:BY1001)-ROW('03 Ingreso de datos'!BY4),0)),('03 Ingreso de datos'!BY4:BY1001=\"Nunca\")+0))/(_xlfn.AGGREGATE(3,5,'03 Ingreso de datos'!BY4:BY1001)), 0)","v":0},{"$f":"IFERROR((SUMPRODUCT(SUBTOTAL(3,OFFSET('03 Ingreso de datos'!BY4,ROW('03 Ingreso de datos'!BY4:BY1001)-ROW('03 Ingreso de datos'!BY4),0)),('03 Ingreso de datos'!BY4:BY1001=\"No sabe\")+0))/(_xlfn.AGGREGATE(3,5,'03 Ingreso de datos'!BY4:BY1001)), 0)","v":0},{"$f":"SUBTOTAL(3,'03 Ingreso de datos'!BY4:BY1001)","v":0}]
[null,"11. ¿Se cambian cada 4 días los catéteres intravenosos usados para las infusiones continuas?",null,null,null,{"$f":"IFERROR((SUMPRODUCT(SUBTOTAL(3,OFFSET('03 Ingreso de datos'!BZ4,ROW('03 Ingreso de datos'!BZ4:BZ1001)-ROW('03 Ingreso de datos'!BZ4),0)),('03 Ingreso de datos'!BZ4:BZ1001=\"Siempre\")+0))/(_xlfn.AGGREGATE(3,5,'03 Ingreso de datos'!BZ4:BZ1001)), 0)","v":0},{"$f":"IFERROR((SUMPRODUCT(SUBTOTAL(3,OFFSET('03 Ingreso de datos'!BZ4,ROW('03 Ingreso de datos'!BZ4:BZ1001)-ROW('03 Ingreso de datos'!BZ4),0)),('03 Ingreso de datos'!BZ4:BZ1001=\"Casi siempre\")+0))/(_xlfn.AGGREGATE(3,5,'03 Ingreso de datos'!BZ4:BZ1001)), 0)","v":0},{"$f":"IFERROR((SUMPRODUCT(SUBTOTAL(3,OFFSET('03 Ingreso de datos'!BZ4,ROW('03 Ingreso de datos'!BZ4:BZ1001)-ROW('03 Ingreso de datos'!BZ4),0)),('03 Ingreso de datos'!BZ4:BZ1001=\"A veces\")+0))/(_xlfn.AGGREGATE(3,5,'03 Ingreso de datos'!BZ4:BZ1001)), 0)","v":0},{"$f":"IFERROR((SUMPRODUCT(SUBTOTAL(3,OFFSET('03 Ingreso de datos'!BZ4,ROW('03 Ingreso de datos'!BZ4:BZ1001)-ROW('03 Ingreso de datos'!BZ4),0)),('03 Ingreso de datos'!BZ4:BZ1001=\"Casi nunca\")+0))/(_xlfn.AGGREGATE(3,5,'03 Ingreso de datos'!BZ4:BZ1001)), 0)","v":0},{"$f":"IFERROR((SUMPRODUCT(SUBTOTAL(3,OFFSET('03 Ingreso de datos'!BZ4,ROW('03 Ingreso de datos'!BZ4:BZ1001)-ROW('03 Ingreso de datos'!BZ4),0)),('03 Ingreso de datos'!BZ4:BZ1001=\"Nunca\")+0))/(_xlfn.AGGREGATE(3,5,'03 Ingreso de datos'!BZ4:BZ1001)), 0)","v":0},{"$f":"IFERROR((SUMPRODUCT(SUBTOTAL(3,OFFSET('03 Ingreso de datos'!BZ4,ROW('03 Ingreso de datos'!BZ4:BZ1001)-ROW('03 Ingreso de datos'!BZ4),0)),('03 Ingreso de datos'!BZ4:BZ1001=\"No sabe\")+0))/(_xlfn.AGGREGATE(3,5,'03 Ingreso de datos'!BZ4:BZ1001)), 0)","v":0},{"$f":"SUBTOTAL(3,'03 Ingreso de datos'!BZ4:BZ1001)","v":0}]
[null,"12. ¿Se cambian cada 24 horas los catéteres intravenosos que se usan para sangre, productos de sangre o emulsiones de grasa?",null,null,null,{"$f":"IFERROR((SUMPRODUCT(SUBTOTAL(3,OFFSET('03 Ingreso de datos'!CA4,ROW('03 Ingreso de datos'!CA4:CA1001)-ROW('03 Ingreso de datos'!CA4),0)),('03 Ingreso de datos'!CA4:CA1001=\"Siempre\")+0))/(_xlfn.AGGREGATE(3,5,'03 Ingreso de datos'!CA4:CA1001)), 0)","v":0},{"$f":"IFERROR((SUMPRODUCT(SUBTOTAL(3,OFFSET('03 Ingreso de datos'!CA4,ROW('03 Ingreso de datos'!CA4:CA1001)-ROW('03 Ingreso de datos'!CA4),0)),('03 Ingreso de datos'!CA4:CA1001=\"Casi siempre\")+0))/(_xlfn.AGGREGATE(3,5,'03 Ingreso de datos'!CA4:CA1001)), 0)","v":0},{"$f":"IFERROR((SUMPRODUCT(SUBTOTAL(3,OFFSET('03 Ingreso de datos'!CA4,ROW('03 Ingreso de datos'!CA4:CA1001)-ROW('03 Ingreso de datos'!CA4),0)),('03 Ingreso de datos'!CA4:CA1001=\"A veces\")+0))/(_xlfn.AGGREGATE(3,5,'03 Ingreso de datos'!CA4:CA1001)), 0)","v":0},{"$f":"IFERROR((SUMPRODUCT(SUBTOTAL(3,OFFSET('03 Ingreso de datos'!CA4,ROW('03 Ingreso de datos'!CA4:CA1001)-ROW('03 Ingreso de datos'!CA4),0)),('03 Ingreso de datos'!CA4:CA1001=\"Casi nunca\")+0))/(_xlfn.AGGREGATE(3,5,'03 Ingreso de datos'!CA4:CA1001)), 0)","v":0},{"$f":"IFERROR((SUMPRODUCT(SUBTOTAL(3,OFFSET('03 Ingreso de datos'!CA4,ROW('03 Ingreso de datos'!CA4:CA1001)-ROW('03 Ingreso de datos'!CA4),0)),('03 Ingreso de datos'!CA4:CA1001=\"Nunca\")+0))/(_xlfn.AGGREGATE(3,5,'03 Ingreso de datos'!CA4:CA1001)), 0)","v":0},{"$f":"IFERROR((SUMPRODUCT(SUBTOTAL(3,OFFSET('03 Ingreso de datos'!CA4,ROW('03 Ingreso de datos'!CA4:CA1001)-ROW('03 Ingreso de datos'!CA4),0)),('03 Ingreso de datos'!CA4:CA1001=\"No sabe\")+0))/(_xlfn.AGGREGATE(3,5,'03 Ingreso de datos'!CA4:CA1001)), 0)","v":0},{"$f":"SUBTOTAL(3,'03 Ingreso de datos'!CA4:CA1001)","v":0}]
[null,"13. ¿Se evalúan a diario las vías intravenosas periféricas (p. ej., durante las visitas médicas a los pacientes) para asegurarse de que sigan siendo necesarias?",null,null,null,{"$f":"IFERROR((SUMPRODUCT(SUBTOTAL(3,OFFSET('03 Ingreso de datos'!CB4,ROW('03 Ingreso de datos'!CB4:CB1001)-ROW('03 Ingreso de datos'!CB4),0)),('03 Ingreso de datos'!CB4:CB1001=\"Siempre\")+0))/(_xlfn.AGGREGATE(3,5,'03 Ingreso de datos'!CB4:CB1001)), 0)","v":0},{"$f":"IFERROR((SUMPRODUCT(SUBTOTAL(3,OFFSET('03 Ingreso de datos'!CB4,ROW('03 Ingreso de datos'!CB4:CB1001)-ROW('03 Ingreso de datos'!CB4),0)),('03 Ingreso de datos'!CB4:CB1001=\"Casi siempre\")+0))/(_xlfn.AGGREGATE(3,5,'03 Ingreso de datos'!CB4:CB1001)), 0)","v":0},{"$f":"IFERROR((SUMPRODUCT(SUBTOTAL(3,OFFSET('03 Ingreso de datos'!CB4,ROW('03 Ingreso de datos'!CB4:CB1001)-ROW('03 Ingreso de datos'!CB4),0)),('03 Ingreso de datos'!CB4:CB1001=\"A veces\")+0))/(_xlfn.AGGREGATE(3,5,'03 Ingreso de datos'!CB4:CB1001)), 0)","v":0},{"$f":"IFERROR((SUMPRODUCT(SUBTOTAL(3,OFFSET('03 Ingreso de datos'!CB4,ROW('03 Ingreso de datos'!CB4:CB1001)-ROW('03 Ingreso de datos'!CB4),0)),('03 Ingreso de datos'!CB4:CB1001=\"Casi nunca\")+0))/(_xlfn.AGGREGATE(3,5,'03 Ingreso de datos'!CB4:CB1001)), 0)","v":0},{"$f":"IFERROR((SUMPRODUCT(SUBTOTAL(3,OFFSET('03 Ingreso de datos'!CB4,ROW('03 Ingreso de datos'!CB4:CB1001)-ROW('03 Ingreso de datos'!CB4),0)),('03 Ingreso de datos'!CB4:CB1001=\"Nunca\")+0))/(_xlfn.AGGREGATE(3,5,'03 Ingreso de datos'!CB4:CB1001)), 0)","v":0},{"$f":"IFERROR((SUMPRODUCT(SUBTOTAL(3,OFFSET('03 Ingreso de datos'!CB4,ROW('03 Ingreso de datos'!CB4:CB1001)-ROW('03 Ingreso de datos'!CB4),0)),('03 Ingreso de datos'!CB4:CB1001=\"No sabe\")+0))/(_xlfn.AGGREGATE(3,5,'03 Ingreso de datos'!CB4:CB1001)), 0)","v":0},{"$f":"SUBTOTAL(3,'03 Ingreso de datos'!CB4:CB1001)","v":0}]
[null,"14. ¿Se retiran inmediatamente las vías intravenosas periféricas cuando ya no son necesarias?",null,null,null,{"$f":"IFERROR((SUMPRODUCT(SUBTOTAL(3,OFFSET('03 Ingreso de datos'!CC4,ROW('03 Ingreso de datos'!CC4:CC1001)-ROW('03 Ingreso de datos'!CC4),0)),('03 Ingreso de datos'!CC4:CC1001=\"Siempre\")+0))/(_xlfn.AGGREGATE(3,5,'03 Ingreso de datos'!CC4:CC1001)), 0)","v":0},{"$f":"IFERROR((SUMPRODUCT(SUBTOTAL(3,OFFSET('03 Ingreso de datos'!CC4,ROW('03 Ingreso de datos'!CC4:CC1001)-ROW('03 Ingreso de datos'!CC4),0)),('03 Ingreso de datos'!CC4:CC1001=\"Casi siempre\")+0))/(_xlfn.AGGREGATE(3,5,'03 Ingreso de datos'!CC4:CC1001)), 0)","v":0},{"$f":"IFERROR((SUMPRODUCT(SUBTOTAL(3,OFFSET('03 Ingreso de datos'!CC4,ROW('03 Ingreso de datos'!CC4:CC1001)-ROW('03 Ingreso de datos'!CC4),0)),('03 Ingreso de datos'!CC4:CC1001=\"A veces\")+0))/(_xlfn.AGGREGATE(3,5,'03 Ingreso de datos'!CC4:CC1001)), 0)","v":0},{"$f":"IFERROR((SUMPRODUCT(SUBTOTAL(3,OFFSET('03 Ingreso de datos'!CC4,ROW('03 Ingreso de datos'!CC4:CC1001)-ROW('03 Ingreso de datos'!CC4),0)),('03 Ingreso de datos'!CC4:CC1001=\"Casi nunca\")+0))/(_xlfn.AGGREGATE(3,5,'03 Ingreso de datos'!CC4:CC1001)), 0)","v":0},{"$f":"IFERROR((SUMPRODUCT(SUBTOTAL(3,OFFSET('03 Ingreso de datos'!CC4,ROW('03 Ingreso de datos'!CC4:CC1001)-ROW('03 Ingreso de datos'!CC4),0)),('03 Ingreso de datos'!CC4:CC1001=\"Nunca\")+0))/(_xlfn.AGGREGATE(3,5,'03 Ingreso de datos'!CC4:CC1001)), 0)","v":0},{"$f":"IFERROR((SUMPRODUCT(SUBTOTAL(3,OFFSET('03 Ingreso de datos'!CC4,ROW('03 Ingreso de datos'!CC4:CC1001)-ROW('03 Ingreso de datos'!CC4),0)),('03 Ingreso de datos'!CC4:CC1001=\"No sabe\")+0))/(_xlfn.AGGREGATE(3,5,'03 Ingreso de datos'!CC4:CC1001)), 0)","v":0},{"$f":"SUBTOTAL(3,'03 Ingreso de datos'!CC4:CC1001)","v":0}]
[null,"15. ¿Se revisan regularmente las vías intravenosas periféricas (por ejemplo, a diario) en busca de signos de infección (inflamación, enrojecimiento, induración)?",null,null,null,{"$f":"IFERROR((SUMPRODUCT(SUBTOTAL(3,OFFSET('03 Ingreso de datos'!CD4,ROW('03 Ingreso de datos'!CD4:CD1001)-ROW('03 Ingreso de datos'!CD4),0)),('03 Ingreso de datos'!CD4:CD1001=\"Siempre\")+0))/(_xlfn.AGGREGATE(3,5,'03 Ingreso de datos'!CD4:CD1001)), 0)","v":0},{"$f":"IFERROR((SUMPRODUCT(SUBTOTAL(3,OFFSET('03 Ingreso de datos'!CD4,ROW('03 Ingreso de datos'!CD4:CD1001)-ROW('03 Ingreso de datos'!CD4),0)),('03 Ingreso de datos'!CD4:CD1001=\"Casi siempre\")+0))/(_xlfn.AGGREGATE(3,5,'03 Ingreso de datos'!CD4:CD1001)), 0)","v":0},{"$f":"IFERROR((SUMPRODUCT(SUBTOTAL(3,OFFSET('03 Ingreso de datos'!CD4,ROW('03 Ingreso de datos'!CD4:CD1001)-ROW('03 Ingreso de datos'!CD4),0)),('03 Ingreso de datos'!CD4:CD1001=\"A veces\")+0))/(_xlfn.AGGREGATE(3,5,'03 Ingreso de datos'!CD4:CD1001)), 0)","v":0},{"$f":"IFERROR((SUMPRODUCT(SUBTOTAL(3,OFFSET('03 Ingreso de datos'!CD4,ROW('03 Ingreso de datos'!CD4:CD1001)-ROW('03 Ingreso de datos'!CD4),0)),('03 Ingreso de datos'!CD4:CD1001=\"Casi nunca\")+0))/(_xlfn.AGGREGATE(3,5,'03 Ingreso de datos'!CD4:CD1001)), 0)","v":0},{"$f":"IFERROR((SUMPRODUCT(SUBTOTAL(3,OFFSET('03 Ingreso de datos'!CD4,ROW('03 Ingreso de datos'!CD4:CD1001)-ROW('03 Ingreso de datos'!CD4),0)),('03 Ingreso de datos'!CD4:CD1001=\"Nunca\")+0))/(_xlfn.AGGREGATE(3,5,'03 Ingreso de datos'!CD4:CD1001)), 0)","v":0},{"$f":"IFERROR((SUMPRODUCT(SUBTOTAL(3,OFFSET('03 Ingreso de datos'!CD4,ROW('03 Ingreso de datos'!CD4:CD1001)-ROW('03 Ingreso de datos'!CD4),0)),('03 Ingreso de datos'!CD4:CD1001=\"No sabe\")+0))/(_xlfn.AGGREGATE(3,5,'03 Ingreso de datos'!CD4:CD1001)), 0)","v":0},{"$f":"SUBTOTAL(3,'03 Ingreso de datos'!CD4:CD1001)","v":0}]
[null,"16. ¿Se retiran con prontitud las vías intravenosas periféricas cuando hay signos de infección?",null,null,null,{"$f":"IFERROR((SUMPRODUCT(SUBTOTAL(3,OFFSET('03 Ingreso de datos'!CE4,ROW('03 Ingreso de datos'!CE4:CE1001)-ROW('03 Ingreso de datos'!CE4),0)),('03 Ingreso de datos'!CE4:CE1001=\"Siempre\")+0))/(_xlfn.AGGREGATE(3,5,'03 Ingreso de datos'!CE4:CE1001)), 0)","v":0},{"$f":"IFERROR((SUMPRODUCT(SUBTOTAL(3,OFFSET('03 Ingreso de datos'!CE4,ROW('03 Ingreso de datos'!CE4:CE1001)-ROW('03 Ingreso de datos'!CE4),0)),('03 Ingreso de datos'!CE4:CE1001=\"Casi siempre\")+0))/(_xlfn.AGGREGATE(3,5,'03 Ingreso de datos'!CE4:CE1001)), 0)","v":0},{"$f":"IFERROR((SUMPRODUCT(SUBTOTAL(3,OFFSET('03 Ingreso de datos'!CE4,ROW('03 Ingreso de datos'!CE4:CE1001)-ROW('03 Ingreso de datos'!CE4),0)),('03 Ingreso de datos'!CE4:CE1001=\"A veces\")+0))/(_xlfn.AGGREGATE(3,5,'03 Ingreso de datos'!CE4:CE1001)), 0)","v":0},{"$f":"IFERROR((SUMPRODUCT(SUBTOTAL(3,OFFSET('03 Ingreso de datos'!CE4,ROW('03 Ingreso de datos'!CE4:CE1001)-ROW('03 Ingreso de datos'!CE4),0)),('03 Ingreso de datos'!CE4:CE1001=\"Casi nunca\")+0))/(_xlfn.AGGREGATE(3,5,'03 Ingreso de datos'!CE4:CE1001)), 0)","v":0},{"$f":"IFERROR((SUMPRODUCT(SUBTOTAL(3,OFFSET('03 Ingreso de datos'!CE4,ROW('03 Ingreso de datos'!CE4:CE1001)-ROW('03 Ingreso de datos'!CE4),0)),('03 Ingreso de datos'!CE4:CE1001=\"Nunca\")+0))/(_xlfn.AGGREGATE(3,5,'03 Ingreso de datos'!CE4:CE1001)), 0)","v":0},{"$f":"IFERROR((SUMPRODUCT(SUBTOTAL(3,OFFSET('03 Ingreso de datos'!CE4,ROW('03 Ingreso de datos'!CE4:CE1001)-ROW('03 Ingreso de datos'!CE4),0)),('03 Ingreso de datos'!CE4:CE1001=\"No sabe\")+0))/(_xlfn.AGGREGATE(3,5,'03 Ingreso de datos'!CE4:CE1001)), 0)","v":0},{"$f":"SUBTOTAL(3,'03 Ingreso de datos'!CE4:CE1001)","v":0}]
[]
[null,"5. Preparación de medicamentos: Prácticas"]
[null,null,null,null,null,"Siempre","Casi siempre","A veces","Casi nunca","Nunca","No sabe","# de respuestas"]
[null,"1. ¿Revisa un farmacéutico los medicamentos que se recetan para neonatos?",null,null,null,{"$f":"IFERROR((SUMPRODUCT(SUBTOTAL(3,OFFSET('03 Ingreso de datos'!CF4,ROW('03 Ingreso de datos'!CF4:CF1001)-ROW('03 Ingreso de datos'!CF4),0)),('03 Ingreso de datos'!CF4:CF1001=\"Siempre\")+0))/(_xlfn.AGGREGATE(3,5,'03 Ingreso de datos'!CF4:CF1001)), 0)","v":0},{"$f":"IFERROR((SUMPRODUCT(SUBTOTAL(3,OFFSET('03 Ingreso de datos'!CF4,ROW('03 Ingreso de datos'!CF4:CF1001)-ROW('03 Ingreso de datos'!CF4),0)),('03 Ingreso de datos'!CF4:CF1001=\"Casi siempre\")+0))/(_xlfn.AGGREGATE(3,5,'03 Ingreso de datos'!CF4:CF1001)), 0)","v":0},{"$f":"IFERROR((SUMPRODUCT(SUBTOTAL(3,OFFSET('03 Ingreso de datos'!CF4,ROW('03 Ingreso de datos'!CF4:CF1001)-ROW('03 Ingreso de datos'!CF4),0)),('03 Ingreso de datos'!CF4:CF1001=\"A veces\")+0))/(_xlfn.AGGREGATE(3,5,'03 Ingreso de datos'!CF4:CF1001)), 0)","v":0},{"$f":"IFERROR((SUMPRODUCT(SUBTOTAL(3,OFFSET('03 Ingreso de datos'!CF4,ROW('03 Ingreso de datos'!CF4:CF1001)-ROW('03 Ingreso de datos'!CF4),0)),('03 Ingreso de datos'!CF4:CF1001=\"Casi nunca\")+0))/(_xlfn.AGGREGATE(3,5,'03 Ingreso de datos'!CF4:CF1001)), 0)","v":0},{"$f":"IFERROR((SUMPRODUCT(SUBTOTAL(3,OFFSET('03 Ingreso de datos'!CF4,ROW('03 Ingreso de datos'!CF4:CF1001)-ROW('03 Ingreso de datos'!CF4),0)),('03 Ingreso de datos'!CF4:CF1001=\"Nunca\")+0))/(_xlfn.AGGREGATE(3,5,'03 Ingreso de datos'!CF4:CF1001)), 0)","v":0},{"$f":"IFERROR((SUMPRODUCT(SUBTOTAL(3,OFFSET('03 Ingreso de datos'!CF4,ROW('03 Ingreso de datos'!CF4:CF1001)-ROW('03 Ingreso de datos'!CF4),0)),('03 Ingreso de datos'!CF4:CF1001=\"No sabe\")+0))/(_xlfn.AGGREGATE(3,5,'03 Ingreso de datos'!CF4:CF1001)), 0)","v":0},{"$f":"SUBTOTAL(3,'03 Ingreso de datos'!CF4:CF1001)","v":0}]
[null,"2. ¿Se preparan los medicamentos en un área designada (por ejemplo, alejada de posibles fuentes de contaminación, como lavabos)?",null,null,null,{"$f":"IFERROR((SUMPRODUCT(SUBTOTAL(3,OFFSET('03 Ingreso de datos'!CG4,ROW('03 Ingreso de datos'!CG4:CG1001)-ROW('03 Ingreso de datos'!CG4),0)),('03 Ingreso de datos'!CG4:CG1001=\"Siempre\")+0))/(_xlfn.AGGREGATE(3,5,'03 Ingreso de datos'!CG4:CG1001)), 0)","v":0},{"$f":"IFERROR((SUMPRODUCT(SUBTOTAL(3,OFFSET('03 Ingreso de datos'!CG4,ROW('03 Ingreso de datos'!CG4:CG1001)-ROW('03 Ingreso de datos'!CG4),0)),('03 Ingreso de datos'!CG4:CG1001=\"Casi siempre\")+0))/(_xlfn.AGGREGATE(3,5,'03 Ingreso de datos'!CG4:CG1001)), 0)","v":0},{"$f":"IFERROR((SUMPRODUCT(SUBTOTAL(3,OFFSET('03 Ingreso de datos'!CG4,ROW('03 Ingreso de datos'!CG4:CG1001)-ROW('03 Ingreso de datos'!CG4),0)),('03 Ingreso de datos'!CG4:CG1001=\"A veces\")+0))/(_xlfn.AGGREGATE(3,5,'03 Ingreso de datos'!CG4:CG1001)), 0)","v":0},{"$f":"IFERROR((SUMPRODUCT(SUBTOTAL(3,OFFSET('03 Ingreso de datos'!CG4,ROW('03 Ingreso de datos'!CG4:CG1001)-ROW('03 Ingreso de datos'!CG4),0)),('03 Ingreso de datos'!CG4:CG1001=\"Casi nunca\")+0))/(_xlfn.AGGREGATE(3,5,'03 Ingreso de datos'!CG4:CG1001)), 0)","v":0},{"$f":"IFERROR((SUMPRODUCT(SUBTOTAL(3,OFFSET('03 Ingreso de datos'!CG4,ROW('03 Ingreso de datos'!CG4:CG1001)-ROW('03 Ingreso de datos'!CG4),0)),('03 Ingreso de datos'!CG4:CG1001=\"Nunca\")+0))/(_xlfn.AGGREGATE(3,5,'03 Ingreso de datos'!CG4:CG1001)), 0)","v":0},{"$f":"IFERROR((SUMPRODUCT(SUBTOTAL(3,OFFSET('03 Ingreso de datos'!CG4,ROW('03 Ingreso de datos'!CG4:CG1001)-ROW('03 Ingreso de datos'!CG4),0)),('03 Ingreso de datos'!CG4:CG1001=\"No sabe\")+0))/(_xlfn.AGGREGATE(3,5,'03 Ingreso de datos'!CG4:CG1001)), 0)","v":0},{"$f":"SUBTOTAL(3,'03 Ingreso de datos'!CG4:CG1001)","v":0}]
[null,"3. ¿Se limpian y desinfectan con regularidad las áreas de preparación de medicamentos (por ejemplo, a diario)?",null,null,null,{"$f":"IFERROR((SUMPRODUCT(SUBTOTAL(3,OFFSET('03 Ingreso de datos'!CH4,ROW('03 Ingreso de datos'!CH4:CH1001)-ROW('03 Ingreso de datos'!CH4),0)),('03 Ingreso de datos'!CH4:CH1001=\"Siempre\")+0))/(_xlfn.AGGREGATE(3,5,'03 Ingreso de datos'!CH4:CH1001)), 0)","v":0},{"$f":"IFERROR((SUMPRODUCT(SUBTOTAL(3,OFFSET('03 Ingreso de datos'!CH4,ROW('03 Ingreso de datos'!CH4:CH1001)-ROW('03 Ingreso de datos'!CH4),0)),('03 Ingreso de datos'!CH4:CH1001=\"Casi siempre\")+0))/(_xlfn.AGGREGATE(3,5,'03 Ingreso de datos'!CH4:CH1001)), 0)","v":0},{"$f":"IFERROR((SUMPRODUCT(SUBTOTAL(3,OFFSET('03 Ingreso de datos'!CH4,ROW('03 Ingreso de datos'!CH4:CH1001)-ROW('03 Ingreso de datos'!CH4),0)),('03 Ingreso de datos'!CH4:CH1001=\"A veces\")+0))/(_xlfn.AGGREGATE(3,5,'03 Ingreso de datos'!CH4:CH1001)), 0)","v":0},{"$f":"IFERROR((SUMPRODUCT(SUBTOTAL(3,OFFSET('03 Ingreso de datos'!CH4,ROW('03 Ingreso de datos'!CH4:CH1001)-ROW('03 Ingreso de datos'!CH4),0)),('03 Ingreso de datos'!CH4:CH1001=\"Casi nunca\")+0))/(_xlfn.AGGREGATE(3,5,'03 Ingreso de datos'!CH4:CH1001)), 0)","v":0},{"$f":"IFERROR((SUMPRODUCT(SUBTOTAL(3,OFFSET('03 Ingreso de datos'!CH4,ROW('03 Ingreso de datos'!CH4:CH1001)-ROW('03 Ingreso de datos'!CH4),0)),('03 Ingreso de datos'!CH4:CH1001=\"Nunca\")+0))/(_xlfn.AGGREGATE(3,5,'03 Ingreso de datos'!CH4:CH1001)), 0)","v":0},{"$f":"IFERROR((SUMPRODUCT(SUBTOTAL(3,OFFSET('03 Ingreso de datos'!CH4,ROW('03 Ingreso de datos'!CH4:CH1001)-ROW('03 Ingreso de datos'!CH4),0)),('03 Ingreso de datos'!CH4:CH1001=\"No sabe\")+0))/(_xlfn.AGGREGATE(3,5,'03 Ingreso de datos'!CH4:CH1001)), 0)","v":0},{"$f":"SUBTOTAL(3,'03 Ingreso de datos'!CH4:CH1001)","v":0}]
[null,"4. ¿Están a mano los suministros en las áreas donde se preparan los medicamentos (por ejemplo, limpiadores de mano a base de alcohol, agujas y jeringas en envases estériles, etc.)?",null,null,null,{"$f":"IFERROR((SUMPRODUCT(SUBTOTAL(3,OFFSET('03 Ingreso de datos'!CI4,ROW('03 Ingreso de datos'!CI4:CI1001)-ROW('03 Ingreso de datos'!CI4),0)),('03 Ingreso de datos'!CI4:CI1001=\"Siempre\")+0))/(_xlfn.AGGREGATE(3,5,'03 Ingreso de datos'!CI4:CI1001)), 0)","v":0},{"$f":"IFERROR((SUMPRODUCT(SUBTOTAL(3,OFFSET('03 Ingreso de datos'!CI4,ROW('03 Ingreso de datos'!CI4:CI1001)-ROW('03 Ingreso de datos'!CI4),0)),('03 Ingreso de datos'!CI4:CI1001=\"Casi siempre\")+0))/(_xlfn.AGGREGATE(3,5,'03 Ingreso de datos'!CI4:CI1001)), 0)","v":0},{"$f":"IFERROR((SUMPRODUCT(SUBTOTAL(3,OFFSET('03 Ingreso de datos'!CI4,ROW('03 Ingreso de datos'!CI4:CI1001)-ROW('03 Ingreso de datos'!CI4),0)),('03 Ingreso de datos'!CI4:CI1001=\"A veces\")+0))/(_xlfn.AGGREGATE(3,5,'03 Ingreso de datos'!CI4:CI1001)), 0)","v":0},{"$f":"IFERROR((SUMPRODUCT(SUBTOTAL(3,OFFSET('03 Ingreso de datos'!CI4,ROW('03 Ingreso de datos'!CI4:CI1001)-ROW('03 Ingreso de datos'!CI4),0)),('03 Ingreso de datos'!CI4:CI1001=\"Casi nunca\")+0))/(_xlfn.AGGREGATE(3,5,'03 Ingreso de datos'!CI4:CI1001)), 0)","v":0},{"$f":"IFERROR((SUMPRODUCT(SUBTOTAL(3,OFFSET('03 Ingreso de datos'!CI4,ROW('03 Ingreso de datos'!CI4:CI1001)-ROW('03 Ingreso de datos'!CI4),0)),('03 Ingreso de datos'!CI4:CI1001=\"Nunca\")+0))/(_xlfn.AGGREGATE(3,5,'03 Ingreso de datos'!CI4:CI1001)), 0)","v":0},{"$f":"IFERROR((SUMPRODUCT(SUBTOTAL(3,OFFSET('03 Ingreso de datos'!CI4,ROW('03 Ingreso de datos'!CI4:CI1001)-ROW('03 Ingreso de datos'!CI4),0)),('03 Ingreso de datos'!CI4:CI1001=\"No sabe\")+0))/(_xlfn.AGGREGATE(3,5,'03 Ingreso de datos'!CI4:CI1001)), 0)","v":0},{"$f":"SUBTOTAL(3,'03 Ingreso de datos'!CI4:CI1001)","v":0}]
[null,"5. ¿Se practica higiene de las manos antes de preparar medicamentos?",null,null,null,{"$f":"IFERROR((SUMPRODUCT(SUBTOTAL(3,OFFSET('03 Ingreso de datos'!CJ4,ROW('03 Ingreso de datos'!CJ4:CJ1001)-ROW('03 Ingreso de datos'!CJ4),0)),('03 Ingreso de datos'!CJ4:CJ1001=\"Siempre\")+0))/(_xlfn.AGGREGATE(3,5,'03 Ingreso de datos'!CJ4:CJ1001)), 0)","v":0},{"$f":"IFERROR((SUMPRODUCT(SUBTOTAL(3,OFFSET('03 Ingreso de datos'!CJ4,ROW('03 Ingreso de datos'!CJ4:CJ1001)-ROW('03 Ingreso de datos'!CJ4),0)),('03 Ingreso de datos'!CJ4:CJ1001=\"Casi siempre\")+0))/(_xlfn.AGGREGATE(3,5,'03 Ingreso de datos'!CJ4:CJ1001)), 0)","v":0},{"$f":"IFERROR((SUMPRODUCT(SUBTOTAL(3,OFFSET('03 Ingreso de datos'!CJ4,ROW('03 Ingreso de datos'!CJ4:CJ1001)-ROW('03 Ingreso de datos'!CJ4),0)),('03 Ingreso de datos'!CJ4:CJ1001=\"A veces\")+0))/(_xlfn.AGGREGATE(3,5,'03 Ingreso de datos'!CJ4:CJ1001)), 0)","v":0},{"$f":"IFERROR((SUMPRODUCT(SUBTOTAL(3,OFFSET('03 Ingreso de datos'!CJ4,ROW('03 Ingreso de datos'!CJ4:CJ1001)-ROW('03 Ingreso de datos'!CJ4),0)),('03 Ingreso de datos'!CJ4:CJ1001=\"Casi nunca\")+0))/(_xlfn.AGGREGATE(3,5,'03 Ingreso de datos'!CJ4:CJ1001)), 0)","v":0},{"$f":"IFERROR((SUMPRODUCT(SUBTOTAL(3,OFFSET('03 Ingreso de datos'!CJ4,ROW('03 Ingreso de datos'!CJ4:CJ1001)-ROW('03 Ingreso de datos'!CJ4),0)),('03 Ingreso de datos'!CJ4:CJ1001=\"Nunca\")+0))/(_xlfn.AGGREGATE(3,5,'03 Ingreso de datos'!CJ4:CJ1001)), 0)","v":0},{"$f":"IFERROR((SUMPRODUCT(SUBTOTAL(3,OFFSET('03 Ingreso de datos'!CJ4,ROW('03 Ingreso de datos'!CJ4:CJ1001)-ROW('03 Ingreso de datos'!CJ4),0)),('03 Ingreso de datos'!CJ4:CJ1001=\"No sabe\")+0))/(_xlfn.AGGREGATE(3,5,'03 Ingreso de datos'!CJ4:CJ1001)), 0)","v":0},{"$f":"SUBTOTAL(3,'03 Ingreso de datos'!CJ4:CJ1001)","v":0}]
[null,"6. ¿Se desinfectan los tapones de goma (viales) o los cuellos (ampollas) antes de accesar el vial o la ampolla?",null,null,null,{"$f":"IFERROR((SUMPRODUCT(SUBTOTAL(3,OFFSET('03 Ingreso de datos'!CK4,ROW('03 Ingreso de datos'!CK4:CK1001)-ROW('03 Ingreso de datos'!CK4),0)),('03 Ingreso de datos'!CK4:CK1001=\"Siempre\")+0))/(_xlfn.AGGREGATE(3,5,'03 Ingreso de datos'!CK4:CK1001)), 0)","v":0},{"$f":"IFERROR((SUMPRODUCT(SUBTOTAL(3,OFFSET('03 Ingreso de datos'!CK4,ROW('03 Ingreso de datos'!CK4:CK1001)-ROW('03 Ingreso de datos'!CK4),0)),('03 Ingreso de datos'!CK4:CK1001=\"Casi siempre\")+0))/(_xlfn.AGGREGATE(3,5,'03 Ingreso de datos'!CK4:CK1001)), 0)","v":0},{"$f":"IFERROR((SUMPRODUCT(SUBTOTAL(3,OFFSET('03 Ingreso de datos'!CK4,ROW('03 Ingreso de datos'!CK4:CK1001)-ROW('03 Ingreso de datos'!CK4),0)),('03 Ingreso de datos'!CK4:CK1001=\"A veces\")+0))/(_xlfn.AGGREGATE(3,5,'03 Ingreso de datos'!CK4:CK1001)), 0)","v":0},{"$f":"IFERROR((SUMPRODUCT(SUBTOTAL(3,OFFSET('03 Ingreso de datos'!CK4,ROW('03 Ingreso de datos'!CK4:CK1001)-ROW('03 Ingreso de datos'!CK4),0)),('03 Ingreso de datos'!CK4:CK1001=\"Casi nunca\")+0))/(_xlfn.AGGREGATE(3,5,'03 Ingreso de datos'!CK4:CK1001)), 0)","v":0},{"$f":"IFERROR((SUMPRODUCT(SUBTOTAL(3,OFFSET('03 Ingreso de datos'!CK4,ROW('03 Ingreso de datos'!CK4:CK1001)-ROW('03 Ingreso de datos'!CK4),0)),('03 Ingreso de datos'!CK4:CK1001=\"Nunca\")+0))/(_xlfn.AGGREGATE(3,5,'03 Ingreso de datos'!CK4:CK1001)), 0)","v":0},{"$f":"IFERROR((SUMPRODUCT(SUBTOTAL(3,OFFSET('03 Ingreso de datos'!CK4,ROW('03 Ingreso de datos'!CK4:CK1001)-ROW('03 Ingreso de datos'!CK4),0)),('03 Ingreso de datos'!CK4:CK1001=\"No sabe\")+0))/(_xlfn.AGGREGATE(3,5,'03 Ingreso de datos'!CK4:CK1001)), 0)","v":0},{"$f":"SUBTOTAL(3,'03 Ingreso de datos'!CK4:CK1001)","v":0}]
[null,"7. ¿Se deja secar al aire el desinfectante antes de accesar el vial o la ampolla? ",null,null,null,{"$f":"IFERROR((SUMPRODUCT(SUBTOTAL(3,OFFSET('03 Ingreso de datos'!CL4,ROW('03 Ingreso de datos'!CL4:CL1001)-ROW('03 Ingreso de datos'!CL4),0)),('03 Ingreso de datos'!CL4:CL1001=\"Siempre\")+0))/(_xlfn.AGGREGATE(3,5,'03 Ingreso de datos'!CL4:CL1001)), 0)","v":0},{"$f":"IFERROR((SUMPRODUCT(SUBTOTAL(3,OFFSET('03 Ingreso de datos'!CL4,ROW('03 Ingreso de datos'!CL4:CL1001)-ROW('03 Ingreso de datos'!CL4),0)),('03 Ingreso de datos'!CL4:CL1001=\"Casi siempre\")+0))/(_xlfn.AGGREGATE(3,5,'03 Ingreso de datos'!CL4:CL1001)), 0)","v":0},{"$f":"IFERROR((SUMPRODUCT(SUBTOTAL(3,OFFSET('03 Ingreso de datos'!CL4,ROW('03 Ingreso de datos'!CL4:CL1001)-ROW('03 Ingreso de datos'!CL4),0)),('03 Ingreso de datos'!CL4:CL1001=\"A veces\")+0))/(_xlfn.AGGREGATE(3,5,'03 Ingreso de datos'!CL4:CL1001)), 0)","v":0},{"$f":"IFERROR((SUMPRODUCT(SUBTOTAL(3,OFFSET('03 Ingreso de datos'!CL4,ROW('03 Ingreso de datos'!CL4:CL1001)-ROW('03 Ingreso de datos'!CL4),0)),('03 Ingreso de datos'!CL4:CL1001=\"Casi nunca\")+0))/(_xlfn.AGGREGATE(3,5,'03 Ingreso de datos'!CL4:CL1001)), 0)","v":0},{"$f":"IFERROR((SUMPRODUCT(SUBTOTAL(3,OFFSET('03 Ingreso de datos'!CL4,ROW('03 Ingreso de datos'!CL4:CL1001)-ROW('03 Ingreso de datos'!CL4),0)),('03 Ingreso de datos'!CL4:CL1001=\"Nunca\")+0))/(_xlfn.AGGREGATE(3,5,'03 Ingreso de datos'!CL4:CL1001)), 0)","v":0},{"$f":"IFERROR((SUMPRODUCT(SUBTOTAL(3,OFFSET('03 Ingreso de datos'!CL4,ROW('03 Ingreso de datos'!CL4:CL1001)-ROW('03 Ingreso de datos'!CL4),0)),('03 Ingreso de datos'!CL4:CL1001=\"No sabe\")+0))/(_xlfn.AGGREGATE(3,5,'03 Ingreso de datos'!CL4:CL1001)), 0)","v":0},{"$f":"SUBTOTAL(3,'03 Ingreso de datos'!CL4:CL1001)","v":0}]
[null,"8. ¿Se usa un vial de dosis única para un solo paciente? ",null,null,null,{"$f":"IFERROR((SUMPRODUCT(SUBTOTAL(3,OFFSET('03 Ingreso de datos'!CM4,ROW('03 Ingreso de datos'!CM4:CM1001)-ROW('03 Ingreso de datos'!CM4),0)),('03 Ingreso de datos'!CM4:CM1001=\"Siempre\")+0))/(_xlfn.AGGREGATE(3,5,'03 Ingreso de datos'!CM4:CM1001)), 0)","v":0},{"$f":"IFERROR((SUMPRODUCT(SUBTOTAL(3,OFFSET('03 Ingreso de datos'!CM4,ROW('03 Ingreso de datos'!CM4:CM1001)-ROW('03 Ingreso de datos'!CM4),0)),('03 Ingreso de datos'!CM4:CM1001=\"Casi siempre\")+0))/(_xlfn.AGGREGATE(3,5,'03 Ingreso de datos'!CM4:CM1001)), 0)","v":0},{"$f":"IFERROR((SUMPRODUCT(SUBTOTAL(3,OFFSET('03 Ingreso de datos'!CM4,ROW('03 Ingreso de datos'!CM4:CM1001)-ROW('03 Ingreso de datos'!CM4),0)),('03 Ingreso de datos'!CM4:CM1001=\"A veces\")+0))/(_xlfn.AGGREGATE(3,5,'03 Ingreso de datos'!CM4:CM1001)), 0)","v":0},{"$f":"IFERROR((SUMPRODUCT(SUBTOTAL(3,OFFSET('03 Ingreso de datos'!CM4,ROW('03 Ingreso de datos'!CM4:CM1001)-ROW('03 Ingreso de datos'!CM4),0)),('03 Ingreso de datos'!CM4:CM1001=\"Casi nunca\")+0))/(_xlfn.AGGREGATE(3,5,'03 Ingreso de datos'!CM4:CM1001)), 0)","v":0},{"$f":"IFERROR((SUMPRODUCT(SUBTOTAL(3,OFFSET('03 Ingreso de datos'!CM4,ROW('03 Ingreso de datos'!CM4:CM1001)-ROW('03 Ingreso de datos'!CM4),0)),('03 Ingreso de datos'!CM4:CM1001=\"Nunca\")+0))/(_xlfn.AGGREGATE(3,5,'03 Ingreso de datos'!CM4:CM1001)), 0)","v":0},{"$f":"IFERROR((SUMPRODUCT(SUBTOTAL(3,OFFSET('03 Ingreso de datos'!CM4,ROW('03 Ingreso de datos'!CM4:CM1001)-ROW('03 Ingreso de datos'!CM4),0)),('03 Ingreso de datos'!CM4:CM1001=\"No sabe\")+0))/(_xlfn.AGGREGATE(3,5,'03 Ingreso de datos'!CM4:CM1001)), 0)","v":0},{"$f":"SUBTOTAL(3,'03 Ingreso de datos'!CM4:CM1001)","v":0}]
[null,"9. ¿Se desechan los viales de dosis única después de un solo uso (incluso si todavía queda medicamento)?",null,null,null,{"$f":"IFERROR((SUMPRODUCT(SUBTOTAL(3,OFFSET('03 Ingreso de datos'!CN4,ROW('03 Ingreso de datos'!CN4:CN1001)-ROW('03 Ingreso de datos'!CN4),0)),('03 Ingreso de datos'!CN4:CN1001=\"Siempre\")+0))/(_xlfn.AGGREGATE(3,5,'03 Ingreso de datos'!CN4:CN1001)), 0)","v":0},{"$f":"IFERROR((SUMPRODUCT(SUBTOTAL(3,OFFSET('03 Ingreso de datos'!CN4,ROW('03 Ingreso de datos'!CN4:CN1001)-ROW('03 Ingreso de datos'!CN4),0)),('03 Ingreso de datos'!CN4:CN1001=\"Casi siempre\")+0))/(_xlfn.AGGREGATE(3,5,'03 Ingreso de datos'!CN4:CN1001)), 0)","v":0},{"$f":"IFERROR((SUMPRODUCT(SUBTOTAL(3,OFFSET('03 Ingreso de datos'!CN4,ROW('03 Ingreso de datos'!CN4:CN1001)-ROW('03 Ingreso de datos'!CN4),0)),('03 Ingreso de datos'!CN4:CN1001=\"A veces\")+0))/(_xlfn.AGGREGATE(3,5,'03 Ingreso de datos'!CN4:CN1001)), 0)","v":0},{"$f":"IFERROR((SUMPRODUCT(SUBTOTAL(3,OFFSET('03 Ingreso de datos'!CN4,ROW('03 Ingreso de datos'!CN4:CN1001)-ROW('03 Ingreso de datos'!CN4),0)),('03 Ingreso de datos'!CN4:CN1001=\"Casi nunca\")+0))/(_xlfn.AGGREGATE(3,5,'03 Ingreso de datos'!CN4:CN1001)), 0)","v":0},{"$f":"IFERROR((SUMPRODUCT(SUBTOTAL(3,OFFSET('03 Ingreso de datos'!CN4,ROW('03 Ingreso de datos'!CN4:CN1001)-ROW('03 Ingreso de datos'!CN4),0)),('03 Ingreso de datos'!CN4:CN1001=\"Nunca\")+0))/(_xlfn.AGGREGATE(3,5,'03 Ingreso de datos'!CN4:CN1001)), 0)","v":0},{"$f":"IFERROR((SUMPRODUCT(SUBTOTAL(3,OFFSET('03 Ingreso de datos'!CN4,ROW('03 Ingreso de datos'!CN4:CN1001)-ROW('03 Ingreso de datos'!CN4),0)),('03 Ingreso de datos'!CN4:CN1001=\"No sabe\")+0))/(_xlfn.AGGREGATE(3,5,'03 Ingreso de datos'!CN4:CN1001)), 0)","v":0},{"$f":"SUBTOTAL(3,'03 Ingreso de datos'!CN4:CN1001)","v":0}]
[null,"10. ¿Se usa una nueva aguja y jeringa estéril para accesar los viales de dosis única? ",null,null,null,{"$f":"IFERROR((SUMPRODUCT(SUBTOTAL(3,OFFSET('03 Ingreso de datos'!CO4,ROW('03 Ingreso de datos'!CO4:CO1001)-ROW('03 Ingreso de datos'!CO4),0)),('03 Ingreso de datos'!CO4:CO1001=\"Siempre\")+0))/(_xlfn.AGGREGATE(3,5,'03 Ingreso de datos'!CO4:CO1001)), 0)","v":0},{"$f":"IFERROR((SUMPRODUCT(SUBTOTAL(3,OFFSET('03 Ingreso de datos'!CO4,ROW('03 Ingreso de datos'!CO4:CO1001)-ROW('03 Ingreso de datos'!CO4),0)),('03 Ingreso de datos'!CO4:CO1001=\"Casi siempre\")+0))/(_xlfn.AGGREGATE(3,5,'03 Ingreso de datos'!CO4:CO1001)), 0)","v":0},{"$f":"IFERROR((SUMPRODUCT(SUBTOTAL(3,OFFSET('03 Ingreso de datos'!CO4,ROW('03 Ingreso de datos'!CO4:CO1001)-ROW('03 Ingreso de datos'!CO4),0)),('03 Ingreso de datos'!CO4:CO1001=\"A veces\")+0))/(_xlfn.AGGREGATE(3,5,'03 Ingreso de datos'!CO4:CO1001)), 0)","v":0},{"$f":"IFERROR((SUMPRODUCT(SUBTOTAL(3,OFFSET('03 Ingreso de datos'!CO4,ROW('03 Ingreso de datos'!CO4:CO1001)-ROW('03 Ingreso de datos'!CO4),0)),('03 Ingreso de datos'!CO4:CO1001=\"Casi nunca\")+0))/(_xlfn.AGGREGATE(3,5,'03 Ingreso de datos'!CO4:CO1001)), 0)","v":0},{"$f":"IFERROR((SUMPRODUCT(SUBTOTAL(3,OFFSET('03 Ingreso de datos'!CO4,ROW('03 Ingreso de datos'!CO4:CO1001)-ROW('03 Ingreso de datos'!CO4),0)),('03 Ingreso de datos'!CO4:CO1001=\"Nunca\")+0))/(_xlfn.AGGREGATE(3,5,'03 Ingreso de datos'!CO4:CO1001)), 0)","v":0},{"$f":"IFERROR((SUMPRODUCT(SUBTOTAL(3,OFFSET('03 Ingreso de datos'!CO4,ROW('03 Ingreso de datos'!CO4:CO1001)-ROW('03 Ingreso de datos'!CO4),0)),('03 Ingreso de datos'!CO4:CO1001=\"No sabe\")+0))/(_xlfn.AGGREGATE(3,5,'03 Ingreso de datos'!CO4:CO1001)), 0)","v":0},{"$f":"SUBTOTAL(3,'03 Ingreso de datos'!CO4:CO1001)","v":0}]
[null,"11. ¿Se usa una nueva aguja y jeringa estéril para accesar los viales de dosis múltiples? ",null,null,null,{"$f":"IFERROR((SUMPRODUCT(SUBTOTAL(3,OFFSET('03 Ingreso de datos'!CP4,ROW('03 Ingreso de datos'!CP4:CP1001)-ROW('03 Ingreso de datos'!CP4),0)),('03 Ingreso de datos'!CP4:CP1001=\"Siempre\")+0))/(_xlfn.AGGREGATE(3,5,'03 Ingreso de datos'!CP4:CP1001)), 0)","v":0},{"$f":"IFERROR((SUMPRODUCT(SUBTOTAL(3,OFFSET('03 Ingreso de datos'!CP4,ROW('03 Ingreso de datos'!CP4:CP1001)-ROW('03 Ingreso de datos'!CP4),0)),('03 Ingreso de datos'!CP4:CP1001=\"Casi siempre\")+0))/(_xlfn.AGGREGATE(3,5,'03 Ingreso de datos'!CP4:CP1001)), 0)","v":0},{"$f":"IFERROR((SUMPRODUCT(SUBTOTAL(3,OFFSET('03 Ingreso de datos'!CP4,ROW('03 Ingreso de datos'!CP4:CP1001)-ROW('03 Ingreso de datos'!CP4),0)),('03 Ingreso de datos'!CP4:CP1001=\"A veces\")+0))/(_xlfn.AGGREGATE(3,5,'03 Ingreso de datos'!CP4:CP1001)), 0)","v":0},{"$f":"IFERROR((SUMPRODUCT(SUBTOTAL(3,OFFSET('03 Ingreso de datos'!CP4,ROW('03 Ingreso de datos'!CP4:CP1001)-ROW('03 Ingreso de datos'!CP4),0)),('03 Ingreso de datos'!CP4:CP1001=\"Casi nunca\")+0))/(_xlfn.AGGREGATE(3,5,'03 Ingreso de datos'!CP4:CP1001)), 0)","v":0},{"$f":"IFERROR((SUMPRODUCT(SUBTOTAL(3,OFFSET('03 Ingreso de datos'!CP4,ROW('03 Ingreso de datos'!CP4:CP1001)-ROW('03 Ingreso de datos'!CP4),0)),('03 Ingreso de datos'!CP4:CP1001=\"Nunca\")+0))/(_xlfn.AGGREGATE(3,5,'03 Ingreso de datos'!CP4:CP1001)), 0)","v":0},{"$f":"IFERROR((SUMPRODUCT(SUBTOTAL(3,OFFSET('03 Ingreso de datos'!CP4,ROW('03 Ingreso de datos'!CP4:CP1001)-ROW('03 Ingreso de datos'!CP4),0)),('03 Ingreso de datos'!CP4:CP1001=\"No sabe\")+0))/(_xlfn.AGGREGATE(3,5,'03 Ingreso de datos'!CP4:CP1001)), 0)","v":0},{"$f":"SUBTOTAL(3,'03 Ingreso de datos'!CP4:CP1001)","v":0}]
[null,"12. ¿Se guardan los viales de dosis múltiples alejados de las cunas de los neonatos (p. ej., en el área de preparación de medicamentos)?",null,null,null,{"$f":"IFERROR((SUMPRODUCT(SUBTOTAL(3,OFFSET('03 Ingreso de datos'!CQ4,ROW('03 Ingreso de datos'!CQ4:CQ1001)-ROW('03 Ingreso de datos'!CQ4),0)),('03 Ingreso de datos'!CQ4:CQ1001=\"Siempre\")+0))/(_xlfn.AGGREGATE(3,5,'03 Ingreso de datos'!CQ4:CQ1001)), 0)","v":0},{"$f":"IFERROR((SUMPRODUCT(SUBTOTAL(3,OFFSET('03 Ingreso de datos'!CQ4,ROW('03 Ingreso de datos'!CQ4:CQ1001)-ROW('03 Ingreso de datos'!CQ4),0)),('03 Ingreso de datos'!CQ4:CQ1001=\"Casi siempre\")+0))/(_xlfn.AGGREGATE(3,5,'03 Ingreso de datos'!CQ4:CQ1001)), 0)","v":0},{"$f":"IFERROR((SUMPRODUCT(SUBTOTAL(3,OFFSET('03 Ingreso de datos'!CQ4,ROW('03 Ingreso de datos'!CQ4:CQ1001)-ROW('03 Ingreso de datos'!CQ4),0)),('03 Ingreso de datos'!CQ4:CQ1001=\"A veces\")+0))/(_xlfn.AGGREGATE(3,5,'03 Ingreso de datos'!CQ4:CQ1001)), 0)","v":0},{"$f":"IFERROR((SUMPRODUCT(SUBTOTAL(3,OFFSET('03 Ingreso de datos'!CQ4,ROW('03 Ingreso de datos'!CQ4:CQ1001)-ROW('03 Ingreso de datos'!CQ4),0)),('03 Ingreso de datos'!CQ4:CQ1001=\"Casi nunca\")+0))/(_xlfn.AGGREGATE(3,5,'03 Ingreso de datos'!CQ4:CQ1001)), 0)","v":0},{"$f":"IFERROR((SUMPRODUCT(SUBTOTAL(3,OFFSET('03 Ingreso de datos'!CQ4,ROW('03 Ingreso de datos'!CQ4:CQ1001)-ROW('03 Ingreso de datos'!CQ4),0)),('03 Ingreso de datos'!CQ4:CQ1001=\"Nunca\")+0))/(_xlfn.AGGREGATE(3,5,'03 Ingreso de datos'!CQ4:CQ1001)), 0)","v":0},{"$f":"IFERROR((SUMPRODUCT(SUBTOTAL(3,OFFSET('03 Ingreso de datos'!CQ4,ROW('03 Ingreso de datos'!CQ4:CQ1001)-ROW('03 Ingreso de datos'!CQ4),0)),('03 Ingreso de datos'!CQ4:CQ1001=\"No sabe\")+0))/(_xlfn.AGGREGATE(3,5,'03 Ingreso de datos'!CQ4:CQ1001)), 0)","v":0},{"$f":"SUBTOTAL(3,'03 Ingreso de datos'!CQ4:CQ1001)","v":0}]
[null,"13. ¿Se desechan los viales de dosis múltiples dentro de su fecha de vencimiento  (28 días, a menos que el fabricante especifique una fecha de vencimiento distinta)?",null,null,null,{"$f":"IFERROR((SUMPRODUCT(SUBTOTAL(3,OFFSET('03 Ingreso de datos'!CR4,ROW('03 Ingreso de datos'!CR4:CR1001)-ROW('03 Ingreso de datos'!CR4),0)),('03 Ingreso de datos'!CR4:CR1001=\"Siempre\")+0))/(_xlfn.AGGREGATE(3,5,'03 Ingreso de datos'!CR4:CR1001)), 0)","v":0},{"$f":"IFERROR((SUMPRODUCT(SUBTOTAL(3,OFFSET('03 Ingreso de datos'!CR4,ROW('03 Ingreso de datos'!CR4:CR1001)-ROW('03 Ingreso de datos'!CR4),0)),('03 Ingreso de datos'!CR4:CR1001=\"Casi siempre\")+0))/(_xlfn.AGGREGATE(3,5,'03 Ingreso de datos'!CR4:CR1001)), 0)","v":0},{"$f":"IFERROR((SUMPRODUCT(SUBTOTAL(3,OFFSET('03 Ingreso de datos'!CR4,ROW('03 Ingreso de datos'!CR4:CR1001)-ROW('03 Ingreso de datos'!CR4),0)),('03 Ingreso de datos'!CR4:CR1001=\"A veces\")+0))/(_xlfn.AGGREGATE(3,5,'03 Ingreso de datos'!CR4:CR1001)), 0)","v":0},{"$f":"IFERROR((SUMPRODUCT(SUBTOTAL(3,OFFSET('03 Ingreso de datos'!CR4,ROW('03 Ingreso de datos'!CR4:CR1001)-ROW('03 Ingreso de datos'!CR4),0)),('03 Ingreso de datos'!CR4:CR1001=\"Casi nunca\")+0))/(_xlfn.AGGREGATE(3,5,'03 Ingreso de datos'!CR4:CR1001)), 0)","v":0},{"$f":"IFERROR((SUMPRODUCT(SUBTOTAL(3,OFFSET('03 Ingreso de datos'!CR4,ROW('03 Ingreso de datos'!CR4:CR1001)-ROW('03 Ingreso de datos'!CR4),0)),('03 Ingreso de datos'!CR4:CR1001=\"Nunca\")+0))/(_xlfn.AGGREGATE(3,5,'03 Ingreso de datos'!CR4:CR1001)), 0)","v":0},{"$f":"IFERROR((SUMPRODUCT(SUBTOTAL(3,OFFSET('03 Ingreso de datos'!CR4,ROW('03 Ingreso de datos'!CR4:CR1001)-ROW('03 Ingreso de datos'!CR4),0)),('03 Ingreso de datos'!CR4:CR1001=\"No sabe\")+0))/(_xlfn.AGGREGATE(3,5,'03 Ingreso de datos'!CR4:CR1001)), 0)","v":0},{"$f":"SUBTOTAL(3,'03 Ingreso de datos'!CR4:CR1001)","v":0}]
[null,"14. ¿Se mantienen las soluciones para las vías intravenosas (p. ej., bolsas para infusiones) libres de punzones o perforaciones de aguja?",null,null,null,{"$f":"IFERROR((SUMPRODUCT(SUBTOTAL(3,OFFSET('03 Ingreso de datos'!CS4,ROW('03 Ingreso de datos'!CS4:CS1001)-ROW('03 Ingreso de datos'!CS4),0)),('03 Ingreso de datos'!CS4:CS1001=\"Siempre\")+0))/(_xlfn.AGGREGATE(3,5,'03 Ingreso de datos'!CS4:CS1001)), 0)","v":0},{"$f":"IFERROR((SUMPRODUCT(SUBTOTAL(3,OFFSET('03 Ingreso de datos'!CS4,ROW('03 Ingreso de datos'!CS4:CS1001)-ROW('03 Ingreso de datos'!CS4),0)),('03 Ingreso de datos'!CS4:CS1001=\"Casi siempre\")+0))/(_xlfn.AGGREGATE(3,5,'03 Ingreso de datos'!CS4:CS1001)), 0)","v":0},{"$f":"IFERROR((SUMPRODUCT(SUBTOTAL(3,OFFSET('03 Ingreso de datos'!CS4,ROW('03 Ingreso de datos'!CS4:CS1001)-ROW('03 Ingreso de datos'!CS4),0)),('03 Ingreso de datos'!CS4:CS1001=\"A veces\")+0))/(_xlfn.AGGREGATE(3,5,'03 Ingreso de datos'!CS4:CS1001)), 0)","v":0},{"$f":"IFERROR((SUMPRODUCT(SUBTOTAL(3,OFFSET('03 Ingreso de datos'!CS4,ROW('03 Ingreso de datos'!CS4:CS1001)-ROW('03 Ingreso de datos'!CS4),0)),('03 Ingreso de datos'!CS4:CS1001=\"Casi nunca\")+0))/(_xlfn.AGGREGATE(3,5,'03 Ingreso de datos'!CS4:CS1001)), 0)","v":0},{"$f":"IFERROR((SUMPRODUCT(SUBTOTAL(3,OFFSET('03 Ingreso de datos'!CS4,ROW('03 Ingreso de datos'!CS4:CS1001)-ROW('03 Ingreso de datos'!CS4),0)),('03 Ingreso de datos'!CS4:CS1001=\"Nunca\")+0))/(_xlfn.AGGREGATE(3,5,'03 Ingreso de datos'!CS4:CS1001)), 0)","v":0},{"$f":"IFERROR((SUMPRODUCT(SUBTOTAL(3,OFFSET('03 Ingreso de datos'!CS4,ROW('03 Ingreso de datos'!CS4:CS1001)-ROW('03 Ingreso de datos'!CS4),0)),('03 Ingreso de datos'!CS4:CS1001=\"No sabe\")+0))/(_xlfn.AGGREGATE(3,5,'03 Ingreso de datos'!CS4:CS1001)), 0)","v":0},{"$f":"SUBTOTAL(3,'03 Ingreso de datos'!CS4:CS1001)","v":0}]
[null,"15. ¿Se usa agua estéril (p. ej., viales de 10 mL, 50 mL) para reconstituir los medicamentos  (p. ej., para preparar antibióticos inyectables)?",null,null,null,{"$f":"IFERROR((SUMPRODUCT(SUBTOTAL(3,OFFSET('03 Ingreso de datos'!CT4,ROW('03 Ingreso de datos'!CT4:CT1001)-ROW('03 Ingreso de datos'!CT4),0)),('03 Ingreso de datos'!CT4:CT1001=\"Siempre\")+0))/(_xlfn.AGGREGATE(3,5,'03 Ingreso de datos'!CT4:CT1001)), 0)","v":0},{"$f":"IFERROR((SUMPRODUCT(SUBTOTAL(3,OFFSET('03 Ingreso de datos'!CT4,ROW('03 Ingreso de datos'!CT4:CT1001)-ROW('03 Ingreso de datos'!CT4),0)),('03 Ingreso de datos'!CT4:CT1001=\"Casi siempre\")+0))/(_xlfn.AGGREGATE(3,5,'03 Ingreso de datos'!CT4:CT1001)), 0)","v":0},{"$f":"IFERROR((SUMPRODUCT(SUBTOTAL(3,OFFSET('03 Ingreso de datos'!CT4,ROW('03 Ingreso de datos'!CT4:CT1001)-ROW('03 Ingreso de datos'!CT4),0)),('03 Ingreso de datos'!CT4:CT1001=\"A veces\")+0))/(_xlfn.AGGREGATE(3,5,'03 Ingreso de datos'!CT4:CT1001)), 0)","v":0},{"$f":"IFERROR((SUMPRODUCT(SUBTOTAL(3,OFFSET('03 Ingreso de datos'!CT4,ROW('03 Ingreso de datos'!CT4:CT1001)-ROW('03 Ingreso de datos'!CT4),0)),('03 Ingreso de datos'!CT4:CT1001=\"Casi nunca\")+0))/(_xlfn.AGGREGATE(3,5,'03 Ingreso de datos'!CT4:CT1001)), 0)","v":0},{"$f":"IFERROR((SUMPRODUCT(SUBTOTAL(3,OFFSET('03 Ingreso de datos'!CT4,ROW('03 Ingreso de datos'!CT4:CT1001)-ROW('03 Ingreso de datos'!CT4),0)),('03 Ingreso de datos'!CT4:CT1001=\"Nunca\")+0))/(_xlfn.AGGREGATE(3,5,'03 Ingreso de datos'!CT4:CT1001)), 0)","v":0},{"$f":"IFERROR((SUMPRODUCT(SUBTOTAL(3,OFFSET('03 Ingreso de datos'!CT4,ROW('03 Ingreso de datos'!CT4:CT1001)-ROW('03 Ingreso de datos'!CT4),0)),('03 Ingreso de datos'!CT4:CT1001=\"No sabe\")+0))/(_xlfn.AGGREGATE(3,5,'03 Ingreso de datos'!CT4:CT1001)), 0)","v":0},{"$f":"SUBTOTAL(3,'03 Ingreso de datos'!CT4:CT1001)","v":0}]
[null,"16. ¿Se usan las soluciones para vías intravenosas (por ejemplo, bolsas para infusiones) solamente para las infusiones (es decir que NO se usan para diluir o reconstituir medicamentos)?",null,null,null,{"$f":"IFERROR((SUMPRODUCT(SUBTOTAL(3,OFFSET('03 Ingreso de datos'!CU4,ROW('03 Ingreso de datos'!CU4:CU1001)-ROW('03 Ingreso de datos'!CU4),0)),('03 Ingreso de datos'!CU4:CU1001=\"Siempre\")+0))/(_xlfn.AGGREGATE(3,5,'03 Ingreso de datos'!CU4:CU1001)), 0)","v":0},{"$f":"IFERROR((SUMPRODUCT(SUBTOTAL(3,OFFSET('03 Ingreso de datos'!CU4,ROW('03 Ingreso de datos'!CU4:CU1001)-ROW('03 Ingreso de datos'!CU4),0)),('03 Ingreso de datos'!CU4:CU1001=\"Casi siempre\")+0))/(_xlfn.AGGREGATE(3,5,'03 Ingreso de datos'!CU4:CU1001)), 0)","v":0},{"$f":"IFERROR((SUMPRODUCT(SUBTOTAL(3,OFFSET('03 Ingreso de datos'!CU4,ROW('03 Ingreso de datos'!CU4:CU1001)-ROW('03 Ingreso de datos'!CU4),0)),('03 Ingreso de datos'!CU4:CU1001=\"A veces\")+0))/(_xlfn.AGGREGATE(3,5,'03 Ingreso de datos'!CU4:CU1001)), 0)","v":0},{"$f":"IFERROR((SUMPRODUCT(SUBTOTAL(3,OFFSET('03 Ingreso de datos'!CU4,ROW('03 Ingreso de datos'!CU4:CU1001)-ROW('03 Ingreso de datos'!CU4),0)),('03 Ingreso de datos'!CU4:CU1001=\"Casi nunca\")+0))/(_xlfn.AGGREGATE(3,5,'03 Ingreso de datos'!CU4:CU1001)), 0)","v":0},{"$f":"IFERROR((SUMPRODUCT(SUBTOTAL(3,OFFSET('03 Ingreso de datos'!CU4,ROW('03 Ingreso de datos'!CU4:CU1001)-ROW('03 Ingreso de datos'!CU4),0)),('03 Ingreso de datos'!CU4:CU1001=\"Nunca\")+0))/(_xlfn.AGGREGATE(3,5,'03 Ingreso de datos'!CU4:CU1001)), 0)","v":0},{"$f":"IFERROR((SUMPRODUCT(SUBTOTAL(3,OFFSET('03 Ingreso de datos'!CU4,ROW('03 Ingreso de datos'!CU4:CU1001)-ROW('03 Ingreso de datos'!CU4),0)),('03 Ingreso de datos'!CU4:CU1001=\"No sabe\")+0))/(_xlfn.AGGREGATE(3,5,'03 Ingreso de datos'!CU4:CU1001)), 0)","v":0},{"$f":"SUBTOTAL(3,'03 Ingreso de datos'!CU4:CU1001)","v":0}]

{"sheet":"06 Listas","index":6,"n_rows":30,"n_cols":12,"rows_kept":30,"cut":false,"hidden":false,"merged":[]}
[]
[]
[]
[]
[]
[]
[]
[]
[]
["Cargo del encuestado",null,"Turno",null,"Capacitación",null,"Escala de Likert"]
[]
["Médico",null,"Día",null,"A. Durante la contratación u orientación",null,"Nunca"]
["Personal de enfermería",null,"Noche",null,"B. Al menos una vez al año",null,"Casi nunca"]
["Técnico de enfermería",null,"Ambos",null,"C. Cuando hay dispositivos o protocolos nuevos",null,"A veces"]
["Profesional de IPC",null,null,null,"A y B",null,"Casi siempre",null,null,null,"Sección 2A, pregunta 6",{"$f":"IFERROR((SUMPRODUCT(SUBTOTAL(3,OFFSET('03 Ingreso de datos'!V4,ROW('03 Ingreso de datos'!V4:V1001)-ROW('03 Ingreso de datos'!V4),0)),('03 Ingreso de datos'!V4:V1001=\"No se encarga de este procedimiento\")+0)), 0)","v":0}]
["Farmacéutico",null,null,null,"A y C",null,"Siempre",null,null,null,"Sección 2A, pregunta 7",{"$f":"IFERROR((SUMPRODUCT(SUBTOTAL(3,OFFSET('03 Ingreso de datos'!W4,ROW('03 Ingreso de datos'!W4:W1001)-ROW('03 Ingreso de datos'!W4),0)),('03 Ingreso de datos'!W4:W1001=\"No se encarga de este procedimiento\")+0)), 0)","v":0}]
["Otro",null,null,null,"B y C",null,"No sabe"]
[null,null,null,null,"A, B y C",null,null,null,null,null,"Sección 4A, pregunta 2",{"$f":"IFERROR((SUMPRODUCT(SUBTOTAL(3,OFFSET('03 Ingreso de datos'!BK4,ROW('03 Ingreso de datos'!BK4:BK1001)-ROW('03 Ingreso de datos'!BK4),0)),('03 Ingreso de datos'!BK4:BK1001=\"No se encarga de este procedimiento\")+0)), 0)","v":0}]
[null,null,null,null,"No recibió capacitación",null,null,null,null,null,"Sección 4A, pregunta 3",{"$f":"IFERROR((SUMPRODUCT(SUBTOTAL(3,OFFSET('03 Ingreso de datos'!BL4,ROW('03 Ingreso de datos'!BL4:BL1001)-ROW('03 Ingreso de datos'!BL4),0)),('03 Ingreso de datos'!BL4:BL1001=\"No se encarga de este procedimiento\")+0)), 0)","v":0}]
[null,null,null,null,"No se encarga de este procedimiento"]
[]
[]
[]
[]
["Sí/No",null,"Sí/No/No sabe",null,"Sí/No/No sabe/No recibió capacitación"]
[]
["Sí",null,"Sí",null,"Sí"]
["No",null,"No",null,"No"]
[null,null,"No sabe",null,"No sabe"]
[null,null,null,null,"No recibió capacitación"]